Workbook

Sheet Menu
D1: =IF(ISNA(VLOOKUP(E1,A100:$B$500,2,0)),0,VLOOKUP(E1,A100:$B$500,2,0)) -> 1017 | E1: =+DFES!E1 -> 1017
B10: 2022/23 Calculation of Cheque Book Schools In Year and Carried Forward Revenue Balances
B11: Please Left Click on the Macro Button below to continue.
B12: If the aforementioned does not function, please refer to the Macro Guidance from this link: | M12: Macro guidance
B13: Should the Protected View message be visible on the Toolbar, click on Enable Editing.
A100: 2010 | B100: 2010
A101: 1017 | B101: 1017
A102: 5413 | B102: 5413
A103: 2254 | B103: 2254
A104: 2402 | B104: 2402
A105: 2401 | B105: 2401
A106: 4115 | B106: 4115
A107: 2030 | B107: 2030
A108: 2238 | B108: 2238
A109: 2236 | B109: 2236
A110: 4801 | B110: 4801
A111: 2312 | B111: 2312
A112: 7051 | B112: 7051
A113: 2251 | B113: 2251
A114: 3002 | B114: 3002
A115: 3319 | B115: 3319
A116: 5416 | B116: 5416
A117: 2054 | B117: 2054
A118: 2053 | B118: 2053
A119: 2296 | B119: 2296
A120: 2092 | B120: 2092
A121: 4201 | B121: 4201
A122: 4015 | B122: 4015
A123: 4223 | B123: 4223
A124: 2015 | B124: 2015
A125: 2462 | B125: 2462
A126: 2127 | B126: 2127
A127: 2129 | B127: 2129
A128: 2128 | B128: 2128
A129: 2133 | B129: 2133
A130: 3322 | B130: 3322
A131: 4245 | B131: 4245
A132: 4173 | B132: 4173
A133: 7033 | B133: 7033
A134: 4177 | B134: 4177
A135: 1038 | B135: 1038
A136: 2174 | B136: 2174
A137: 3363 | B137: 3363
A138: 3377 | B138: 3377
A139: 3371 | B139: 3371
A140: 3016 | B140: 3016
A141: 4606 | B141: 4606
A142: 3428 | B142: 3428
A143: 4237 | B143: 4237
A144: 3323 | B144: 3323
A145: 7014 | B145: 7014
A146: 7009 | B146: 7009
A147: 5203 | B147: 5203
A148: 5202 | B148: 5202
A149: 2308 | B149: 2308
A150: 2011 | B150: 2011
A151: 2293 | B151: 2293
A152: 2225 | B152: 2225
A153: 2412 | B153: 2412

Sheet School List (hidden)
CA1: ok
A4: DFE
A5: Number | C5: Name
A6: 2010 | C6: Adderley Primary School
A7: 1017 | C7: Allens Croft Nursery School
A8: 5413 | C8: Bishop Challoner Catholic College
A9: 2254 | C9: Blakesley Hall Primary School
A10: 2402 | C10: Boldmere Infant School and Nursery
A11: 2401 | C11: Boldmere Junior School
A12: 4115 | C12: Bordesley Green Girls' Sch & Sixth Form
A13: 2030 | C13: Bordesley Green Primary School
A14: 2238 | C14: Broadmeadow Infant School
A15: 2236 | C15: Broadmeadow Junior School
A16: 4801 | C16: Cardinal Wiseman Catholic School
A17: 2312 | C17: Chad Vale Primary School
A18: 7051 | C18: Cherry Oak School
A19: 2251 | C19: Chilcote Primary School
A20: 3002 | C20: Christ Church CofE Primary Sch & Nursery
A21: 3319 | C21: Christ The King Catholic Primary School
A22: 5416 | C22: Colmers School and Sixth Form College
A23: 2054 | C23: Colmore Infant and Nursery School
A24: 2053 | C24: Colmore Junior School
A25: 2296 | C25: Glenmead Primary School
A26: 2092 | C26: Hall Green Junior School
A27: 4201 | C27: Hodge Hill College
A28: 4015 | C28: Hodge Hill Girls' School
A29: 4223 | C29: Holte School
A30: 2015 | C30: James Watt Primary School
A31: 2462 | C31: Little Sutton Primary School
A32: 2127 | C32: Lozells Junior & Infant School & Nursery
A33: 2129 | C33: Lyndon Green Infant School
A34: 2128 | C34: Lyndon Green Junior School
A35: 2133 | C35: Marsh Hill Primary School
A36: 3322 | C36: Maryvale Catholic Primary School
A37: 4245 | C37: Moseley School and Sixth Form
A38: 4173 | C38: Queensbridge School
A39: 7033 | C39: Selly Oak Trust School
A40: 4177 | C40: Selly Park Girls' School
A41: 1038 | C41: Shenley Fields Nursery School
A42: 2174 | C42: Sladefield Infant School
A43: 3363 | C43: St Dunstan's Catholic Primary School
A44: 3377 | C44: St Jude's Catholic Primary School
A45: 3371 | C45: St Laurence Church Infant School
A46: 3016 | C46: St Matthew's CofE Primary School
A47: 4606 | C47: St Paul's School for Girls
A48: 3428 | C48: St Peters CofE Primary School
A49: 4237 | C49: Swanshurst School
A50: 3323 | C50: The Oratory Roman Catholic Primary Sch
A51: 7014 | C51: Uffculme School
A52: 7009 | C52: Victoria School
A53: 5203 | C53: Walmley Infant School
A54: 5202 | C54: Walmley Junior School
A55: 2308 | C55: Welford Primary School
A56: 2011 | C56: Wheelers Lane Primary School
A57: 2293 | C57: William Murdoch Primary School
A58: 2225 | C58: World's End Junior School
A59: 2412 | C59: Wylde Green Primary School

Sheet DFES (hidden)
A1: 2010 | B1: AX085 | C1: Adderley Primary School | E1: 1017 | F1: =IF(ISNA(VLOOKUP($E$1,$A$1:$C$72,3,0)),0,VLOOKUP($E$1,$A$1:$C$72,3,0)) -> Allens Croft Nursery School | Z1: 2011/12 | AA1: 2010/11 | AB1: January 2011 CENSUS | AC1: January 2010 CENSUS
A2: 1017 | B2: AX087 | C2: Allens Croft Nursery School
A3: 5413 | B3: AX08C | C3: Bishop Challoner Catholic College
A4: 2254 | B4: AX00Q | C4: Blakesley Hall Primary School
A5: 2402 | B5: AX08G | C5: Boldmere Infant School and Nursery
A6: 2401 | B6: AX00T | C6: Boldmere Junior School
A7: 4115 | B7: AX08J | C7: Bordesley Green Girls' Sch & Sixth Form
A8: 2030 | B8: AX08H | C8: Bordesley Green Primary School
A9: 2238 | B9: AX08N | C9: Broadmeadow Infant School
A10: 2236 | B10: AX010 | C10: Broadmeadow Junior School
A11: 4801 | B11: AX08U | C11: Cardinal Wiseman Catholic School
A12: 2312 | B12: AX015 | C12: Chad Vale Primary School
A13: 7051 | B13: AX017 | C13: Cherry Oak School
A14: 2251 | B14: AX08W | C14: Chilcote Primary School
A15: 3002 | B15: AX01A | C15: Christ Church CofE Primary Sch & Nursery
A16: 3319 | B16: AX019 | C16: Christ The King Catholic Primary School
A17: 5416 | B17: AX091 | C17: Colmers School and Sixth Form College
A18: 2054 | B18: AX092 | C18: Colmore Infant and Nursery School
A19: 2053 | B19: AX093 | C19: Colmore Junior School
A20: 2296 | B20: AX027 | C20: Glenmead Primary School
A21: 2092 | B21: AX02H | C21: Hall Green Junior School
A22: 4201 | B22: AX0A1 | C22: Hodge Hill College
A23: 4015 | B23: AX0A2 | C23: Hodge Hill Girls' School
A24: 4223 | B24: AX0A4 | C24: Holte School
A25: 2015 | B25: AX032 | C25: James Watt Primary School
A26: 2462 | B26: AX03L | C26: Little Sutton Primary School
A27: 2127 | B27: AX0AN | C27: Lozells Junior & Infant School & Nursery
A28: 2129 | B28: AX03N | C28: Lyndon Green Infant School
A29: 2128 | B29: AX03P | C29: Lyndon Green Junior School
A30: 2133 | B30: AX03V | C30: Marsh Hill Primary School
A31: 3322 | B31: AX03X | C31: Maryvale Catholic Primary School
A32: 4245 | B32: AX0AW | C32: Moseley School and Sixth Form
A33: 4173 | B33: AX0BD | C33: Queensbridge School
A34: 7033 | B34: AX0BK | C34: Selly Oak Trust School
A35: 4177 | B35: AX0BL | C35: Selly Park Girls' School
A36: 1038 | B36: AX056 | C36: Shenley Fields Nursery School
A37: 2174 | B37: AX0BR | C37: Sladefield Infant School
A38: 3363 | B38: AX05Q | C38: St Dunstan's Catholic Primary School
A39: 3377 | B39: AX066 | C39: St Jude's Catholic Primary School
A40: 3371 | B40: AX067 | C40: St Laurence Church Infant School
A41: 3016 | B41: AX06F | C41: St Matthew's CofE Primary School
A42: 4606 | B42: AX0C4 | C42: St Paul's School for Girls
A43: 3428 | B43: AX06L | C43: St Peters CofE Primary School
A44: 4237 | B44: AX0C8 | C44: Swanshurst School
A45: 3323 | B45: AX049 | C45: The Oratory Roman Catholic Primary Sch
A46: 7014 | B46: AX07A | C46: Uffculme School
A47: 7009 | B47: AX0CG | C47: Victoria School
A48: 5203 | B48: AX0CH | C48: Walmley Infant School
A49: 5202 | B49: AX0CJ | C49: Walmley Junior School
A50: 2308 | B50: AX0CL | C50: Welford Primary School
A51: 2011 | B51: AX07P | C51: Wheelers Lane Primary School
A52: 2293 | B52: AX07T | C52: William Murdoch Primary School
A53: 2225 | B53: AX0CQ | C53: World's End Junior School
A54: 2412 | B54: AX07Y | C54: Wylde Green Primary School
A72: FFT | C72: FAIR FUNDING TEAM

Sheet Notification (hidden)
F1: =+DFES!$E$1 -> 1017
B3: 2022/23 School Carry Forward and In Year Balance Notification
B5: School: | D5: =+DFES!$F$1 -> Allens Croft Nursery School
B6: DFE No: | D6: =+DFES!$E$1 -> 1017
B17: School: | C17: =$D$5 -> Allens Croft Nursery School
B19: For the attention of the Headteacher
B21: Dear Sir or Madam
B23: Calculation of the School's In Year and Carried Forward Revenue Balances
B25: The Local Authority has closed the accounts of your school as at 31st March 2023 and
B26: I confirm that the school's surplus / (deficit) revenue balances have been determined as follows:
B28: Brought Forward Revenue Surplus / (Deficit) Balance as at 1st April 2022
C30: £ | D30: =-IF(ISNA(VLOOKUP(DFES!$E$1,'School Closing Balances 2022-23'!$E$3:$J$220,4,0)),0,VLOOKUP(DFES!$E$1,'School Closing Balances 2022-23'!$E$3:$J$220,4,0)) -> 169669.1957
B33: In Year Revenue Surplus / (Deficit) for the Financial Year 2022-23
C35: £ | D35: =-IF(ISNA(VLOOKUP(DFES!$E$1,'School Closing Balances 2022-23'!$E$3:$J$220,5,0)),0,VLOOKUP(DFES!$E$1,'School Closing Balances 2022-23'!$E$3:$J$220,5,0)) -> -10728.68
B38: Carried Forward Revenue Surplus / (Deficit) Balance as at 31st March 2023
C40: £ | D40: =-IF(ISNA(VLOOKUP(DFES!$E$1,'School Closing Balances 2022-23'!$E$3:$J$220,6,0)),0,VLOOKUP(DFES!$E$1,'School Closing Balances 2022-23'!$E$3:$J$220,6,0)) -> 158940.5157

Sheet Total (hidden)
A1: School/DSG Summary | G1: 825376.4721
G2: =SUM(G4:G229) -> -74953710.54 | H2: =SUM(H4:H229) -> 5083135.751 | I2: =SUM(I4:I229) -> -69870574.79 | J2: =SUM(J4:J229) -> 4511403.25 | K2: =SUM(K4:K229) -> -571732.5011
A3: Area | B3: Cost Centre | C3: DFE Number | D3: Cost Centre Name | F3: School Type | G3: Opening Revenue Balance | H3: In Year Position | I3: Closing Balance 22/23 | J3: Oracle Balance | K3: Variance
A4: DE600 | B4: AX001 | C4: 1027 | D4: AX001-Adderley Nursery School | E4: MNS | F4: EPA | G4: 148341.298 | H4: -145919.4 | I4: =SUM(G4:H4) -> 2421.89798 | J4: -145919.4 | K4: =J4-H4 -> 0
A5: DE600 | B5: AX002 | C5: 5949 | D5: AX002-Al-Furqan Primary School | F5: Non Chq Bk | G5: -665695.9907 | H5: 70048.59 | I5: -595647.4007 | J5: 70048.59 | K5: 0
A6: DE600 | B6: AX004 | C6: 2153 | D6: AX004-Allens Croft Primary School | F6: EPA | G6: -860880.0203 | H6: 663560.12 | I6: -197319.9003 | J6: 663560.12 | K6: 0
A7: DE600 | B7: AX006 | C7: 2062 | D7: AX006-Anderton Park Primary School | F7: Non Chq Bk | G7: -615862.1743 | H7: 331523.31 | I7: -284338.8643 | J7: 331523.31 | K7: 0
A8: DE600 | B8: AX007 | C8: 2479 | D8: AX007-Anglesey Primary School | F8: EPA | G8: -606379.3357 | H8: -241205.12 | I8: -847584.4557 | J8: -241205.12 | K8: 0
A9: DE600 | B9: AX008 | C9: 2300 | D9: AX008-Arden Primary School | F9: Non Chq Bk | G9: -310748.6069 | H9: 80386.23 | I9: -230362.3769 | J9: 80386.23 | K9: 0
A10: DE600 | B10: AX00C | C10: 2014 | D10: AX00C-Barford Primary School | F10: Non Chq Bk | G10: -567306.2111 | H10: 468117.42 | I10: -99188.79112 | J10: 468117.42 | K10: 0
A11: DE600 | B11: AX00E | C11: 7016 | D11: AX00E-Baskerville School | F11: Non Chq Bk | G11: -795930.9926 | H11: -136054.01 | I11: -931985.0026 | J11: -136054.01 | K11: 0
A12: DE600 | B12: AX00F | C12: 7052 | D12: AX00F-Beaufort School | F12: Non Chq Bk | G12: -379934.9606 | H12: 239732.78 | I12: -140202.1806 | J12: 239732.78 | K12: 0
A13: DE600 | B13: AX00G | C13: 2239 | D13: AX00G-Bellfield Infant School (NC) | F13: EPA | G13: -262055.4013 | H13: 123549.34 | I13: -138506.0613 | J13: 123549.34 | K13: 0
A14: DE600 | B14: AX00H | C14: 2241 | D14: AX00H-Bellfield Junior School | F14: Non Chq Bk | G14: -364166.9142 | H14: 73118.61 | I14: -291048.3042 | J14: 73118.61 | K14: 0
A15: DE600 | B15: AX00J | C15: 2456 | D15: AX00J-Bells Farm Primary School | F15: Non Chq Bk | G15: -119499.0879 | H15: 86736.41 | I15: -32762.67789 | J15: 86736.41 | K15: 0
A16: DE600 | B16: AX00K | C16: 2435 | D16: AX00K-Benson Community School | F16: EPA | G16: -587426.9455 | H16: 130723.91 | I16: -456703.0355 | J16: 130723.91 | K16: 0
A17: DE600 | B17: AX00L | C17: 2025 | D17: AX00L-Birches Green Infant School | F17: Academy | G17: 0 | H17: 0 | I17: 0 | J17: -69607.44 | K17: -69607.44
A18: DE600 | B18: AX00Q | C18: 2254 | D18: AX00Q-Blakesley Hall Primary School | F18: Chq Bk | G18: 137954.6149 | H18: 350258.17 | I18: =SUM(G18:H18) -> 488212.7849 | J18: 350258.17 | K18: 0
A19: DE600 | B19: AX00R | C19: 1025 | D19: AX00R-Bloomsbury Nursery School | E19: MNS | F19: Non Chq Bk | G19: -186106.6315 | H19: 43819.43 | I19: -142287.2015 | J19: 43819.43 | K19: 0
A20: DE600 | B20: AX00T | C20: 2401 | D20: AX00T-Boldmere Junior School | F20: Chq Bk | G20: -136008.6397 | H20: -34350.29 | I20: =SUM(G20:H20) -> -170358.9297 | J20: -54712.43 | K20: -20362.14
A21: DE600 | B21: AX00U | C21: 1001 | D21: AX00U-Bordesley Green East Nursery School | E21: MNS | F21: EPA | G21: 13592.32212 | H21: 10695.69 | I21: 24288.01212 | J21: 10695.69 | K21: 0
A22: DE600 | B22: AX00X | C22: 3353 | D22: AX00X-Bournville Village Primary | F22: Non Chq Bk | G22: -464990.3691 | H22: 95311.86 | I22: -369678.5091 | J22: 95311.86 | K22: 0
A23: DE600 | B23: AX00Y | C23: 7030 | D23: AX00Y-Braidwood School for the Deaf | F23: EPA | G23: -245775.7751 | H23: -148024.1 | I23: -393799.8751 | J23: -148024.1 | K23: 0
A24: DE600 | B24: AX00Z | C24: 1002 | D24: AX00Z-Brearley Nursery School | E24: MNS | F24: Non Chq Bk | G24: -54611.88538 | H24: -758643.05 | I24: -813254.9354 | J24: -758643.05 | K24: 0
A25: DE600 | B25: AX010 | C25: 2236 | D25: AX010-Broadmeadow Junior School | F25: Chq Bk | G25: -291704.2063 | H25: 70552.36 | I25: =SUM(G25:H25) -> -221151.8463 | J25: 70552.35 | K25: -0.009999999893
A26: DE600 | B26: AX013 | C26: 2465 | D26: AX013-Calshot Primary School | F26: EPA | G26: -64328.77497 | H26: -39799.02 | I26: -104127.795 | J26: -39799.02 | K26: 0
A27: DE600 | B27: AX014 | C27: 1048 | D27: AX014-Castle Vale Nursery School | E27: MNS | F27: Non Chq Bk | G27: -353386.5416 | H27: -2659.06 | I27: -356045.6016 | J27: -2659.06 | K27: 0
A28: DE600 | B28: AX015 | C28: 2312 | D28: AX015-Chad Vale Primary School | F28: Chq Bk | G28: 0 | H28: -10718.99089 | I28: =SUM(G28:H28) -> -10718.99089 | J28: 64622.61 | K28: 75341.60089
A29: DE600 | B29: AX017 | C29: 7051 | D29: AX017-Cherry Oak School | F29: Chq Bk | G29: -469329 | H29: -52502.85 | I29: =SUM(G29:H29) -> -521831.85 | J29: -94467.81 | K29: -41964.96
A30: DE600 | B30: AX018 | C30: 2040 | D30: AX018-Cherry Orchard Primary School | F30: EPA | G30: -112202.054 | H30: 118629.57 | I30: 6427.515981 | J30: 118629.57 | K30: 0
A31: DE600 | B31: AX019 | C31: 3319 | D31: AX019-Christ The King Catholic Primary School | F31: Chq Bk | G31: -121852.2772 | H31: 4481.25 | I31: -117371.0272 | J31: 49163.86 | K31: 44682.61
A32: DE600 | B32: AX01A | C32: 3002 | D32: AX01A-Christ Church CofE Primary Sch & Nursery | F32: Chq Bk | G32: -460634.8098 | H32: 37619.44 | I32: -423015.3698 | J32: 31667.88 | K32: -5951.56
A33: DE600 | B33: AX01B | C33: 3432 | D33: AX01B-Clifton Primary School | F33: EPA | G33: -654009.8654 | H33: 317278.12 | I33: -336731.7454 | J33: 317278.12 | K33: 0
A34: DE600 | B34: AX01D | C34: 2289 | D34: AX01D-Cofton Primary School | F34: Non Chq Bk | G34: 124969.4347 | H34: -20680.49 | I34: 104288.9447 | J34: -20680.49 | K34: 0
A35: DE600 | B35: AX01E | C35: 2185 | D35: AX01E-Colebourne Primary School | F35: EPA | G35: -233913.2491 | H35: 10249.52 | I35: -223663.7291 | J35: 10249.52 | K35: 0
A36: DE600 | B36: AX01G | C36: 2464 | D36: AX01G-Coppice Primary School | F36: EPA | G36: -91418.27429 | H36: 332044.67 | I36: 240626.3957 | J36: 332044.67 | K36: 0
A37: DE600 | B37: AX01H | C37: 3320 | D37: AX01H-Corpus Christi Catholic Primary School | F37: Non Chq Bk | G37: -511397.8225 | H37: -203643.46 | I37: -715041.2825 | J37: -203643.46 | K37: 0
A38: DE600 | B38: AX01J | C38: 2055 | D38: AX01J-Cotteridge Primary School | F38: Non Chq Bk | G38: -416677.0165 | H38: 22080.06 | I38: -394596.9565 | J38: 22080.06 | K38: 0
A39: DE600 | B39: AX01L | C39: 2191 | D39: AX01L-Court Farm Primary School | F39: Non Chq Bk | G39: -184839.6394 | H39: -2161.62 | I39: -187001.2594 | J39: -2161.62 | K39: 0
A40: DE600 | B40: AX01M | C40: 7035 | D40: AX01M-The Dame Ellen Pinsent School | F40: EPA | G40: -536504.8908 | H40: 67412.36 | I40: -469092.5308 | J40: 67412.36 | K40: 0
A41: DE600 | B41: AX01N | C41: 2284 | D41: AX01N-Deykin Avenue Junior and Infant School | F41: Non Chq Bk | G41: -82152.31068 | H41: 105526.34 | I41: 23374.02932 | J41: 105526.34 | K41: 0
A42: DE600 | B42: AX01Q | C42: 1802 | D42: AX01Q-Edith Cadbury Nursery School | E42: MNS | F42: EPA | G42: 48973.26743 | H42: -5790.86 | I42: 43182.40743 | J42: -5790.86 | K42: 0
A43: DE600 | B43: AX01R | C43: 2454 | D43: AX01R-Elms Farm Community Primary School | F43: EPA | G43: -356218.3866 | H43: -90989.54 | I43: -447207.9266 | J43: -90989.54 | K43: 0
A44: DE600 | B44: AX01T | C44: 3321 | D44: AX01T-English Martyrs' Catholic Primary School | F44: EPA | G44: -344067.6296 | H44: 141066.85 | I44: -203000.7796 | J44: 141066.85 | K44: 0
A45: DE600 | B45: AX01W | C45: 2294 | D45: AX01W-Featherstone Primary School | F45: Non Chq Bk | G45: -1090111.879 | H45: 435415.02 | I45: -654696.859 | J45: 435415.02 | K45: 0
A46: DE600 | B46: AX01X | C46: 1026 | D46: AX01X-Featherstone Nursery School | E46: MNS | F46: Non Chq Bk | G46: -220314.9305 | H46: -23120.16 | I46: -243435.0905 | J46: -23120.16 | K46: 0
A47: DE600 | B47: AX01Z | C47: 2486 | D47: AX01Z-Forestdale Primary School | F47: Non Chq Bk | G47: -194865.2011 | H47: 1133.68 | I47: -193731.5211 | J47: 1133.68 | K47: 0
A48: DE600 | B48: AX020 | C48: 3435 | D48: AX020-Four Oaks Primary School | F48: EPA | G48: -198865.2856 | H48: 23160.8 | I48: -175704.4856 | J48: 23160.8 | K48: 0
A49: DE600 | B49: AX021 | C49: 7050 | D49: AX021-Fox Hollies School | F49: EPA | G49: -664193.6267 | H49: -144653.24 | I49: -808846.8667 | J49: -144653.24 | K49: 0
A50: DE600 | B50: AX023 | C50: 1006 | D50: AX023-Garretts Green Nursery School | E50: MNS | F50: Non Chq Bk | G50: -184195.2555 | H50: 117842.53 | I50: -66352.72545 | J50: 117842.53 | K50: 0
A51: DE600 | B51: AX025 | C51: 2079 | D51: AX025-George Dixon Primary School | F51: Non Chq Bk | G51: -32316.14935 | H51: 72244.3 | I51: 39928.15065 | J51: 72244.3 | K51: 0
A52: DE600 | B52: AX026 | C52: 2081 | D52: AX026-Gilbertstone Primary School | F52: EPA | G52: -143141.8557 | H52: 116006.33 | I52: -27135.52574 | J52: 116006.33 | K52: 0
A53: DE600 | B53: AX027 | C53: 2296 | D53: AX027-Glenmead Primary School | F53: Chq bk | G53: -245699.3433 | H53: -7632.45 | I53: =SUM(G53:H53) -> -253331.7933 | J53: -7632.45 | K53: -6.4028427e-10
A54: DE600 | B54: AX028 | C54: 1015 | D54: AX028-Goodway Nursery School | E54: MNS | F54: Non Chq Bk | G54: -113744.0115 | H54: -57219.74 | I54: -170963.7515 | J54: -57219.74 | K54: 0
A55: DE600 | B55: AX029 | C55: 1022 | D55: AX029-Gracelands Nursery School | E55: MNS | F55: Non Chq Bk | G55: -36646.85271 | H55: -125231.38 | I55: -161878.2327 | J55: -125231.38 | K55: 0
A56: DE600 | B56: AX02C | C56: 2087 | D56: AX02C-Grendon Primary School | F56: Non Chq Bk | G56: -226730.2632 | H56: 57326.56 | I56: -169403.7032 | J56: 57326.56 | K56: 0
A57: DE600 | B57: AX02D | C57: 2466 | D57: AX02D-Grove School | F57: Non Chq Bk | G57: -762845.8622 | H57: 39110.3 | I57: -723735.5622 | J57: 39110.3 | K57: 0
A58: DE600 | B58: AX02F | C58: 2091 | D58: AX02F-Gunter Primary School | F58: Non Chq Bk | G58: 139676.4126 | H58: 55878.15 | I58: 195554.5626 | J58: 55878.15 | K58: 0
A59: DE600 | B59: AX02G | C59: 2093 | D59: AX02G-Hall Green Infant School | F59: EPA | G59: -271201.6684 | H59: 11096.09 | I59: -260105.5784 | J59: 11096.09 | K59: 0
A60: DE600 | B60: AX02H | C60: 2092 | D60: AX02H-Hall Green Junior School | F60: Chq Bk | G60: -731070.4932 | H60: -208848.8868 | I60: =SUM(G60:H60) -> -939919.38 | J60: -232298 | K60: -23449.11315
A61: DE600 | B61: AX02K | C61: 7006 | D61: AX02K-Hamilton School | F61: Non Chq Bk | G61: -305588.4934 | H61: 103936.56 | I61: -201651.9334 | J61: 103936.56 | K61: 0
A62: DE600 | B62: AX02L | C62: 2477 | D62: AX02L-Harborne Primary School | F62: Non Chq Bk | G62: -301976.363 | H62: 291273.84 | I62: -10702.52301 | J62: 291273.84 | K62: 0
A63: DE600 | B63: AX02M | C63: 2099 | D63: AX02M-Hawthorn Primary School | F63: EPA | G63: -276063.6514 | H63: 36895.79 | I63: -239167.8614 | J63: 36895.79 | K63: 0
A64: DE600 | B64: AX02N | C64: 2313 | D64: AX02N-Heath Mount Primary School | F64: Academy | G64: 0 | H64: 0 | I64: 0 | J64: -12942.6 | K64: -12942.6
A65: DE600 | B65: AX02P | C65: 1010 | D65: AX02P-Highfield Nursery School | E65: MNS | F65: Non Chq Bk | G65: -567485.3496 | H65: 34650.65 | I65: -532834.6996 | J65: 34650.65 | K65: 0
A66: DE600 | B66: AX02Q | C66: 2438 | D66: AX02Q-Highters Heath Community School | F66: Academy | G66: 0 | H66: 0 | I66: 0 | J66: 240272.28 | K66: 240272.28
A67: DE600 | B67: AX02R | C67: 1021 | D67: AX02R-Highters Heath Nursery School | E67: MNS | F67: Non Chq Bk | G67: -56183.43599 | H67: 44365.69 | I67: -11817.74599 | J67: 44365.69 | K67: 0
A68: DE600 | B68: AX02T | C68: 2429 | D68: AX02T-Holland House Infant School and Nursery | F68: Academy | G68: 0 | H68: 0 | I68: =SUM(G68:H68) -> 0 | J68: -164076.75 | K68: =J68-H68 -> -164076.75
A69: DE600 | B69: AX02U | C69: 3411 | D69: AX02U-Holly Hill Methodist CofE Infant School | F69: Non Chq Bk | G69: -177407.2659 | H69: 3319.48 | I69: -174087.7859 | J69: 3319.48 | K69: 0
A70: DE600 | B70: AX02V | C70: 2474 | D70: AX02V-Hollyfield Primary School | F70: Non Chq Bk | G70: -47784.88419 | H70: 24104.4 | I70: -23680.48419 | J70: 24104.4 | K70: 0
A71: DE600 | B71: AX02Y | C71: 3317 | D71: AX02Y-Holy Family Catholic Primary School | F71: Non Chq Bk | G71: -193827.1689 | H71: 54120.08 | I71: -139707.0889 | J71: 54120.08 | K71: 0
A72: DE600 | B72: AX030 | C72: 7026 | D72: AX030-Hunters Hill | F72: EPA | G72: -100440.0032 | H72: -3210.68 | I72: -103650.6832 | J72: -3210.68 | K72: 0
A73: DE600 | B73: AX032 | C73: 2015 | D73: AX032-James Watt Primary School | F73: Chq Bk | G73: -742449.4742 | H73: -102826 | I73: =SUM(G73:H73) -> -845275.4742 | J73: -100794.15 | K73: 2031.85
A74: DE600 | B74: AX035 | C74: 3352 | D74: AX035-King David Junior and Infant School | F74: Non Chq Bk | G74: -20489.61138 | H74: 14362.29 | I74: -6127.321378 | J74: 14362.29 | K74: 0
A75: DE600 | B75: AX036 | C75: 4063 | D75: AX036-Kings Heath Boys | F75: Non Chq Bk | G75: -746756.8332 | H75: 136089.08 | I75: -610667.7532 | J75: 136089.08 | K75: 0
A76: DE600 | B76: AX037 | C76: 2005 | D76: AX037-Kings Heath Primary School | F76: Non Chq Bk | G76: 172089.7477 | H76: 14426.89 | I76: 186516.6377 | J76: 14426.89 | K76: 0
A77: DE600 | B77: AX038 | C77: 5415 | D77: AX038-King's Norton Boys' School | F77: EPA | G77: -409076.2177 | H77: -115911.01 | I77: -524987.2277 | J77: -115911.01 | K77: 0
A78: DE600 | B78: AX039 | C78: 2118 | D78: AX039-Kings Norton Primary | F78: Academy | G78: 0 | H78: 0 | I78: 0 | J78: 137167.41 | K78: 137167.41
A79: DE600 | B79: AX03A | C79: 1016 | D79: AX03A-Kings Norton Nursery School | E79: MNS | F79: Non Chq Bk | G79: -67952.4534 | H79: 75510.19 | I79: 7557.736601 | J79: 75510.19 | K79: 0
A80: DE600 | B80: AX03B | C80: 2115 | D80: AX03B-Kingsland Primary School (NC) | F80: Non Chq Bk | G80: -459640.2757 | H80: 46204.67 | I80: -413435.6057 | J80: 46204.67 | K80: 0
A81: DE600 | B81: AX03C | C81: 2441 | D81: AX03C-Kingsthorne Primary School | F81: Non Chq Bk | G81: -608298.3945 | H81: 121025.45 | I81: -487272.9445 | J81: 121025.45 | K81: 0
A82: DE600 | B82: AX03D | C82: 2321 | D82: AX03D-Kitwell Primary School and Nursery Class | F82: Non Chq Bk | G82: -185128.8824 | H82: -58662.78 | I82: -243791.6624 | J82: -58662.78 | K82: 0
A83: DE600 | B83: AX03E | C83: 2189 | D83: AX03E-Ladypool Primary School | F83: EPA | G83: -96107.14656 | H83: -39896.98 | I83: -136004.1266 | J83: -39896.98 | K83: 0
A84: DE600 | B84: AX03F | C84: 2119 | D84: AX03F-Lakey Lane Junior and Infant School | F84: EPA | G84: -4139.533979 | H84: 113859.13 | I84: 109719.596 | J84: 113859.13 | K84: 0
A85: DE600 | B85: AX03G | C85: 7060 | D85: AX03G-Langley School | F85: EPA | G85: -284676.6188 | H85: 247188.08 | I85: -37488.53877 | J85: 247188.08 | K85: 0
A86: DE600 | B86: AX03J | C86: 1024 | D86: AX03J-Lillian de Lissa Nursery School | E86: MNS | F86: Non Chq Bk | G86: 391861.3596 | H86: 57662.41 | I86: 449523.7696 | J86: 57662.41 | K86: 0
A87: DE600 | B87: AX03K | C87: 7062 | D87: AX03K-Lindsworth School | F87: Non Chq Bk | G87: 128968.4363 | H87: -389356.81 | I87: -260388.3737 | J87: -389356.81 | K87: 0
A88: DE600 | B88: AX03L | C88: 2462 | D88: AX03L-Little Sutton Primary School | F88: Chq Bk | G88: -784632.1946 | H88: 74118.43 | I88: =SUM(G88:H88) -> -710513.7646 | J88: 47382.66 | K88: -26735.77
A89: DE600 | B89: AX03M | C89: 7012 | D89: AX03M-Longwill Primary Sch for Deaf Children | F89: EPA | G89: -12455.66905 | H89: 350849.33 | I89: 338393.6609 | J89: 350849.33 | K89: 0
A90: DE600 | B90: AX03N | C90: 2129 | D90: AX03N-Lyndon Green Infant School | F90: Chq Bk | G90: -116366.4412 | H90: -83458.14 | I90: -199824.5812 | J90: -80083.56 | K90: 3374.58
A91: DE600 | B91: AX03P | C91: 2128 | D91: AX03P-Lyndon Green Junior School | F91: Chq Bk | G91: -382804.7175 | H91: 144206.66 | I91: -238598.0575 | J91: 144206.4 | K91: -0.26
A92: DE600 | B92: AX03Q | C92: 2420 | D92: AX03Q-Maney Hill Primary School | F92: EPA | G92: -406384.2999 | H92: 105364.22 | I92: -301020.0799 | J92: 105364.22 | K92: 0
A93: DE600 | B93: AX03R | C93: 2004 | D93: AX03R-Mapledene Primary School | F93: Non Chq Bk | G93: -129181.2444 | H93: 123000.69 | I93: -6180.55438 | J93: 123000.69 | K93: 0
A94: DE600 | B94: AX03V | C94: 2133 | D94: AX03V-Marsh Hill Primary School | F94: Chq Bk | G94: -487974.4756 | H94: 35471.03 | I94: =SUM(G94:H94) -> -452503.4456 | J94: -286367.88 | K94: -321838.91
A95: DE600 | B95: AX03W | C95: 1012 | D95: AX03W-Marsh Hill Nursery School | E95: MNS | F95: Non Chq Bk | G95: -214344.3908 | H95: -77262.34 | I95: -291606.7308 | J95: -77262.34 | K95: 0
A96: DE600 | B96: AX03X | C96: 3322 | D96: AX03X-Maryvale Catholic Primary School | F96: Chq Bk | G96: -133853.511 | H96: 84.34 | I96: =SUM(G96:H96) -> -133769.171 | J96: -19081.47 | K96: -19165.81
A97: DE600 | B97: AX03Y | C97: 7040 | D97: AX03Y-Mayfield School | F97: Non Chq Bk | G97: 0 | H97: 0 | I97: 0 | J97: 0 | K97: 0
A98: DE600 | B98: AX03Z | C98: 2246 | D98: AX03Z-The Meadows Primary School | F98: Non Chq Bk | G98: -304201.9512 | H98: -103572.02 | I98: -407773.9712 | J98: -103572.02 | K98: 0
A99: DE600 | B99: AX040 | C99: 2406 | D99: AX040-Minworth Junior and Infant School | F99: EPA | G99: -210915.6227 | H99: -69380.7 | I99: -280296.3227 | J99: -69380.7 | K99: 0
A100: DE600 | B100: AX041 | C100: 2416 | D100: AX041-Moor Hall Primary School | F100: Non Chq Bk | G100: -28012.74134 | H100: 52464.18 | I100: 24451.43866 | J100: 52464.18 | K100: 0
A101: DE600 | B101: AX042 | C101: 3003 | D101: AX042-Moseley Church of England Primary School | F101: Non Chq Bk | G101: -103047.0798 | H101: -10947.56 | I101: -113994.6398 | J101: -10947.56 | K101: 0
A102: DE600 | B102: AX043 | C102: 2142 | D102: AX043-Nelson Primary School | F102: Non Chq Bk | G102: -1196268.229 | H102: 134216.24 | I102: -1062051.989 | J102: 134216.24 | K102: 0
A103: DE600 | B103: AX044 | C103: 2457 | D103: AX044-Nelson Mandela School | F103: Non Chq Bk | G103: -817621.9726 | H103: -12395.06 | I103: -830017.0326 | J103: -12395.06 | K103: 0
A104: DE600 | B104: AX045 | C104: 2469 | D104: AX045-New Hall Primary School | F104: Non Chq Bk | G104: -441666.6342 | H104: -118194.53 | I104: -559861.1642 | J104: -118194.53 | K104: 0
A105: DE600 | B105: AX046 | C105: 3431 | D105: AX046-New Oscott Primary School | F105: Non Chq Bk | G105: -69743.62491 | H105: 73345.96 | I105: 3602.335086 | J105: 73345.96 | K105: 0
A106: DE600 | B106: AX047 | C106: 1028 | D106: AX047-Newtown Nursery School | E106: MNS | F106: Non Chq Bk | G106: 58932.04291 | H106: 76368.3 | I106: 135300.3429 | J106: 76368.3 | K106: 0
A107: DE600 | B107: AX049 | C107: 3323 | D107: AX049-The Oratory Roman Catholic Primary Sch | F107: Chq Bk | G107: -116743.2377 | H107: -64958 | I107: =SUM(G107:H107) -> -181701.2377 | J107: 6870.97 | K107: 71828.97
A108: DE600 | B108: AX04A | C108: 2436 | D108: AX04A-Osborne Primary School | F108: EPA | G108: 0 | H108: 0 | I108: =SUM(G108:H108) -> 0 | J108: 0 | K108: 0
A109: DE600 | B109: AX04B | C109: 1049 | D109: AX04B-Osborne Nursery School | E109: MNS | F109: Non Chq Bk | G109: -338926.9948 | H109: 57189.31 | I109: -281737.6848 | J109: 57189.31 | K109: 0
A110: DE600 | B110: AX04C | C110: 7053 | D110: AX04C-Oscott Manor School | F110: Non Chq Bk | G110: -667966.6127 | H110: 359210.49 | I110: -308756.1227 | J110: 359210.49 | K110: 0
A111: DE600 | B111: AX04D | C111: 3351 | D111: AX04D-Our Lady & St Rose of Lima Cath Prim Sch | F111: EPA | G111: -167375.5872 | H111: -7794.56 | I111: -175170.1472 | J111: -7794.56 | K111: 0
A112: DE600 | B112: AX04E | C112: 3328 | D112: AX04E-Our Lady of Lourdes Catholic Prim Schl | F112: EPA | G112: -233425.3174 | H112: -59550.52 | I112: -292975.8374 | J112: -59550.52 | K112: 0
A113: DE600 | B113: AX04G | C113: 2021 | D113: AX04G-Paganel Primary School | F113: EPA | G113: -390955.5116 | H113: 25503.74 | I113: -365451.7716 | J113: 25503.74 | K113: 0
A114: DE600 | B114: AX04H | C114: 2149 | D114: AX04H-Paget Primary School | F114: Non Chq Bk | G114: -356232.3205 | H114: -71795.17 | I114: -428027.4905 | J114: -71795.17 | K114: 0
A115: DE600 | B115: AX04J | C115: 2150 | D115: AX04J-Park Hill Primary School | F115: Non Chq Bk | G115: 185819.9857 | H115: 120417.16 | I115: 306237.1457 | J115: 120417.16 | K115: 0
A116: DE600 | B116: AX04K | C116: 2425 | D116: AX04K-Penns Primary School | F116: Non Chq Bk | G116: -34964.31187 | H116: 231810.25 | I116: 196845.9381 | J116: 231810.25 | K116: 0
A117: DE600 | B117: AX04L | C117: 2017 | D117: AX04L-Beeches Infant School | F117: Non Chq Bk | G117: -8990.270341 | H117: 1259.84 | I117: -7730.430341 | J117: 1259.84 | K117: 0
A118: DE600 | B118: AX04M | C118: 2016 | D118: AX04M-Beeches Junior School | F118: Non Chq Bk | G118: -347050.0452 | H118: 158492.06 | I118: -188557.9852 | J118: 158492.06 | K118: 0
A119: DE600 | B119: AX04N | C119: 1008 | D119: AX04N-Perry Beeches Nursery School | E119: MNS | F119: Non Chq Bk | G119: -128087.7489 | H119: 19945.37 | I119: -108142.3789 | J119: 19945.37 | K119: 0
A120: DE600 | B120: AX04P | C120: 7045 | D120: AX04P-The Pines Special School | F120: EPA | G120: -1109092.219 | H120: 71931.3 | I120: -1037160.919 | J120: 71931.3 | K120: 0
A121: DE600 | B121: AX04Q | C121: 7034 | D121: AX04Q-Priestley Smith School | F121: Non Chq Bk | G121: -284667.9064 | H121: 46693.03 | I121: -237974.8764 | J121: 46693.03 | K121: 0
A122: DE600 | B122: AX04V | C122: 2157 | D122: AX04V-Raddlebarn Primary School | F122: Non Chq Bk | G122: 28539.49306 | H122: 115640.97 | I122: 144180.4631 | J122: 115640.97 | K122: 0
A123: DE600 | B123: AX04W | C123: 2159 | D123: AX04W-Redhill Primary School | F123: Non Chq Bk | G123: 103873.0906 | H123: -86234.68 | I123: 17638.41058 | J123: -86234.68 | K123: 0
A124: DE600 | B124: AX04X | C124: 2161 | D124: AX04X-Rednal Hill Infant School | F124: Non Chq Bk | G124: -277308.1469 | H124: 11739.5 | I124: -265568.6469 | J124: 11739.5 | K124: 0
A125: DE600 | B125: AX04Y | C125: 2160 | D125: AX04Y-Rednal Hill Junior School | F125: EPA | G125: -258616.6787 | H125: -24574.48 | I125: -283191.1587 | J125: -24574.48 | K125: 0
A126: DE600 | B126: AX04Z | C126: 2063 | D126: AX04Z-Regents Park Community Primary School | F126: EPA | G126: -227057.2018 | H126: 68324.17 | I126: -158733.0318 | J126: 68324.17 | K126: 0
A127: DE600 | B127: AX052 | C127: 1018 | D127: AX052-Rubery Nursery School | E127: MNS | F127: Non Chq Bk | G127: -60483.25783 | H127: 62723.55 | I127: 2240.292172 | J127: 62723.55 | K127: 0
A128: DE600 | B128: AX053 | C128: 1000 | D128: AX053-Selly Oak Nursery School | E128: MNS | F128: Non Chq Bk | G128: -18803.24322 | H128: 68123.93 | I128: 49320.68678 | J128: 68123.93 | K128: 0
A129: DE600 | B129: AX054 | C129: 2169 | D129: AX054-Severne Junior Infant and Nursery School | F129: Non Chq Bk | G129: -472388.7585 | H129: 138858.03 | I129: -333530.7285 | J129: 138858.03 | K129: 0
A130: DE600 | B130: AX055 | C130: 2008 | D130: AX055-Shaw Hill Primary School | F130: EPA | G130: -344457.5118 | H130: 140844.4 | I130: -203613.1118 | J130: 140844.4 | K130: 0
A131: DE600 | B131: AX056 | C131: 1038 | D131: AX056-Shenley Fields Nursery School | E131: MNS | F131: Chq Bk | G131: -238932 | H131: 46707 | I131: =SUM(G131:H131) -> -192225 | J131: 377826.01 | K131: 331119.01
A132: DE600 | B132: AX057 | C132: 7037 | D132: AX057-Skilts School | F132: Non Chq Bk | G132: 0 | H132: 7.275957614e-12 | I132: 7.275957614e-12 | J132: 7.275957614e-12 | K132: =J132-H132 -> 0
A133: DE600 | B133: AX059 | C133: 2176 | D133: AX059-Somerville Primary (NC) School | F133: EPA | G133: -266346.9551 | H133: 15771.73 | I133: -250575.2251 | J133: 15771.73 | K133: 0
A134: DE600 | B134: AX05A | C134: 7047 | D134: AX05A-Springfield House Community Special Sch | F134: Non Chq Bk | G134: -58526.63572 | H134: -7494.21 | I134: -66020.84572 | J134: -7494.21 | K134: 0
A135: DE600 | B135: AX05C | C135: 3381 | D135: AX05C-St Alban's Catholic Primary School | F135: Non Chq Bk | G135: 68784.92424 | H135: -11253.8 | I135: 57531.12424 | J135: -11253.8 | K135: 0
A136: DE600 | B136: AX05D | C136: 3380 | D136: AX05D-St Ambrose Barlow Catholic Primary Sch | F136: EPA | G136: -175282.9571 | H136: 110136.03 | I136: -65146.92714 | J136: 110136.03 | K136: 0
A137: DE600 | B137: AX05E | C137: 3335 | D137: AX05E-St Anne's Catholic Primary School | F137: EPA | G137: -6449.263271 | H137: -34843.45 | I137: -41292.71327 | J137: -34843.45 | K137: 0
A138: DE600 | B138: AX05F | C138: 3329 | D138: AX05F-St Augustine's Catholic Primary School | F138: Non Chq Bk | G138: -102457.6865 | H138: 17069.78 | I138: -85387.90646 | J138: 17069.78 | K138: 0
A139: DE600 | B139: AX05H | C139: 2183 | D139: AX05H-St Benedict's Primary School | F139: Non Chq Bk | G139: 316210.9802 | H139: -292771.61 | I139: 23439.37017 | J139: -292771.61 | K139: 0
A140: DE600 | B140: AX05J | C140: 3372 | D140: AX05J-St Bernadette's Catholic Primary School | F140: EPA | G140: -325046.3786 | H140: -29643.13 | I140: -354689.5086 | J140: -29643.13 | K140: 0
A141: DE600 | B141: AX05K | C141: 3375 | D141: AX05K-St Bernard's Catholic Primary School | F141: Non Chq Bk | G141: -251829.1336 | H141: 28842.8 | I141: -222986.3336 | J141: 28842.8 | K141: 0
A142: DE600 | B142: AX05L | C142: 3331 | D142: AX05L-St Catherine of Siena Catholic Prim Sch | F142: Non Chq Bk | G142: -69295.94346 | H142: 21742.69 | I142: -47553.25346 | J142: 21742.69 | K142: 0
A143: DE600 | B143: AX05N | C143: 3406 | D143: AX05N-St Clare's Catholic Primary School | F143: Non Chq Bk | G143: -338534.9268 | H143: 78420.19 | I143: -260114.7368 | J143: 78420.19 | K143: 0
A144: DE600 | B144: AX05P | C144: 3386 | D144: AX05P-St Cuthbert's Catholic Primary School | F144: Non Chq Bk | G144: -162113.5035 | H144: -2975.15 | I144: -165088.6535 | J144: -2975.15 | K144: 0
A145: DE600 | B145: AX05Q | C145: 3363 | D145: AX05Q-St Dunstan's Catholic Primary School | F145: Chq Bk | G145: -262510.8137 | H145: -7596.32 | I145: =SUM(G145:H145) -> -270107.1337 | J145: -6257.9 | K145: 1338.42
A146: DE600 | B146: AX05T | C146: 3347 | D146: AX05T-St Edmund's Catholic Primary School | F146: Non Chq Bk | G146: -95743.37885 | H146: 93263.05 | I146: -2480.328846 | J146: 93263.05 | K146: 0
A147: DE600 | B147: AX05U | C147: 3355 | D147: AX05U-St Edward's Catholic Primary School | F147: EPA | G147: -159010.5189 | H147: -6432.01 | I147: -165442.5289 | J147: -6432.01 | K147: 0
A148: DE600 | B148: AX05V | C148: 3342 | D148: AX05V-St Francis Catholic Primary School | F148: Non Chq Bk | G148: -342085.8205 | H148: -98652.32 | I148: -440738.1405 | J148: -98652.32 | K148: 0
A149: DE600 | B149: AX05Y | C149: 3367 | D149: AX05Y-St Gerard's Catholic Primary School | F149: EPA | G149: -178624.0991 | H149: 58085.23 | I149: -120538.8691 | J149: 58085.23 | K149: 0
A150: DE600 | B150: AX05Z | C150: 3010 | D150: AX05Z-St James Church of England Primary Sch | F150: Non Chq Bk | G150: -301717.8466 | H150: -120607.87 | I150: -422325.7166 | J150: -120607.87 | K150: 0
A151: DE600 | B151: AX061 | C151: 3410 | D151: AX061-SS John & Monica Catholic Primary School | F151: EPA | G151: -232746.9018 | H151: 65731.52 | I151: -167015.3818 | J151: 65731.52 | K151: 0
A152: DE600 | B152: AX063 | C152: 4625 | D152: AX063-St John Wall Catholic School | F152: Non Chq Bk | G152: -155639.1298 | H152: -99943.6 | I152: -255582.7298 | J152: -99943.6 | K152: 0
A153: DE600 | B153: AX066 | C153: 3377 | D153: AX066-St Jude's Catholic Primary School | F153: Chq Bk | G153: -252619.4082 | H153: 45621.66 | I153: -206997.7482 | J153: 659.08 | K153: -44962.58
A154: DE600 | B154: AX067 | C154: 3371 | D154: AX067-St Laurence Church Infant School | F154: Chq Bk | G154: -122801.735 | H154: 66864.02 | I154: -55937.71502 | J154: 63802.5 | K154: -3061.52
A155: DE600 | B155: AX068 | C155: 3307 | D155: AX068-St Laurence Church Junior School | F155: Non Chq Bk | G155: -235270.3773 | H155: 36990.22 | I155: -198280.1573 | J155: 36990.22 | K155: 0
A156: DE600 | B156: AX069 | C156: 3361 | D156: AX069-St Margaret Mary Catholic Primary School | F156: EPA | G156: -306675.2788 | H156: 101528 | I156: -205147.2788 | J156: 101528 | K156: 0
A157: DE600 | B157: AX06A | C157: 3383 | D157: AX06A-St Mark's Catholic Primary School | F157: Academy | G157: 0 | H157: 0 | I157: 0 | J157: 30007.07 | K157: 30007.07
A158: DE600 | B158: AX06B | C158: 3382 | D158: AX06B-St Martin de Porres Catholic Primary Sch | F158: Non Chq Bk | G158: -139450.6018 | H158: 48085.19 | I158: -91365.41181 | J158: 48085.19 | K158: 0
A159: DE600 | B159: AX06D | C159: 3025 | D159: AX06D-St Mary's Church of England Primary Sch | F159: Non Chq Bk | G159: -107751.006 | H159: 56192.28 | I159: -51558.72602 | J159: 56192.28 | K159: 0
A160: DE600 | B160: AX06E | C160: 3344 | D160: AX06E-St Mary's Catholic Primary School | F160: EPA | G160: -229849.4148 | H160: 1026.82 | I160: -228822.5948 | J160: 1026.82 | K160: 0
A161: DE600 | B161: AX06F | C161: 3016 | D161: AX06F-St Matthew's CofE Primary School | F161: Chq Bk | G161: -473232.1529 | H161: -13276.94 | I161: =SUM(G161:H161) -> -486509.0929 | J161: 16413.35 | K161: 29690.29
A162: DE600 | B162: AX06H | C162: 3346 | D162: AX06H-St Patrick's Catholic Primary School | F162: Non Chq Bk | G162: 188107.6644 | H162: 75851.56 | I162: 263959.2244 | J162: 75851.56 | K162: 0
A163: DE600 | B163: AX06L | C163: 3428 | D163: AX06L-St Peters CofE Primary School | F163: Chq Bk | G163: -299586 | H163: 24203.59 | I163: =SUM(G163:H163) -> -275382.41 | J163: -63344.88 | K163: -87548.47
A164: DE600 | B164: AX06M | C164: 3385 | D164: AX06M-St Peter's Catholic Primary School | F164: EPA | G164: -257424.0591 | H164: 100128.98 | I164: -157295.0791 | J164: 100128.98 | K164: 0
A165: DE600 | B165: AX06N | C165: 3019 | D165: AX06N-St Saviour's C of E Primary School | F165: EPA | G165: -553681.9582 | H165: 9842.3 | I165: -543839.6582 | J165: 9842.3 | K165: 0
A166: DE600 | B166: AX06P | C166: 3365 | D166: AX06P-St Teresa's Catholic Primary School | F166: Non Chq Bk | G166: -247500.4396 | H166: -74422.34 | I166: -321922.7796 | J166: -74422.34 | K166: 0
A167: DE600 | B167: AX06R | C167: 1009 | D167: AX06R-St Thomas Centre Nursery School | E167: MNS | F167: Non Chq Bk | G167: 712538.9063 | H167: 510350.28 | I167: 1222889.186 | J167: 510350.28 | K167: 0
A168: DE600 | B168: AX06U | C168: 3310 | D168: AX06U-St Vincent's Catholic Primary School | F168: Non Chq Bk | G168: -164094.2551 | H168: 55092.08 | I168: -109002.1751 | J168: 55092.08 | K168: 0
A169: DE600 | B169: AX06W | C169: 2178 | D169: AX06W-Stanville Primary School | F169: EPA | G169: -151201.2155 | H169: 100249.44 | I169: -50951.77545 | J169: 100249.44 | K169: 0
A170: DE600 | B170: AX06Y | C170: 2184 | D170: AX06Y-Stechford Primary School | F170: Non Chq Bk | G170: -668595.9225 | H170: -94484.71 | I170: -763080.6325 | J170: -94484.71 | K170: 0
A171: DE600 | B171: AX070 | C171: 2097 | D171: AX070-Story Wood School | F171: EPA | G171: -349024.6838 | H171: -21580.09 | I171: -370604.7738 | J171: -21580.09 | K171: 0
A172: DE600 | B172: AX071 | C172: 2067 | D172: AX071-Summerfield School | F172: Non Chq Bk | G172: -406970.3865 | H172: -30527.94 | I172: =SUM(G172:H172) -> -437498.3265 | J172: -30527.94 | K172: 0
A173: DE600 | B173: AX072 | C173: 2190 | D173: AX072-Sundridge Primary School | F173: EPA | G173: -293701.188 | H173: 97198.76 | I173: -196502.428 | J173: 97198.76 | K173: 0
A174: DE600 | B174: AX073 | C174: 1100 | D174: AX073-City of Birmingham School | F174: EPA | G174: -291935.1392 | H174: 619105.55 | I174: 327170.4108 | J174: 619105.55 | K174: 0
A175: DE600 | B175: AX074 | C175: 2018 | D175: AX074-The Oaks Primary School | F175: Academy | G175: 0 | H175: 0 | I175: 0 | J175: 229096.57 | K175: 229096.57
A176: DE600 | B176: AX075 | C176: 2192 | D176: AX075-Thornton Primary School | F176: Non Chq Bk | G176: -486671.6391 | H176: 128553.73 | I176: -358117.9091 | J176: 128553.73 | K176: 0
A177: DE600 | B177: AX07A | C177: 7014 | D177: AX07A-Uffculme School | F177: Chq Bk | G177: -1507584 | H177: 140533.24 | I177: =SUM(G177:H177) -> -1367050.76 | J177: 164008.05 | K177: 23474.81
A178: DE600 | B178: AX07B | C178: 2108 | D178: AX07B-Ward End Primary School | F178: Non Chq Bk | G178: -1079540.339 | H178: 101953.18 | I178: -977587.1593 | J178: 101953.18 | K178: 0
A179: DE600 | B179: AX07D | C179: 1019 | D179: AX07D-Washwood Heath Nursery School | E179: MNS | F179: EPA | G179: 349750.604 | H179: 34312.49 | I179: 384063.094 | J179: 34312.49 | K179: 0
A180: DE600 | B180: AX07E | C180: 2306 | D180: AX07E-Water Mill Primary School | F180: EPA | G180: -289080.6825 | H180: -44141.53 | I180: -333222.2125 | J180: -44141.53 | K180: 0
A181: DE600 | B181: AX07F | C181: 2482 | D181: AX07F-Wattville Primary School | F181: EPA | G181: -148545.7804 | H181: 111013.51 | I181: -37532.27043 | J181: 111013.51 | K181: 0
A182: DE600 | B182: AX07H | C182: 2245 | D182: AX07H-Welsh Hse Farm Comm Sch&SpecNeedsResBase | F182: EPA | G182: -216720.5316 | H182: -187337.98 | I182: -404058.5116 | J182: -187337.98 | K182: 0
A183: DE600 | B183: AX07J | C183: 1020 | D183: AX07J-Weoley Castle Nursery School | E183: MNS | F183: Non Chq Bk | G183: -7346.719411 | H183: 49014.17 | I183: 41667.45059 | J183: 49014.17 | K183: 0
A184: DE600 | B184: AX07K | C184: 1014 | D184: AX07K-West Heath Nursery School | E184: MNS | F184: Non Chq Bk | G184: -131482.2042 | H184: -27224.66 | I184: -158706.8642 | J184: -27224.66 | K184: 0
A185: DE600 | B185: AX07L | C185: 2019 | D185: AX07L-West Heath Primary School | F185: Non Chq Bk | G185: 38173.80303 | H185: -99030.74 | I185: -60856.93697 | J185: -99030.74 | K185: 0
A186: DE600 | B186: AX07N | C186: 4193 | D186: AX07N-Wheelers Lane Technology College | F186: Non Chq Bk | G186: -42612.32706 | H186: -409612.17 | I186: -452224.4971 | J186: -409612.17 | K186: 0
A187: DE600 | B187: AX07P | C187: 2011 | D187: AX07P-Wheelers Lane Primary School | F187: Chq Bk | G187: -436236.3438 | H187: -138043.3304 | I187: =SUM(G187:H187) -> -574279.6742 | J187: -138042.91 | K187: 0.4204022656
A188: DE600 | B188: AX07Q | C188: 2478 | D188: AX07Q-Whitehouse Common Primary School | F188: EPA | G188: -220793.4273 | H188: -71239.28 | I188: -292032.7073 | J188: -71239.28 | K188: 0
A189: DE600 | B189: AX07T | C189: 2293 | D189: AX07T-William Murdoch Primary School | F189: Chq Bk | G189: -2105482.677 | H189: 1209292.74 | I189: =SUM(G189:H189) -> -896189.9365 | J189: 900626.36 | K189: -308666.38
A190: DE600 | B190: AX07U | C190: 2445 | D190: AX07U-Woodcock Hill Primary School | F190: EPA | G190: -88954.46155 | H190: 86114.18 | I190: -2840.28155 | J190: 86114.18 | K190: 0
A191: DE600 | B191: AX07V | C191: 2278 | D191: AX07V-Woodgate Primary School | F191: EPA | G191: -273002.6272 | H191: -677774.5 | I191: -950777.1272 | J191: -677774.5 | K191: 0
A192: DE600 | B192: AX07W | C192: 2314 | D192: AX07W-Woodthorpe Junior and Infant School | F192: Non Chq Bk | G192: -92300.46769 | H192: 24864.15 | I192: -67436.31769 | J192: 24864.15 | K192: 0
A193: DE600 | B193: AX07X | C193: 2317 | D193: AX07X-World's End Infant and Nursery School | F193: EPA | G193: -103938.2581 | H193: 14190.39 | I193: -89747.86811 | J193: 14190.39 | K193: 0
A194: DE600 | B194: AX07Y | C194: 2412 | D194: AX07Y-Wylde Green Primary School | F194: Chq Bk | G194: -476825.6773 | H194: 11778.86 | I194: =SUM(G194:H194) -> -465046.8173 | J194: 12643.87 | K194: 865.01
A195: DE600 | B195: AX080 | C195: 3421 | D195: AX080-Yardley Primary School | F195: EPA | G195: -529822.2111 | H195: -57501.7 | I195: -587323.9111 | J195: -57501.7 | K195: 0
A196: DE600 | B196: AX081 | C196: 2227 | D196: AX081-Yardley Wood Community Primary School | F196: Non Chq Bk | G196: -383723.6577 | H196: 46136.2 | I196: -337587.4577 | J196: 46136.2 | K196: =J196-H196 -> 0
A197: DE600 | B197: AX083 | C197: 2231 | D197: AX083-Yorkmead Junior and Infant School | F197: Non Chq Bk | G197: -289803.4651 | H197: 76241.09 | I197: -213562.3751 | J197: 76241.09 | K197: 0
A198: DE600 | B198: AX085 | C198: 2010 | D198: AX085-Adderley Primary School | F198: Chq Bk | G198: -500372.0529 | H198: 54255.15 | I198: =SUM(G198:H198) -> -446116.9029 | J198: 78040.29 | K198: 23785.14
A199: DE600 | B199: AX087 | C199: 1017 | D199: AX087-Allens Croft Nursery School | E199: MNS | F199: Chq Bk | G199: -169669.1957 | H199: 10728.68 | I199: =SUM(G199:H199) -> -158940.5157 | J199: -37403.65 | K199: -48132.33
A200: DE600 | B200: AX08C | C200: 5413 | D200: AX08C-Bishop Challoner Catholic College | F200: Chq Bk | G200: -489501.1891 | H200: 138374.36 | I200: =SUM(G200:H200) -> -351126.8291 | J200: 130063.23 | K200: -8311.13
... 31 more rows

Sheet School Closing Balances 2022-23 (hidden)
A1: Schools Closing Balances | C1: 2022-23 | G1: *Please note: Negatives are surpluses | H1: Revenue | L1: DEVOLVED CAPITAL | O1: ENERGY EFFICIENCY GRANT
H2: Opening | I2: In-year | J2: Published C/Fwd | L2: Opening | M2: In-year | N2: Closing | O2: Opening | P2: In-year | Q2: Closing
A3: Oracle Cost Centre | B3: Type | C3: SAP | D3: LA No | E3: DFE No | F3: School Number | G3: School Name | H3: Balance | I3: (Surplus)/Defict | J3: after Adjustment | L3: Balance | M3: (Surplus)/Defict | N3: Balance | O3: Balance | P3: (Surplus)/Defict | Q3: Balance
A4: AX001 | B4: =_xlfn.XLOOKUP(A4,[9]Sheet2!A:A,[9]Sheet2!D:D,0,FALSE) -> EPA | C4: REAYW | D4: 330 | E4: 1027 | F4: 3301027 | G4: ADDERLEY Nurs | H4: 148341.298 | I4: -145919.4 | J4: 2421.89798 | L4: -5114.7 | M4: -4864 | N4: -9978.7 | O4: =-_xlfn.XLOOKUP(A4,[10]Capital!B:B,[10]Capital!AG:AG,0,FALSE) -> -11540.61 | P4: =_xlfn.XLOOKUP(A4,[10]Capital!B:B,[10]Capital!AH:AH,0,FALSE) -> 0 | Q4: =O4+P4 -> -11540.61
A5: AX00U | B5: =_xlfn.XLOOKUP(A5,[9]Sheet2!A:A,[9]Sheet2!D:D,0,FALSE) -> EPA | C5: REAYZ | D5: 330 | E5: 1001 | F5: 3301001 | G5: BORDESLEY GREEN Nurs | H5: 13592.32212 | I5: 10582.69 | J5: 24175.01212 | L5: -21804.73 | M5: -4472.5 | N5: -26277.23 | O5: =-_xlfn.XLOOKUP(A5,[10]Capital!B:B,[10]Capital!AG:AG,0,FALSE) -> -10842.52 | P5: =_xlfn.XLOOKUP(A5,[10]Capital!B:B,[10]Capital!AH:AH,0,FALSE) -> 0 | Q5: =O5+P5 -> -10842.52
A6: AX01Q | B6: =_xlfn.XLOOKUP(A6,[9]Sheet2!A:A,[9]Sheet2!D:D,0,FALSE) -> EPA | C6: REAYF | D6: 330 | E6: 1802 | F6: 3301802 | G6: EDITH CADBURY Nrsy | H6: 48973.26743 | I6: -5790.86 | J6: 43182.40743 | L6: -9212.44 | M6: -4560.25 | N6: -13772.69 | O6: =-_xlfn.XLOOKUP(A6,[10]Capital!B:B,[10]Capital!AG:AG,0,FALSE) -> -10998.99 | P6: =_xlfn.XLOOKUP(A6,[10]Capital!B:B,[10]Capital!AH:AH,0,FALSE) -> 0 | Q6: -10998.99
A7: AX07D | B7: =_xlfn.XLOOKUP(A7,[9]Sheet2!A:A,[9]Sheet2!D:D,0,FALSE) -> EPA | C7: REAZW | D7: 330 | E7: 1019 | F7: 3301019 | G7: WASHWOOD HEATH Nurs | H7: 349750.604 | I7: 34312.49 | J7: 384063.094 | L7: -29669.64 | M7: -5080 | N7: -34749.64 | O7: =-_xlfn.XLOOKUP(A7,[10]Capital!B:B,[10]Capital!AG:AG,0,FALSE) -> -11925.76 | P7: =_xlfn.XLOOKUP(A7,[10]Capital!B:B,[10]Capital!AH:AH,0,FALSE) -> 0 | Q7: -11925.76
A8: AX004 | B8: =_xlfn.XLOOKUP(A8,[9]Sheet2!A:A,[9]Sheet2!D:D,0,FALSE) -> EPA | C8: REAAH | D8: 330 | E8: 2153 | F8: 3302153 | G8: ALLENS CROFT JI | H8: -860880.0203 | I8: 663560.12 | J8: -197319.9003 | L8: -12460.96 | M8: 29702.75 | N8: 17241.79 | O8: =-_xlfn.XLOOKUP(A8,[10]Capital!B:B,[10]Capital!AG:AG,0,FALSE) -> -17241.66 | P8: =_xlfn.XLOOKUP(A8,[10]Capital!B:B,[10]Capital!AH:AH,0,FALSE) -> 0 | Q8: -17241.66
A9: AX007 | B9: =_xlfn.XLOOKUP(A9,[9]Sheet2!A:A,[9]Sheet2!D:D,0,FALSE) -> EPA | C9: REAAM | D9: 330 | E9: 2479 | F9: 3302479 | G9: ANGLESEY JI NC | H9: -606379.3357 | I9: -185311.46 | J9: -791690.7957 | L9: -12241.75 | M9: 9987.56 | N9: -2254.19 | O9: =-_xlfn.XLOOKUP(A9,[10]Capital!B:B,[10]Capital!AG:AG,0,FALSE) -> -24362.96 | P9: =_xlfn.XLOOKUP(A9,[10]Capital!B:B,[10]Capital!AH:AH,0,FALSE) -> 0 | Q9: -24362.96
A10: AX00G | B10: =_xlfn.XLOOKUP(A10,[9]Sheet2!A:A,[9]Sheet2!D:D,0,FALSE) -> EPA | C10: REAAY | D10: 330 | E10: 2239 | F10: 3302239 | G10: BELLFIELD I NC | H10: -262055.4013 | I10: 123894.55 | J10: -138160.8513 | L10: -10744.4 | M10: 1242.31 | N10: -9502.09 | O10: =-_xlfn.XLOOKUP(A10,[10]Capital!B:B,[10]Capital!AG:AG,0,FALSE) -> -13711.1 | P10: =_xlfn.XLOOKUP(A10,[10]Capital!B:B,[10]Capital!AH:AH,0,FALSE) -> 0 | Q10: -13711.1
A11: AX00K | B11: =_xlfn.XLOOKUP(A11,[9]Sheet2!A:A,[9]Sheet2!D:D,0,FALSE) -> EPA | C11: REABB | D11: 330 | E11: 2435 | F11: 3302435 | G11: BENSON JI NC | H11: -587426.9455 | I11: 132123.91 | J11: -455303.0355 | L11: -5685.69 | M11: -8798.12 | N11: -14483.81 | O11: =-_xlfn.XLOOKUP(A11,[10]Capital!B:B,[10]Capital!AG:AG,0,FALSE) -> -18555.59 | P11: =_xlfn.XLOOKUP(A11,[10]Capital!B:B,[10]Capital!AH:AH,0,FALSE) -> 0 | Q11: -18555.59
A12: AX013 | B12: =_xlfn.XLOOKUP(A12,[9]Sheet2!A:A,[9]Sheet2!D:D,0,FALSE) -> EPA | C12: REACB | D12: 330 | E12: 2465 | F12: 3302465 | G12: CALSHOT JI NC | H12: -64328.77497 | I12: -28093.15 | J12: -92421.92497 | L12: -10528.83 | M12: 13722.96 | N12: 3194.13 | O12: =-_xlfn.XLOOKUP(A12,[10]Capital!B:B,[10]Capital!AG:AG,0,FALSE) -> -18786.28 | P12: =_xlfn.XLOOKUP(A12,[10]Capital!B:B,[10]Capital!AH:AH,0,FALSE) -> 0 | Q12: -18786.28
A13: AX018 | B13: =_xlfn.XLOOKUP(A13,[9]Sheet2!A:A,[9]Sheet2!D:D,0,FALSE) -> EPA | C13: REACF | D13: 330 | E13: 2040 | F13: 3302040 | G13: CHERRY ORCHARD JI NC | H13: -112202.054 | I13: 118629.57 | J13: 6427.515981 | L13: 0 | M13: -7060.06 | N13: -7060.06 | O13: =-_xlfn.XLOOKUP(A13,[10]Capital!B:B,[10]Capital!AG:AG,0,FALSE) -> -19203.53 | P13: =_xlfn.XLOOKUP(A13,[10]Capital!B:B,[10]Capital!AH:AH,0,FALSE) -> 0 | Q13: -19203.53
A14: AX01B | B14: =_xlfn.XLOOKUP(A14,[9]Sheet2!A:A,[9]Sheet2!D:D,0,FALSE) -> EPA | C14: REACN | D14: 330 | E14: 3432 | F14: 3303432 | G14: CLIFTON JI NC | H14: -654009.8654 | I14: 317278.12 | J14: -336731.7454 | L14: -1364.43 | M14: -9820.25 | N14: -11184.68 | O14: =-_xlfn.XLOOKUP(A14,[10]Capital!B:B,[10]Capital!AG:AG,0,FALSE) -> -26886.51 | P14: =_xlfn.XLOOKUP(A14,[10]Capital!B:B,[10]Capital!AH:AH,0,FALSE) -> 0 | Q14: -26886.51
A15: AX01E | B15: =_xlfn.XLOOKUP(A15,[9]Sheet2!A:A,[9]Sheet2!D:D,0,FALSE) -> EPA | C15: REACQ | D15: 330 | E15: 2185 | F15: 3302185 | G15: COLEBOURNE JI | H15: -233913.2491 | I15: 10249.52 | J15: -223663.7291 | L15: -9116.49 | M15: -9087.25 | N15: -18203.74 | O15: =-_xlfn.XLOOKUP(A15,[10]Capital!B:B,[10]Capital!AG:AG,0,FALSE) -> -19071.13 | P15: =_xlfn.XLOOKUP(A15,[10]Capital!B:B,[10]Capital!AH:AH,0,FALSE) -> 0 | Q15: -19071.13
A16: AX01G | B16: =_xlfn.XLOOKUP(A16,[9]Sheet2!A:A,[9]Sheet2!D:D,0,FALSE) -> EPA | C16: REACY | D16: 330 | E16: 2464 | F16: 3302464 | G16: COPPICE JI | H16: -91418.27429 | I16: 332044.67 | J16: 240626.3957 | L16: -3275.21 | M16: 2915.75 | N16: -359.46 | O16: =-_xlfn.XLOOKUP(A16,[10]Capital!B:B,[10]Capital!AG:AG,0,FALSE) -> -18445.26 | P16: =_xlfn.XLOOKUP(A16,[10]Capital!B:B,[10]Capital!AH:AH,0,FALSE) -> 0 | Q16: -18445.26
A17: AX01R | B17: =_xlfn.XLOOKUP(A17,[9]Sheet2!A:A,[9]Sheet2!D:D,0,FALSE) -> EPA | C17: READJ | D17: 330 | E17: 2454 | F17: 3302454 | G17: ELMS FARM JI NC | H17: -356218.3866 | I17: -90989.54 | J17: -447207.9266 | L17: -11307.29 | M17: 1380.38 | N17: -9926.91 | O17: =-_xlfn.XLOOKUP(A17,[10]Capital!B:B,[10]Capital!AG:AG,0,FALSE) -> -17049.08 | P17: =_xlfn.XLOOKUP(A17,[10]Capital!B:B,[10]Capital!AH:AH,0,FALSE) -> 0 | Q17: -17049.08
A18: AX01T | B18: =_xlfn.XLOOKUP(A18,[9]Sheet2!A:A,[9]Sheet2!D:D,0,FALSE) -> EPA | C18: READK | D18: 330 | E18: 3321 | F18: 3303321 | G18: ENGLISH MARTYRS RC JI | H18: -344067.6296 | I18: 141066.85 | J18: -203000.7796 | L18: 0 | M18: 0 | N18: 0 | O18: =-_xlfn.XLOOKUP(A18,[10]Capital!B:B,[10]Capital!AG:AG,0,FALSE) -> 0 | P18: =_xlfn.XLOOKUP(A18,[10]Capital!B:B,[10]Capital!AH:AH,0,FALSE) -> 0 | Q18: 0
A19: AX020 | B19: =_xlfn.XLOOKUP(A19,[9]Sheet2!A:A,[9]Sheet2!D:D,0,FALSE) -> EPA | C19: READX | D19: 330 | E19: 3435 | F19: 3303435 | G19: FOUR OAKS JI | H19: -198865.2856 | I19: 23160.8 | J19: -175704.4856 | L19: -25504.81 | M19: 4495.3 | N19: -21009.51 | O19: =-_xlfn.XLOOKUP(A19,[10]Capital!B:B,[10]Capital!AG:AG,0,FALSE) -> -18445.26 | P19: =_xlfn.XLOOKUP(A19,[10]Capital!B:B,[10]Capital!AH:AH,0,FALSE) -> 0 | Q19: -18445.26
A20: AX026 | B20: =_xlfn.XLOOKUP(A20,[9]Sheet2!A:A,[9]Sheet2!D:D,0,FALSE) -> EPA | C20: REAEA | D20: 330 | E20: 2081 | F20: 3302081 | G20: GILBERTSTONE JI NC | H20: -143141.8557 | I20: 78126.9 | J20: -65014.95574 | L20: -16871.45 | M20: -8587.75 | N20: -25459.2 | O20: =-_xlfn.XLOOKUP(A20,[10]Capital!B:B,[10]Capital!AG:AG,0,FALSE) -> -18180.47 | P20: =_xlfn.XLOOKUP(A20,[10]Capital!B:B,[10]Capital!AH:AH,0,FALSE) -> 0 | Q20: -18180.47
A21: AX02G | B21: =_xlfn.XLOOKUP(A21,[9]Sheet2!A:A,[9]Sheet2!D:D,0,FALSE) -> EPA | C21: REAEN | D21: 330 | E21: 2093 | F21: 3302093 | G21: HALL GREEN I NC | H21: -271201.6684 | I21: -6037.51 | J21: -277239.1784 | L21: -36475.08 | M21: -8356 | N21: -44831.08 | O21: =-_xlfn.XLOOKUP(A21,[10]Capital!B:B,[10]Capital!AG:AG,0,FALSE) -> -17767.23 | P21: =_xlfn.XLOOKUP(A21,[10]Capital!B:B,[10]Capital!AH:AH,0,FALSE) -> 0 | Q21: -17767.23
A22: AX02M | B22: =_xlfn.XLOOKUP(A22,[9]Sheet2!A:A,[9]Sheet2!D:D,0,FALSE) -> EPA | C22: REAEW | D22: 330 | E22: 2099 | F22: 3302099 | G22: HAWTHORN JI | H22: -276063.6514 | I22: 36895.79 | J22: -239167.8614 | L22: -9548.63 | M22: 5125.5 | N22: -4423.13 | O22: =-_xlfn.XLOOKUP(A22,[10]Capital!B:B,[10]Capital!AG:AG,0,FALSE) -> -14501.46 | P22: =_xlfn.XLOOKUP(A22,[10]Capital!B:B,[10]Capital!AH:AH,0,FALSE) -> 0 | Q22: -14501.46
A23: AX03E | B23: =_xlfn.XLOOKUP(A23,[9]Sheet2!A:A,[9]Sheet2!D:D,0,FALSE) -> EPA | C23: REAGE | D23: 330 | E23: 2189 | F23: 3302189 | G23: LADYPOOL JI NC | H23: -96107.14656 | I23: -39896.98 | J23: -136004.1266 | L23: -13325 | M23: -7892.5 | N23: -21217.5 | O23: =-_xlfn.XLOOKUP(A23,[10]Capital!B:B,[10]Capital!AG:AG,0,FALSE) -> -16940.76 | P23: =_xlfn.XLOOKUP(A23,[10]Capital!B:B,[10]Capital!AH:AH,0,FALSE) -> 0 | Q23: -16940.76
A24: AX03F | B24: =_xlfn.XLOOKUP(A24,[9]Sheet2!A:A,[9]Sheet2!D:D,0,FALSE) -> EPA | C24: REAGF | D24: 330 | E24: 2119 | F24: 3302119 | G24: LAKEY LANE JI NC | H24: -4139.533979 | I24: 91181.01 | J24: 87041.47602 | L24: -12268.9 | M24: 11757.94 | N24: -510.96 | O24: =-_xlfn.XLOOKUP(A24,[10]Capital!B:B,[10]Capital!AG:AG,0,FALSE) -> -18726.1 | P24: =_xlfn.XLOOKUP(A24,[10]Capital!B:B,[10]Capital!AH:AH,0,FALSE) -> 0 | Q24: -18726.1
A25: AX03Q | B25: =_xlfn.XLOOKUP(A25,[9]Sheet2!A:A,[9]Sheet2!D:D,0,FALSE) -> EPA | C25: REAGP | D25: 330 | E25: 2420 | F25: 3302420 | G25: MANEY HILL JI | H25: -406384.2999 | I25: 98924.24 | J25: -307460.0599 | L25: -29336.82 | M25: -5656.25 | N25: -34993.07 | O25: =-_xlfn.XLOOKUP(A25,[10]Capital!B:B,[10]Capital!AG:AG,0,FALSE) -> -17843.46 | P25: =_xlfn.XLOOKUP(A25,[10]Capital!B:B,[10]Capital!AH:AH,0,FALSE) -> 0 | Q25: -17843.46
A26: AX040 | B26: =_xlfn.XLOOKUP(A26,[9]Sheet2!A:A,[9]Sheet2!D:D,0,FALSE) -> EPA | C26: REAHC | D26: 330 | E26: 2406 | F26: 3302406 | G26: MINWORTH JI | H26: -210915.6227 | I26: -69380.7 | J26: -280296.3227 | L26: -47270.35 | M26: -27077.06 | N26: -74347.41 | O26: =-_xlfn.XLOOKUP(A26,[10]Capital!B:B,[10]Capital!AG:AG,0,FALSE) -> -14152.42 | P26: =_xlfn.XLOOKUP(A26,[10]Capital!B:B,[10]Capital!AH:AH,0,FALSE) -> 0 | Q26: -14152.42
A27: AX04A | B27: =_xlfn.XLOOKUP(A27,[9]Sheet2!A:A,[9]Sheet2!D:D,0,FALSE) -> EPA | C27: REAHY | D27: 330 | E27: 2436 | F27: 3302436 | G27: OSBORNE JI | H27: 0 | I27: 0 | J27: 0 | L27: -9592.43 | M27: 0 | N27: -9592.43 | O27: =-_xlfn.XLOOKUP(A27,[10]Capital!B:B,[10]Capital!AG:AG,0,FALSE) -> 0 | P27: =_xlfn.XLOOKUP(A27,[10]Capital!B:B,[10]Capital!AH:AH,0,FALSE) -> 0 | Q27: 0
A28: AX04D | B28: =_xlfn.XLOOKUP(A28,[9]Sheet2!A:A,[9]Sheet2!D:D,0,FALSE) -> EPA | C28: REAHZ | D28: 330 | E28: 3351 | F28: 3303351 | G28: OUR LADY AND ST ROSE RC JI NC | H28: -167375.5872 | I28: -7794.56 | J28: -175170.1472 | L28: 0 | M28: 0 | N28: 0 | O28: =-_xlfn.XLOOKUP(A28,[10]Capital!B:B,[10]Capital!AG:AG,0,FALSE) -> 0 | P28: =_xlfn.XLOOKUP(A28,[10]Capital!B:B,[10]Capital!AH:AH,0,FALSE) -> 0 | Q28: 0
A29: AX04E | B29: =_xlfn.XLOOKUP(A29,[9]Sheet2!A:A,[9]Sheet2!D:D,0,FALSE) -> EPA | C29: REAJB | D29: 330 | E29: 3328 | F29: 3303328 | G29: OUR LADY OF LOURDES RC JI NC | H29: -233425.3174 | I29: -68914.86 | J29: -302340.1774 | L29: 0 | M29: -109.72 | N29: -109.72 | O29: =-_xlfn.XLOOKUP(A29,[10]Capital!B:B,[10]Capital!AG:AG,0,FALSE) -> 0 | P29: =_xlfn.XLOOKUP(A29,[10]Capital!B:B,[10]Capital!AH:AH,0,FALSE) -> 0 | Q29: 0
A30: AX04G | B30: =_xlfn.XLOOKUP(A30,[9]Sheet2!A:A,[9]Sheet2!D:D,0,FALSE) -> EPA | C30: REAJE | D30: 330 | E30: 2021 | F30: 3302021 | G30: PAGANEL JI NC | H30: -390955.5116 | I30: 25503.74 | J30: -365451.7716 | L30: -34544.18 | M30: 4052.12 | N30: -30492.06 | O30: =-_xlfn.XLOOKUP(A30,[10]Capital!B:B,[10]Capital!AG:AG,0,FALSE) -> -17203.55 | P30: =_xlfn.XLOOKUP(A30,[10]Capital!B:B,[10]Capital!AH:AH,0,FALSE) -> 0 | Q30: -17203.55
A31: AX04Y | B31: =_xlfn.XLOOKUP(A31,[9]Sheet2!A:A,[9]Sheet2!D:D,0,FALSE) -> EPA | C31: REAKB | D31: 330 | E31: 2160 | F31: 3302160 | G31: REDNAL HILL J | H31: -258616.6787 | I31: -24574.48 | J31: -283191.1587 | L31: -11346.94 | M31: 5838.95 | N31: -5507.99 | O31: =-_xlfn.XLOOKUP(A31,[10]Capital!B:B,[10]Capital!AG:AG,0,FALSE) -> -17061.12 | P31: =_xlfn.XLOOKUP(A31,[10]Capital!B:B,[10]Capital!AH:AH,0,FALSE) -> 0 | Q31: -17061.12
A32: AX04Z | B32: =_xlfn.XLOOKUP(A32,[9]Sheet2!A:A,[9]Sheet2!D:D,0,FALSE) -> EPA | C32: REAKC | D32: 330 | E32: 2063 | F32: 3302063 | G32: REGENTS PARK JI NC | H32: -227057.2018 | I32: 68324.17 | J32: -158733.0318 | L32: -29994.93 | M32: -10318 | N32: -40312.93 | O32: =-_xlfn.XLOOKUP(A32,[10]Capital!B:B,[10]Capital!AG:AG,0,FALSE) -> -21265.7 | P32: =_xlfn.XLOOKUP(A32,[10]Capital!B:B,[10]Capital!AH:AH,0,FALSE) -> 0 | Q32: -21265.7
A33: AX055 | B33: =_xlfn.XLOOKUP(A33,[9]Sheet2!A:A,[9]Sheet2!D:D,0,FALSE) -> EPA | C33: REAKL | D33: 330 | E33: 2008 | F33: 3302008 | G33: SHAW HILL JI NC | H33: -344457.5118 | I33: 63181.46 | J33: -281276.0518 | L33: -2535.57 | M33: -9058 | N33: -11593.57 | O33: =-_xlfn.XLOOKUP(A33,[10]Capital!B:B,[10]Capital!AG:AG,0,FALSE) -> -19018.98 | P33: =_xlfn.XLOOKUP(A33,[10]Capital!B:B,[10]Capital!AH:AH,0,FALSE) -> 0 | Q33: -19018.98
A34: AX059 | B34: =_xlfn.XLOOKUP(A34,[9]Sheet2!A:A,[9]Sheet2!D:D,0,FALSE) -> EPA | C34: REAKT | D34: 330 | E34: 2176 | F34: 3302176 | G34: SOMERVILLE JI NC | H34: -266346.9551 | I34: 14776.73 | J34: -251570.2251 | L34: -33722.54 | M34: -11944.75 | N34: -45667.29 | O34: =-_xlfn.XLOOKUP(A34,[10]Capital!B:B,[10]Capital!AG:AG,0,FALSE) -> -24166.37 | P34: =_xlfn.XLOOKUP(A34,[10]Capital!B:B,[10]Capital!AH:AH,0,FALSE) -> 0 | Q34: -24166.37
A35: AX05D | B35: =_xlfn.XLOOKUP(A35,[9]Sheet2!A:A,[9]Sheet2!D:D,0,FALSE) -> EPA | C35: REAKY | D35: 330 | E35: 3380 | F35: 3303380 | G35: ST AMBROSE BARLOW RC JI | H35: -175282.9571 | I35: 110136.03 | J35: -65146.92714 | L35: 0 | M35: 0 | N35: 0 | O35: =-_xlfn.XLOOKUP(A35,[10]Capital!B:B,[10]Capital!AG:AG,0,FALSE) -> 0 | P35: =_xlfn.XLOOKUP(A35,[10]Capital!B:B,[10]Capital!AH:AH,0,FALSE) -> 0 | Q35: 0
A36: AX05E | B36: =_xlfn.XLOOKUP(A36,[9]Sheet2!A:A,[9]Sheet2!D:D,0,FALSE) -> EPA | C36: REALA | D36: 330 | E36: 3335 | F36: 3303335 | G36: ST ANNE'S RC JI | H36: -6449.263271 | I36: -34843.45 | J36: -41292.71327 | L36: 0 | M36: 0 | N36: 0 | O36: =-_xlfn.XLOOKUP(A36,[10]Capital!B:B,[10]Capital!AG:AG,0,FALSE) -> 0 | P36: =_xlfn.XLOOKUP(A36,[10]Capital!B:B,[10]Capital!AH:AH,0,FALSE) -> 0 | Q36: 0
A37: AX05J | B37: =_xlfn.XLOOKUP(A37,[9]Sheet2!A:A,[9]Sheet2!D:D,0,FALSE) -> EPA | C37: REALE | D37: 330 | E37: 3372 | F37: 3303372 | G37: ST BERNADETTE'S RC JI NC | H37: -325046.3786 | I37: -29021.86 | J37: -354068.2386 | L37: 0 | M37: 0 | N37: 0 | O37: =-_xlfn.XLOOKUP(A37,[10]Capital!B:B,[10]Capital!AG:AG,0,FALSE) -> 0 | P37: =_xlfn.XLOOKUP(A37,[10]Capital!B:B,[10]Capital!AH:AH,0,FALSE) -> 0 | Q37: 0
A38: AX05U | B38: =_xlfn.XLOOKUP(A38,[9]Sheet2!A:A,[9]Sheet2!D:D,0,FALSE) -> EPA | C38: REALR | D38: 330 | E38: 3355 | F38: 3303355 | G38: ST EDWARD'S RC JI | H38: -159010.5189 | I38: -6432.01 | J38: -165442.5289 | L38: 0 | M38: 0 | N38: 0 | O38: =-_xlfn.XLOOKUP(A38,[10]Capital!B:B,[10]Capital!AG:AG,0,FALSE) -> 0 | P38: =_xlfn.XLOOKUP(A38,[10]Capital!B:B,[10]Capital!AH:AH,0,FALSE) -> 0 | Q38: 0
A39: AX05Y | B39: =_xlfn.XLOOKUP(A39,[9]Sheet2!A:A,[9]Sheet2!D:D,0,FALSE) -> EPA | C39: REALY | D39: 330 | E39: 3367 | F39: 3303367 | G39: ST GERARD'S RC JI NC | H39: -178624.0991 | I39: 58085.23 | J39: -120538.8691 | L39: 0 | M39: 0 | N39: 0 | O39: =-_xlfn.XLOOKUP(A39,[10]Capital!B:B,[10]Capital!AG:AG,0,FALSE) -> 0 | P39: =_xlfn.XLOOKUP(A39,[10]Capital!B:B,[10]Capital!AH:AH,0,FALSE) -> 0 | Q39: 0
A40: AX061 | B40: =_xlfn.XLOOKUP(A40,[9]Sheet2!A:A,[9]Sheet2!D:D,0,FALSE) -> EPA | C40: REAMB | D40: 330 | E40: 3410 | F40: 3303410 | G40: ST JOHN & ST MONICA RC JI | H40: -232746.9018 | I40: 65731.52 | J40: -167015.3818 | L40: 0 | M40: 0 | N40: 0 | O40: =-_xlfn.XLOOKUP(A40,[10]Capital!B:B,[10]Capital!AG:AG,0,FALSE) -> 0 | P40: =_xlfn.XLOOKUP(A40,[10]Capital!B:B,[10]Capital!AH:AH,0,FALSE) -> 0 | Q40: 0
A41: AX069 | B41: =_xlfn.XLOOKUP(A41,[9]Sheet2!A:A,[9]Sheet2!D:D,0,FALSE) -> EPA | C41: REAMN | D41: 330 | E41: 3361 | F41: 3303361 | G41: ST MARGARET MARY RC JI | H41: -306675.2788 | I41: 101528 | J41: -205147.2788 | L41: 0 | M41: 0 | N41: 0 | O41: =-_xlfn.XLOOKUP(A41,[10]Capital!B:B,[10]Capital!AG:AG,0,FALSE) -> 0 | P41: =_xlfn.XLOOKUP(A41,[10]Capital!B:B,[10]Capital!AH:AH,0,FALSE) -> 0 | Q41: 0
A42: AX06E | B42: =_xlfn.XLOOKUP(A42,[9]Sheet2!A:A,[9]Sheet2!D:D,0,FALSE) -> EPA | C42: REAMW | D42: 330 | E42: 3344 | F42: 3303344 | G42: ST MARY'S RC (B17) JI | H42: -229849.4148 | I42: 1026.82 | J42: -228822.5948 | L42: 0 | M42: 0 | N42: 0 | O42: =-_xlfn.XLOOKUP(A42,[10]Capital!B:B,[10]Capital!AG:AG,0,FALSE) -> 0 | P42: =_xlfn.XLOOKUP(A42,[10]Capital!B:B,[10]Capital!AH:AH,0,FALSE) -> 0 | Q42: 0
A43: AX06M | B43: =_xlfn.XLOOKUP(A43,[9]Sheet2!A:A,[9]Sheet2!D:D,0,FALSE) -> EPA | C43: REANG | D43: 330 | E43: 3385 | F43: 3303385 | G43: ST PETER'S RC JI | H43: -257424.0591 | I43: 100128.98 | J43: -157295.0791 | L43: 0 | M43: 0 | N43: 0 | O43: =-_xlfn.XLOOKUP(A43,[10]Capital!B:B,[10]Capital!AG:AG,0,FALSE) -> 0 | P43: =_xlfn.XLOOKUP(A43,[10]Capital!B:B,[10]Capital!AH:AH,0,FALSE) -> 0 | Q43: 0
A44: AX06N | B44: =_xlfn.XLOOKUP(A44,[9]Sheet2!A:A,[9]Sheet2!D:D,0,FALSE) -> EPA | C44: REANH | D44: 330 | E44: 3019 | F44: 3303019 | G44: ST SAVIOUR'S CE JI | H44: -553681.9582 | I44: 9842.3 | J44: -543839.6582 | L44: -9068.35 | M44: -39649.31 | N44: -48717.66 | O44: =-_xlfn.XLOOKUP(A44,[10]Capital!B:B,[10]Capital!AG:AG,0,FALSE) -> -18204.54 | P44: =_xlfn.XLOOKUP(A44,[10]Capital!B:B,[10]Capital!AH:AH,0,FALSE) -> 0 | Q44: -18204.54
A45: AX06W | B45: =_xlfn.XLOOKUP(A45,[9]Sheet2!A:A,[9]Sheet2!D:D,0,FALSE) -> EPA | C45: REANP | D45: 330 | E45: 2178 | F45: 3302178 | G45: STANVILLE JI NC | H45: -151201.2155 | I45: 70925.33 | J45: -80275.88545 | L45: -3872.2 | M45: -6693.25 | N45: -10565.45 | O45: =-_xlfn.XLOOKUP(A45,[10]Capital!B:B,[10]Capital!AG:AG,0,FALSE) -> -14802.36 | P45: =_xlfn.XLOOKUP(A45,[10]Capital!B:B,[10]Capital!AH:AH,0,FALSE) -> 0 | Q45: -14802.36
A46: AX070 | B46: =_xlfn.XLOOKUP(A46,[9]Sheet2!A:A,[9]Sheet2!D:D,0,FALSE) -> EPA | C46: REAJP | D46: 330 | E46: 2097 | F46: 3302097 | G46: STORY WOOD SCHOOL AND CHILDREN'S CENTRE JI NC | H46: -349024.6838 | I46: -21580.09 | J46: -370604.7738 | L46: -45403.04 | M46: -6497.5 | N46: -51900.54 | O46: =-_xlfn.XLOOKUP(A46,[10]Capital!B:B,[10]Capital!AG:AG,0,FALSE) -> -14453.32 | P46: =_xlfn.XLOOKUP(A46,[10]Capital!B:B,[10]Capital!AH:AH,0,FALSE) -> 0 | Q46: -14453.32
A47: AX072 | B47: =_xlfn.XLOOKUP(A47,[9]Sheet2!A:A,[9]Sheet2!D:D,0,FALSE) -> EPA | C47: REANW | D47: 330 | E47: 2190 | F47: 3302190 | G47: SUNDRIDGE JI | H47: -293701.188 | I47: 96040.19 | J47: -197660.998 | L47: -3151.44 | M47: -3103.75 | N47: -6255.19 | O47: =-_xlfn.XLOOKUP(A47,[10]Capital!B:B,[10]Capital!AG:AG,0,FALSE) -> -13751.22 | P47: =_xlfn.XLOOKUP(A47,[10]Capital!B:B,[10]Capital!AH:AH,0,FALSE) -> 0 | Q47: -13751.22
A48: AX07E | B48: =_xlfn.XLOOKUP(A48,[9]Sheet2!A:A,[9]Sheet2!D:D,0,FALSE) -> EPA | C48: REAPM | D48: 330 | E48: 2306 | F48: 3302306 | G48: WATERMILL JI | H48: -289080.6825 | I48: -30991.53 | J48: -320072.2125 | L48: -23297.28 | M48: 7542.47 | N48: -15754.81 | O48: =-_xlfn.XLOOKUP(A48,[10]Capital!B:B,[10]Capital!AG:AG,0,FALSE) -> -13550.62 | P48: =_xlfn.XLOOKUP(A48,[10]Capital!B:B,[10]Capital!AH:AH,0,FALSE) -> 0 | Q48: -13550.62
A49: AX07F | B49: =_xlfn.XLOOKUP(A49,[9]Sheet2!A:A,[9]Sheet2!D:D,0,FALSE) -> EPA | C49: REAPP | D49: 330 | E49: 2482 | F49: 3302482 | G49: WATTVILLE JI NC | H49: -148545.7804 | I49: 111013.51 | J49: -37532.27043 | L49: -35775.4 | M49: -8972.5 | N49: -44747.9 | O49: =-_xlfn.XLOOKUP(A49,[10]Capital!B:B,[10]Capital!AG:AG,0,FALSE) -> -18866.52 | P49: =_xlfn.XLOOKUP(A49,[10]Capital!B:B,[10]Capital!AH:AH,0,FALSE) -> 0 | Q49: -18866.52
A50: AX07H | B50: =_xlfn.XLOOKUP(A50,[9]Sheet2!A:A,[9]Sheet2!D:D,0,FALSE) -> EPA | C50: REAPR | D50: 330 | E50: 2245 | F50: 3302245 | G50: WELSH HOUSE FARM JI NC | H50: -216720.5316 | I50: -112540.54 | J50: -329261.0716 | L50: -25513.87 | M50: -6551.5 | N50: -32065.37 | O50: =-_xlfn.XLOOKUP(A50,[10]Capital!B:B,[10]Capital!AG:AG,0,FALSE) -> -14549.61 | P50: =_xlfn.XLOOKUP(A50,[10]Capital!B:B,[10]Capital!AH:AH,0,FALSE) -> 0 | Q50: -14549.61
A51: AX07Q | B51: =_xlfn.XLOOKUP(A51,[9]Sheet2!A:A,[9]Sheet2!D:D,0,FALSE) -> EPA | C51: REAPZ | D51: 330 | E51: 2478 | F51: 3302478 | G51: WHITEHOUSE COMMON JI NC | H51: -220793.4273 | I51: -68956.18 | J51: -289749.6073 | L51: -18387.21 | M51: 1994.33 | N51: -16392.88 | O51: =-_xlfn.XLOOKUP(A51,[10]Capital!B:B,[10]Capital!AG:AG,0,FALSE) -> -19031.01 | P51: =_xlfn.XLOOKUP(A51,[10]Capital!B:B,[10]Capital!AH:AH,0,FALSE) -> 0 | Q51: -19031.01
A52: AX07U | B52: =_xlfn.XLOOKUP(A52,[9]Sheet2!A:A,[9]Sheet2!D:D,0,FALSE) -> EPA | C52: REARC | D52: 330 | E52: 2445 | F52: 3302445 | G52: WOODCOCK HILL JI | H52: -88954.46155 | I52: 86114.18 | J52: -2840.28155 | L52: -7743.76 | M52: -6289.38 | N52: -14033.14 | O52: =-_xlfn.XLOOKUP(A52,[10]Capital!B:B,[10]Capital!AG:AG,0,FALSE) -> -14082.21 | P52: =_xlfn.XLOOKUP(A52,[10]Capital!B:B,[10]Capital!AH:AH,0,FALSE) -> 0 | Q52: -14082.21
A53: AX07V | B53: =_xlfn.XLOOKUP(A53,[9]Sheet2!A:A,[9]Sheet2!D:D,0,FALSE) -> EPA | C53: REARD | D53: 330 | E53: 2278 | F53: 3302278 | G53: WOODGATE JI | H53: -273002.6272 | I53: -75018.50283 | J53: -348021.13 | L53: -16853.75 | M53: -8376.25 | N53: -25230 | O53: =-_xlfn.XLOOKUP(A53,[10]Capital!B:B,[10]Capital!AG:AG,0,FALSE) -> -17803.34 | P53: =_xlfn.XLOOKUP(A53,[10]Capital!B:B,[10]Capital!AH:AH,0,FALSE) -> 0 | Q53: -17803.34
A54: AX07X | B54: =_xlfn.XLOOKUP(A54,[9]Sheet2!A:A,[9]Sheet2!D:D,0,FALSE) -> EPA | C54: REARG | D54: 330 | E54: 2317 | F54: 3302317 | G54: WORLDS END I NC | H54: -103938.2581 | I54: 14190.39 | J54: -89747.86811 | L54: -7645.28 | M54: 6475 | N54: -1170.28 | O54: =-_xlfn.XLOOKUP(A54,[10]Capital!B:B,[10]Capital!AG:AG,0,FALSE) -> -16266.74 | P54: =_xlfn.XLOOKUP(A54,[10]Capital!B:B,[10]Capital!AH:AH,0,FALSE) -> 0 | Q54: -16266.74
A55: AX080 | B55: =_xlfn.XLOOKUP(A55,[9]Sheet2!A:A,[9]Sheet2!D:D,0,FALSE) -> EPA | C55: REARQ | D55: 330 | E55: 3421 | F55: 3303421 | G55: YARDLEY JI | H55: -529822.2111 | I55: -53980.16 | J55: -583802.3711 | L55: -1355 | M55: 13987.91 | N55: 12632.91 | O55: =-_xlfn.XLOOKUP(A55,[10]Capital!B:B,[10]Capital!AG:AG,0,FALSE) -> -26689.92 | P55: =_xlfn.XLOOKUP(A55,[10]Capital!B:B,[10]Capital!AH:AH,0,FALSE) -> 0 | Q55: -26689.92
A56: AX038 | B56: =_xlfn.XLOOKUP(A56,[9]Sheet2!A:A,[9]Sheet2!D:D,0,FALSE) -> EPA | C56: REAVX | D56: 330 | E56: 5415 | F56: 3305415 | G56: KINGS NORTON BOYS Sec (16+) | H56: -446243.89 | I56: -115911.01 | J56: -562154.9 | L56: -17917.6 | M56: -16499.69 | N56: -34417.29 | O56: =-_xlfn.XLOOKUP(A56,[10]Capital!B:B,[10]Capital!AG:AG,0,FALSE) -> -31755.07 | P56: =_xlfn.XLOOKUP(A56,[10]Capital!B:B,[10]Capital!AH:AH,0,FALSE) -> 0 | Q56: -31755.07
A57: AX00Y | B57: =_xlfn.XLOOKUP(A57,[9]Sheet2!A:A,[9]Sheet2!D:D,0,FALSE) -> EPA | C57: REAXN | D57: 330 | E57: 7030 | F57: 3307030 | G57: BRAIDWOOD Spec | H57: -245775.7751 | I57: -149695.46 | J57: -395471.2351 | L57: -15401.74 | M57: 5098.04 | N57: -10303.7 | O57: =-_xlfn.XLOOKUP(A57,[10]Capital!B:B,[10]Capital!AG:AG,0,FALSE) -> -16499.44 | P57: =_xlfn.XLOOKUP(A57,[10]Capital!B:B,[10]Capital!AH:AH,0,FALSE) -> 0 | Q57: -16499.44
A58: AX073 | B58: =_xlfn.XLOOKUP(A58,[9]Sheet2!A:A,[9]Sheet2!D:D,0,FALSE) -> EPA | C58: REAAB | D58: 330 | E58: 1100 | F58: 3301100 | G58: CITY OF BIRMINGHAM SCHOOL | H58: -291935.1392 | I58: =J58-H58 -> 352105.55 | J58: =327170.410781969-267000 -> 60170.41078 | L58: -19465.81 | M58: 53036.31 | N58: 33570.5 | O58: =-_xlfn.XLOOKUP(A58,[10]Capital!B:B,[10]Capital!AG:AG,0,FALSE) -> -40526.3 | P58: =_xlfn.XLOOKUP(A58,[10]Capital!B:B,[10]Capital!AH:AH,0,FALSE) -> 0 | Q58: -40526.3
A59: AX01M | B59: =_xlfn.XLOOKUP(A59,[9]Sheet2!A:A,[9]Sheet2!D:D,0,FALSE) -> EPA | C59: REAXV | D59: 330 | E59: 7035 | F59: 3307035 | G59: DAME ELLEN PINSENT Spec | H59: -536504.8908 | I59: 57066.42 | J59: -479438.4708 | L59: -46567.75 | M59: -11593.75 | N59: -58161.5 | O59: =-_xlfn.XLOOKUP(A59,[10]Capital!B:B,[10]Capital!AG:AG,0,FALSE) -> -23540.5 | P59: =_xlfn.XLOOKUP(A59,[10]Capital!B:B,[10]Capital!AH:AH,0,FALSE) -> 0 | Q59: -23540.5
A60: AX021 | B60: =_xlfn.XLOOKUP(A60,[9]Sheet2!A:A,[9]Sheet2!D:D,0,FALSE) -> EPA | C60: REAXW | D60: 330 | E60: 7050 | F60: 3307050 | G60: FOX HOLLIES Spec | H60: -664193.6267 | I60: -164853.37 | J60: -829046.9967 | L60: -2327.7 | M60: -9467.5 | N60: -11795.2 | O60: =-_xlfn.XLOOKUP(A60,[10]Capital!B:B,[10]Capital!AG:AG,0,FALSE) -> -19749.16 | P60: =_xlfn.XLOOKUP(A60,[10]Capital!B:B,[10]Capital!AH:AH,0,FALSE) -> 0 | Q60: -19749.16
A61: AX030 | B61: =_xlfn.XLOOKUP(A61,[9]Sheet2!A:A,[9]Sheet2!D:D,0,FALSE) -> EPA | C61: REAYA | D61: 330 | E61: 7026 | F61: 3307026 | G61: HUNTERS HILL Spec | H61: -100440.0032 | I61: -3210.68 | J61: -103650.6832 | L61: -7729.22 | M61: 0 | N61: -7729.22 | O61: =-_xlfn.XLOOKUP(A61,[10]Capital!B:B,[10]Capital!AG:AG,0,FALSE) -> 0 | P61: =_xlfn.XLOOKUP(A61,[10]Capital!B:B,[10]Capital!AH:AH,0,FALSE) -> 0 | Q61: 0
A62: AX03G | B62: =_xlfn.XLOOKUP(A62,[9]Sheet2!A:A,[9]Sheet2!D:D,0,FALSE) -> EPA | C62: REAYD | D62: 330 | E62: 7060 | F62: 3307060 | G62: LANGLEY Spec | H62: -284676.6188 | I62: 247188.08 | J62: -37488.53877 | L62: -71670.09 | M62: 9201.12 | N62: -62468.97 | O62: =-_xlfn.XLOOKUP(A62,[10]Capital!B:B,[10]Capital!AG:AG,0,FALSE) -> -19658.89 | P62: =_xlfn.XLOOKUP(A62,[10]Capital!B:B,[10]Capital!AH:AH,0,FALSE) -> 0 | Q62: -19658.89
A63: AX03M | B63: =_xlfn.XLOOKUP(A63,[9]Sheet2!A:A,[9]Sheet2!D:D,0,FALSE) -> EPA | C63: REAYG | D63: 330 | E63: 7012 | F63: 3307012 | G63: LONGWILL Spec | H63: -12455.66905 | I63: 2664.33 | J63: -9791.339051 | L63: -4986.62 | M63: -4127.62 | N63: -9114.24 | O63: =-_xlfn.XLOOKUP(A63,[10]Capital!B:B,[10]Capital!AG:AG,0,FALSE) -> -14712.09 | P63: =_xlfn.XLOOKUP(A63,[10]Capital!B:B,[10]Capital!AH:AH,0,FALSE) -> 0 | Q63: -14712.09
A64: AX04P | B64: =_xlfn.XLOOKUP(A64,[9]Sheet2!A:A,[9]Sheet2!D:D,0,FALSE) -> EPA | C64: REAYJ | D64: 330 | E64: 7045 | F64: 3307045 | G64: PINES Spec | H64: -1109092.219 | I64: 71931.3 | J64: -1037160.919 | L64: -19956.17 | M64: -14732.5 | N64: -34688.67 | O64: =-_xlfn.XLOOKUP(A64,[10]Capital!B:B,[10]Capital!AG:AG,0,FALSE) -> -29137.24 | P64: =_xlfn.XLOOKUP(A64,[10]Capital!B:B,[10]Capital!AH:AH,0,FALSE) -> 0 | Q64: -29137.24
A65: AX00R | B65: =_xlfn.XLOOKUP(A65,[9]Sheet2!A:A,[9]Sheet2!D:D,0,FALSE) -> Non Chq Bk | C65: REAYY | D65: 330 | E65: 1025 | F65: 3301025 | G65: BLOOMSBURY Nurs | H65: -186106.6315 | I65: 43819.43 | J65: -142287.2015 | L65: -5059.96 | M65: -4874.12 | N65: -9934.08 | O65: =-_xlfn.XLOOKUP(A65,[10]Capital!B:B,[10]Capital!AG:AG,0,FALSE) -> -11558.66 | P65: =_xlfn.XLOOKUP(A65,[10]Capital!B:B,[10]Capital!AH:AH,0,FALSE) -> 0 | Q65: -11558.66
A66: AX00Z | B66: =_xlfn.XLOOKUP(A66,[9]Sheet2!A:A,[9]Sheet2!D:D,0,FALSE) -> Non Chq Bk | C66: REAZA | D66: 330 | E66: 1002 | F66: 3301002 | G66: BREARLEY ST Nurs | H66: -54611.88538 | I66: -84152.05 | J66: -138763.9354 | L66: -18713.6 | M66: -4965.25 | N66: -23678.85 | O66: =-_xlfn.XLOOKUP(A66,[10]Capital!B:B,[10]Capital!AG:AG,0,FALSE) -> -11721.15 | P66: =_xlfn.XLOOKUP(A66,[10]Capital!B:B,[10]Capital!AH:AH,0,FALSE) -> 0 | Q66: -11721.15
A67: AX014 | B67: =_xlfn.XLOOKUP(A67,[9]Sheet2!A:A,[9]Sheet2!D:D,0,FALSE) -> Non Chq Bk | C67: REAZB | D67: 330 | E67: 1048 | F67: 3301048 | G67: CASTLE VALE Nurs | H67: -353386.5416 | I67: -2659.06 | J67: -356045.6016 | L67: -31116.29 | M67: -5167.75 | N67: -36284.04 | O67: =-_xlfn.XLOOKUP(A67,[10]Capital!B:B,[10]Capital!AG:AG,0,FALSE) -> -12082.23 | P67: =_xlfn.XLOOKUP(A67,[10]Capital!B:B,[10]Capital!AH:AH,0,FALSE) -> 0 | Q67: -12082.23
A68: AX01X | B68: =_xlfn.XLOOKUP(A68,[9]Sheet2!A:A,[9]Sheet2!D:D,0,FALSE) -> Non Chq Bk | C68: REAZC | D68: 330 | E68: 1026 | F68: 3301026 | G68: FEATHERSTONE Nurs | H68: -220314.9305 | I68: -58808.13 | J68: -279123.0605 | L68: -14301.45 | M68: 2423.68 | N68: -11877.77 | O68: =-_xlfn.XLOOKUP(A68,[10]Capital!B:B,[10]Capital!AG:AG,0,FALSE) -> -11011.02 | P68: =_xlfn.XLOOKUP(A68,[10]Capital!B:B,[10]Capital!AH:AH,0,FALSE) -> 0 | Q68: -11011.02
A69: AX023 | B69: =_xlfn.XLOOKUP(A69,[9]Sheet2!A:A,[9]Sheet2!D:D,0,FALSE) -> Non Chq Bk | C69: REAZD | D69: 330 | E69: 1006 | F69: 3301006 | G69: GARRETTS GREEN Nurs | H69: -184195.2555 | I69: 117842.53 | J69: -66352.72545 | L69: -9792.05 | M69: -4735.75 | N69: -14527.8 | O69: =-_xlfn.XLOOKUP(A69,[10]Capital!B:B,[10]Capital!AG:AG,0,FALSE) -> -11311.92 | P69: =_xlfn.XLOOKUP(A69,[10]Capital!B:B,[10]Capital!AH:AH,0,FALSE) -> 0 | Q69: =O69+P69 -> -11311.92
A70: AX028 | B70: =_xlfn.XLOOKUP(A70,[9]Sheet2!A:A,[9]Sheet2!D:D,0,FALSE) -> Non Chq Bk | C70: REAZE | D70: 330 | E70: 1015 | F70: 3301015 | G70: GOODWAY Nurs | H70: -113744.0115 | I70: -57219.74 | J70: -170963.7515 | L70: -5900.5 | M70: -4837 | N70: -10737.5 | O70: =-_xlfn.XLOOKUP(A70,[10]Capital!B:B,[10]Capital!AG:AG,0,FALSE) -> -11492.46 | P70: =_xlfn.XLOOKUP(A70,[10]Capital!B:B,[10]Capital!AH:AH,0,FALSE) -> 0 | Q70: -11492.46
A71: AX029 | B71: =_xlfn.XLOOKUP(A71,[9]Sheet2!A:A,[9]Sheet2!D:D,0,FALSE) -> Non Chq Bk | C71: REAZF | D71: 330 | E71: 1022 | F71: 3301022 | G71: GRACELANDS Nurs | H71: -36646.85271 | I71: -110432.64 | J71: -147079.4927 | L71: -18165.09 | M71: -4675 | N71: -22840.09 | O71: =-_xlfn.XLOOKUP(A71,[10]Capital!B:B,[10]Capital!AG:AG,0,FALSE) -> -11203.6 | P71: =_xlfn.XLOOKUP(A71,[10]Capital!B:B,[10]Capital!AH:AH,0,FALSE) -> 0 | Q71: -11203.6
A72: AX02P | B72: =_xlfn.XLOOKUP(A72,[9]Sheet2!A:A,[9]Sheet2!D:D,0,FALSE) -> Non Chq Bk | C72: REAZG | D72: 330 | E72: 1010 | F72: 3301010 | G72: HIGHFIELD Nurs | H72: -567485.3496 | I72: -27917.16 | J72: -595402.5096 | L72: -23691.82 | M72: -1367.3 | N72: -25059.12 | O72: =-_xlfn.XLOOKUP(A72,[10]Capital!B:B,[10]Capital!AG:AG,0,FALSE) -> -11997.98 | P72: =_xlfn.XLOOKUP(A72,[10]Capital!B:B,[10]Capital!AH:AH,0,FALSE) -> 0 | Q72: -11997.98
A73: AX02R | B73: =_xlfn.XLOOKUP(A73,[9]Sheet2!A:A,[9]Sheet2!D:D,0,FALSE) -> Non Chq Bk | C73: REAZH | D73: 330 | E73: 1021 | F73: 3301021 | G73: HIGHTERS HEATH Nurs | H73: -56183.43599 | I73: -32018.56 | J73: -88201.99599 | L73: -5429.56 | M73: -4324 | N73: -9753.56 | O73: =-_xlfn.XLOOKUP(A73,[10]Capital!B:B,[10]Capital!AG:AG,0,FALSE) -> 0 | P73: =_xlfn.XLOOKUP(A73,[10]Capital!B:B,[10]Capital!AH:AH,0,FALSE) -> 0 | Q73: 0
A74: AX0A7 | B74: =_xlfn.XLOOKUP(A74,[9]Sheet2!A:A,[9]Sheet2!D:D,0,FALSE) -> Non Chq Bk | C74: REAZJ | D74: 330 | E74: 1023 | F74: 3301023 | G74: JAKEMAN Nurs | H74: 46176.39128 | I74: -70870.39 | J74: -24693.99872 | L74: -5825.52 | M74: -2801.93 | N74: -8627.45 | O74: =-_xlfn.XLOOKUP(A74,[10]Capital!B:B,[10]Capital!AG:AG,0,FALSE) -> -10981.94 | P74: =_xlfn.XLOOKUP(A74,[10]Capital!B:B,[10]Capital!AH:AH,0,FALSE) -> 0 | Q74: -10981.94
A75: AX03A | B75: =_xlfn.XLOOKUP(A75,[9]Sheet2!A:A,[9]Sheet2!D:D,0,FALSE) -> Non Chq Bk | C75: REAZK | D75: 330 | E75: 1016 | F75: 3301016 | G75: KINGS NORTON Nurs | H75: -67952.4534 | I75: 75510.19 | J75: 7557.736601 | L75: -2471.56 | M75: -127.19 | N75: -2598.75 | O75: =-_xlfn.XLOOKUP(A75,[10]Capital!B:B,[10]Capital!AG:AG,0,FALSE) -> -11443.12 | P75: =_xlfn.XLOOKUP(A75,[10]Capital!B:B,[10]Capital!AH:AH,0,FALSE) -> 0 | Q75: -11443.12
A76: AX03J | B76: =_xlfn.XLOOKUP(A76,[9]Sheet2!A:A,[9]Sheet2!D:D,0,FALSE) -> Non Chq Bk | C76: REAZL | D76: 330 | E76: 1024 | F76: 3301024 | G76: LILLIAN DE LISSA Nurs | H76: 391861.3596 | I76: 57662.41 | J76: 449523.7696 | L76: -18221.12 | M76: -4729 | N76: -22950.12 | O76: =-_xlfn.XLOOKUP(A76,[10]Capital!B:B,[10]Capital!AG:AG,0,FALSE) -> -11299.89 | P76: =_xlfn.XLOOKUP(A76,[10]Capital!B:B,[10]Capital!AH:AH,0,FALSE) -> 0 | Q76: -11299.89
A77: AX03W | B77: =_xlfn.XLOOKUP(A77,[9]Sheet2!A:A,[9]Sheet2!D:D,0,FALSE) -> Non Chq Bk | C77: REAZM | D77: 330 | E77: 1012 | F77: 3301012 | G77: MARSH HILL Nurs | H77: -214344.3908 | I77: -73122.3 | J77: -287466.6908 | L77: -20323.7 | M77: -3812.5 | N77: -24136.2 | O77: =-_xlfn.XLOOKUP(A77,[10]Capital!B:B,[10]Capital!AG:AG,0,FALSE) -> -11480.43 | P77: =_xlfn.XLOOKUP(A77,[10]Capital!B:B,[10]Capital!AH:AH,0,FALSE) -> 0 | Q77: -11480.43
A78: AX047 | B78: =_xlfn.XLOOKUP(A78,[9]Sheet2!A:A,[9]Sheet2!D:D,0,FALSE) -> Non Chq Bk | C78: REAZN | D78: 330 | E78: 1028 | F78: 3301028 | G78: NEWTOWN Nurs | H78: 58932.04291 | I78: -180203.99 | J78: -121271.9471 | L78: -18849.24 | M78: -4674.32 | N78: -23523.56 | O78: =-_xlfn.XLOOKUP(A78,[10]Capital!B:B,[10]Capital!AG:AG,0,FALSE) -> -11202.4 | P78: =_xlfn.XLOOKUP(A78,[10]Capital!B:B,[10]Capital!AH:AH,0,FALSE) -> 0 | Q78: -11202.4
A79: AX04B | B79: =_xlfn.XLOOKUP(A79,[9]Sheet2!A:A,[9]Sheet2!D:D,0,FALSE) -> Non Chq Bk | C79: REAZP | D79: 330 | E79: 1049 | F79: 3301049 | G79: OSBORNE Nurs | H79: -338926.9948 | I79: 47101.31 | J79: -291825.6848 | L79: -16686.36 | M79: -4722.25 | N79: -21408.61 | O79: =-_xlfn.XLOOKUP(A79,[10]Capital!B:B,[10]Capital!AG:AG,0,FALSE) -> -11287.85 | P79: =_xlfn.XLOOKUP(A79,[10]Capital!B:B,[10]Capital!AH:AH,0,FALSE) -> 0 | Q79: -11287.85
A80: AX04N | B80: =_xlfn.XLOOKUP(A80,[9]Sheet2!A:A,[9]Sheet2!D:D,0,FALSE) -> Non Chq Bk | C80: REAZQ | D80: 330 | E80: 1008 | F80: 3301008 | G80: PERRY BEECHES Nurs | H80: -128087.7489 | I80: 19945.37 | J80: -108142.3789 | L80: -6941.21 | M80: -1101.72 | N80: -8042.93 | O80: =-_xlfn.XLOOKUP(A80,[10]Capital!B:B,[10]Capital!AG:AG,0,FALSE) -> -11275.82 | P80: =_xlfn.XLOOKUP(A80,[10]Capital!B:B,[10]Capital!AH:AH,0,FALSE) -> 0 | Q80: -11275.82
A81: AX052 | B81: =_xlfn.XLOOKUP(A81,[9]Sheet2!A:A,[9]Sheet2!D:D,0,FALSE) -> Non Chq Bk | C81: REAZT | D81: 330 | E81: 1018 | F81: 3301018 | G81: RUBERY Nurs | H81: -60483.25783 | I81: 62723.55 | J81: 2240.292172 | L81: -5578.07 | M81: -5134 | N81: -10712.07 | O81: =-_xlfn.XLOOKUP(A81,[10]Capital!B:B,[10]Capital!AG:AG,0,FALSE) -> -12022.05 | P81: =_xlfn.XLOOKUP(A81,[10]Capital!B:B,[10]Capital!AH:AH,0,FALSE) -> 0 | Q81: -12022.05
A82: AX053 | B82: =_xlfn.XLOOKUP(A82,[9]Sheet2!A:A,[9]Sheet2!D:D,0,FALSE) -> Non Chq Bk | C82: REAZU | D82: 330 | E82: 1000 | F82: 3301000 | G82: SELLY OAK Nurs | H82: -18803.24322 | I82: 68123.93 | J82: 49320.68678 | L82: -10280.78 | M82: -4714.83 | N82: -14995.61 | O82: =-_xlfn.XLOOKUP(A82,[10]Capital!B:B,[10]Capital!AG:AG,0,FALSE) -> -11274.61 | P82: =_xlfn.XLOOKUP(A82,[10]Capital!B:B,[10]Capital!AH:AH,0,FALSE) -> 0 | Q82: -11274.61
A83: AX06R | B83: =_xlfn.XLOOKUP(A83,[9]Sheet2!A:A,[9]Sheet2!D:D,0,FALSE) -> Non Chq Bk | C83: REAZR | D83: 330 | E83: 1009 | F83: 3301009 | G83: ST THOMAS Nurs | H83: 712538.9063 | I83: 510350.28 | J83: 1222889.186 | L83: -25429.76 | M83: -4884.25 | N83: -30314.01 | O83: =-_xlfn.XLOOKUP(A83,[10]Capital!B:B,[10]Capital!AG:AG,0,FALSE) -> -11576.72 | P83: =_xlfn.XLOOKUP(A83,[10]Capital!B:B,[10]Capital!AH:AH,0,FALSE) -> 0 | Q83: -11576.72
A84: AX07J | B84: =_xlfn.XLOOKUP(A84,[9]Sheet2!A:A,[9]Sheet2!D:D,0,FALSE) -> Non Chq Bk | C84: REAZX | D84: 330 | E84: 1020 | F84: 3301020 | G84: WEOLEY CASTLE Nurs | H84: -7346.719411 | I84: 49014.17 | J84: 41667.45059 | L84: -22973.76 | M84: -5518.75 | N84: -28492.51 | O84: =-_xlfn.XLOOKUP(A84,[10]Capital!B:B,[10]Capital!AG:AG,0,FALSE) -> -12708.1 | P84: =_xlfn.XLOOKUP(A84,[10]Capital!B:B,[10]Capital!AH:AH,0,FALSE) -> 0 | Q84: -12708.1
A85: AX07K | B85: =_xlfn.XLOOKUP(A85,[9]Sheet2!A:A,[9]Sheet2!D:D,0,FALSE) -> Non Chq Bk | C85: REAZY | D85: 330 | E85: 1014 | F85: 3301014 | G85: WEST HEATH Nurs | H85: -131482.2042 | I85: -28004.41 | J85: -159486.6142 | L85: -23093.77 | M85: 37539.7 | N85: 14445.93 | O85: =-_xlfn.XLOOKUP(A85,[10]Capital!B:B,[10]Capital!AG:AG,0,FALSE) -> -11721.15 | P85: =_xlfn.XLOOKUP(A85,[10]Capital!B:B,[10]Capital!AH:AH,0,FALSE) -> 0 | Q85: -11721.15
A86: AX002 | B86: =_xlfn.XLOOKUP(A86,[9]Sheet2!A:A,[9]Sheet2!D:D,0,FALSE) -> Non Chq Bk | C86: REAAE | D86: 330 | E86: 5949 | F86: 3305949 | G86: AL-FURQAN JI | H86: -665695.9907 | I86: 65461.54 | J86: -600234.4507 | L86: 0 | M86: 0 | N86: 0 | O86: =-_xlfn.XLOOKUP(A86,[10]Capital!B:B,[10]Capital!AG:AG,0,FALSE) -> 0 | P86: =_xlfn.XLOOKUP(A86,[10]Capital!B:B,[10]Capital!AH:AH,0,FALSE) -> 0 | Q86: 0
A87: AX006 | B87: =_xlfn.XLOOKUP(A87,[9]Sheet2!A:A,[9]Sheet2!D:D,0,FALSE) -> Non Chq Bk | C87: REAAK | D87: 330 | E87: 2062 | F87: 3302062 | G87: ANDERTON PARK JI NC | H87: -615862.1743 | I87: 331523.31 | J87: -284338.8643 | L87: -16832 | M87: -9190.75 | N87: -26022.75 | O87: =-_xlfn.XLOOKUP(A87,[10]Capital!B:B,[10]Capital!AG:AG,0,FALSE) -> -19255.68 | P87: =_xlfn.XLOOKUP(A87,[10]Capital!B:B,[10]Capital!AH:AH,0,FALSE) -> 0 | Q87: -19255.68
A88: AX008 | B88: =_xlfn.XLOOKUP(A88,[9]Sheet2!A:A,[9]Sheet2!D:D,0,FALSE) -> Non Chq Bk | C88: REAAN | D88: 330 | E88: 2300 | F88: 3302300 | G88: ARDEN JI NC | H88: -310748.6069 | I88: 80386.23 | J88: -230362.3769 | L88: -4845.05 | M88: 4841 | N88: -4.05 | O88: =-_xlfn.XLOOKUP(A88,[10]Capital!B:B,[10]Capital!AG:AG,0,FALSE) -> -23430.17 | P88: =_xlfn.XLOOKUP(A88,[10]Capital!B:B,[10]Capital!AH:AH,0,FALSE) -> 0 | Q88: -23430.17
A89: AX00C | B89: =_xlfn.XLOOKUP(A89,[9]Sheet2!A:A,[9]Sheet2!D:D,0,FALSE) -> Non Chq Bk | C89: REAAW | D89: 330 | E89: 2014 | F89: 3302014 | G89: BARFORD JI NC | H89: -567306.2111 | I89: 437273.5 | J89: -130032.7111 | L89: -38323.38 | M89: -8559.62 | N89: -46883 | O89: =-_xlfn.XLOOKUP(A89,[10]Capital!B:B,[10]Capital!AG:AG,0,FALSE) -> -18130.32 | P89: =_xlfn.XLOOKUP(A89,[10]Capital!B:B,[10]Capital!AH:AH,0,FALSE) -> 0 | Q89: -18130.32
A90: AX00H | B90: =_xlfn.XLOOKUP(A90,[9]Sheet2!A:A,[9]Sheet2!D:D,0,FALSE) -> Non Chq Bk | C90: REAAZ | D90: 330 | E90: 2241 | F90: 3302241 | G90: BELLFIELD J | H90: -364166.9142 | I90: 73118.61 | J90: -291048.3042 | L90: -4916.18 | M90: -2974.75 | N90: -7890.93 | O90: =-_xlfn.XLOOKUP(A90,[10]Capital!B:B,[10]Capital!AG:AG,0,FALSE) -> -16238.66 | P90: =_xlfn.XLOOKUP(A90,[10]Capital!B:B,[10]Capital!AH:AH,0,FALSE) -> 0 | Q90: -16238.66
A91: AX00J | B91: =_xlfn.XLOOKUP(A91,[9]Sheet2!A:A,[9]Sheet2!D:D,0,FALSE) -> Non Chq Bk | C91: REABA | D91: 330 | E91: 2456 | F91: 3302456 | G91: BELLS FARM JI | H91: -119499.0879 | I91: 70952.09 | J91: -48546.99789 | L91: -861 | M91: -6261.25 | N91: -7122.25 | O91: =-_xlfn.XLOOKUP(A91,[10]Capital!B:B,[10]Capital!AG:AG,0,FALSE) -> -14032.06 | P91: =_xlfn.XLOOKUP(A91,[10]Capital!B:B,[10]Capital!AH:AH,0,FALSE) -> 0 | Q91: -14032.06
A92: AX00Q | B92: =_xlfn.XLOOKUP(A92,[9]Sheet2!A:A,[9]Sheet2!D:D,0,FALSE) -> Chq Bk | C92: REABK | D92: 330 | E92: 2254 | F92: 3302254 | G92: BLAKESLEY HALL JI | H92: 137954.6149 | I92: 350258.17 | J92: 488212.7849 | L92: -10873.75 | M92: -10356.25 | N92: -21230 | O92: =-_xlfn.XLOOKUP(A92,[10]Capital!B:B,[10]Capital!AG:AG,0,FALSE) -> -21333.9 | P92: =_xlfn.XLOOKUP(A92,[10]Capital!B:B,[10]Capital!AH:AH,0,FALSE) -> 0 | Q92: -21333.9
A93: AX00X | B93: =_xlfn.XLOOKUP(A93,[9]Sheet2!A:A,[9]Sheet2!D:D,0,FALSE) -> Non Chq Bk | C93: REABR | D93: 330 | E93: 3353 | F93: 3303353 | G93: Bournville Village Primary (formerly Bournville Junior) | H93: -464990.3691 | I93: 95311.86 | J93: -369678.5091 | L93: 0 | M93: 0 | N93: 0 | O93: =-_xlfn.XLOOKUP(A93,[10]Capital!B:B,[10]Capital!AG:AG,0,FALSE) -> 0 | P93: =_xlfn.XLOOKUP(A93,[10]Capital!B:B,[10]Capital!AH:AH,0,FALSE) -> 0 | Q93: 0
A94: AX01D | B94: =_xlfn.XLOOKUP(A94,[9]Sheet2!A:A,[9]Sheet2!D:D,0,FALSE) -> Non Chq Bk | C94: REACP | D94: 330 | E94: 2289 | F94: 3302289 | G94: COFTON JI | H94: 124969.4347 | I94: -62077.17 | J94: 62892.26472 | L94: -15045.54 | M94: 8654.96 | N94: -6390.58 | O94: =-_xlfn.XLOOKUP(A94,[10]Capital!B:B,[10]Capital!AG:AG,0,FALSE) -> -17331.93 | P94: =_xlfn.XLOOKUP(A94,[10]Capital!B:B,[10]Capital!AH:AH,0,FALSE) -> 0 | Q94: -17331.93
A95: AX01H | B95: =_xlfn.XLOOKUP(A95,[9]Sheet2!A:A,[9]Sheet2!D:D,0,FALSE) -> Non Chq Bk | C95: REACZ | D95: 330 | E95: 3320 | F95: 3303320 | G95: CORPUS CHRISTI RC JI | H95: -511397.8225 | I95: -203643.46 | J95: -715041.2825 | L95: 0 | M95: 0 | N95: 0 | O95: =-_xlfn.XLOOKUP(A95,[10]Capital!B:B,[10]Capital!AG:AG,0,FALSE) -> 0 | P95: =_xlfn.XLOOKUP(A95,[10]Capital!B:B,[10]Capital!AH:AH,0,FALSE) -> 0 | Q95: 0
A96: AX01J | B96: =_xlfn.XLOOKUP(A96,[9]Sheet2!A:A,[9]Sheet2!D:D,0,FALSE) -> Non Chq Bk | C96: READA | D96: 330 | E96: 2055 | F96: 3302055 | G96: COTTERIDGE JI NC | H96: -416677.0165 | I96: 22080.06 | J96: -394596.9565 | L96: -39581.18 | M96: -5722.75 | N96: -45303.93 | O96: =-_xlfn.XLOOKUP(A96,[10]Capital!B:B,[10]Capital!AG:AG,0,FALSE) -> -18421.19 | P96: =_xlfn.XLOOKUP(A96,[10]Capital!B:B,[10]Capital!AH:AH,0,FALSE) -> 0 | Q96: -18421.19
A97: AX01L | B97: =_xlfn.XLOOKUP(A97,[9]Sheet2!A:A,[9]Sheet2!D:D,0,FALSE) -> Non Chq Bk | C97: READD | D97: 330 | E97: 2191 | F97: 3302191 | G97: COURT FARM JI | H97: -184839.6394 | I97: -2161.62 | J97: -187001.2594 | L97: -13956.33 | M97: -6557.12 | N97: -20513.45 | O97: =-_xlfn.XLOOKUP(A97,[10]Capital!B:B,[10]Capital!AG:AG,0,FALSE) -> -14559.64 | P97: =_xlfn.XLOOKUP(A97,[10]Capital!B:B,[10]Capital!AH:AH,0,FALSE) -> 0 | Q97: -14559.64
A98: AX01N | B98: =_xlfn.XLOOKUP(A98,[9]Sheet2!A:A,[9]Sheet2!D:D,0,FALSE) -> Non Chq Bk | C98: READG | D98: 330 | E98: 2284 | F98: 3302284 | G98: DEYKIN AVENUE JI | H98: -82152.31068 | I98: 105423.84 | J98: 23271.52932 | L98: -9224.2 | M98: 1311.25 | N98: -7912.95 | O98: =-_xlfn.XLOOKUP(A98,[10]Capital!B:B,[10]Capital!AG:AG,0,FALSE) -> -14152.42 | P98: =_xlfn.XLOOKUP(A98,[10]Capital!B:B,[10]Capital!AH:AH,0,FALSE) -> 0 | Q98: -14152.42
A99: AX01W | B99: =_xlfn.XLOOKUP(A99,[9]Sheet2!A:A,[9]Sheet2!D:D,0,FALSE) -> Non Chq Bk | C99: READN | D99: 330 | E99: 2294 | F99: 3302294 | G99: FEATHERSTONE JI | H99: -1090111.879 | I99: 435415.02 | J99: -654696.859 | L99: -12266.74 | M99: -8567.5 | N99: -20834.24 | O99: =-_xlfn.XLOOKUP(A99,[10]Capital!B:B,[10]Capital!AG:AG,0,FALSE) -> -18144.36 | P99: =_xlfn.XLOOKUP(A99,[10]Capital!B:B,[10]Capital!AH:AH,0,FALSE) -> 0 | Q99: -18144.36
A100: AX01Z | B100: =_xlfn.XLOOKUP(A100,[9]Sheet2!A:A,[9]Sheet2!D:D,0,FALSE) -> Non Chq Bk | C100: READY | D100: 330 | E100: 2486 | F100: 3302486 | G100: FORESTDALE JI NC | H100: -194865.2011 | I100: 1133.68 | J100: -193731.5211 | L100: -13840.18 | M100: 27185.48 | N100: 13345.3 | O100: =-_xlfn.XLOOKUP(A100,[10]Capital!B:B,[10]Capital!AG:AG,0,FALSE) -> -14244.7 | P100: =_xlfn.XLOOKUP(A100,[10]Capital!B:B,[10]Capital!AH:AH,0,FALSE) -> 0 | Q100: -14244.7
A101: AX025 | B101: =_xlfn.XLOOKUP(A101,[9]Sheet2!A:A,[9]Sheet2!D:D,0,FALSE) -> Non Chq Bk | C101: READZ | D101: 330 | E101: 2079 | F101: 3302079 | G101: GEORGE DIXON JI | H101: -32316.14935 | I101: 103088.22 | J101: 70772.07065 | L101: -10482.71 | M101: -8455 | N101: -18937.71 | O101: =-_xlfn.XLOOKUP(A101,[10]Capital!B:B,[10]Capital!AG:AG,0,FALSE) -> -17943.76 | P101: =_xlfn.XLOOKUP(A101,[10]Capital!B:B,[10]Capital!AH:AH,0,FALSE) -> 0 | Q101: -17943.76
A102: AX02C | B102: =_xlfn.XLOOKUP(A102,[9]Sheet2!A:A,[9]Sheet2!D:D,0,FALSE) -> Non Chq Bk | C102: REAEH | D102: 330 | E102: 2087 | F102: 3302087 | G102: GRENDON JI NC | H102: -226730.2632 | I102: 57326.56 | J102: -169403.7032 | L102: -3986.37 | M102: -978.68 | N102: -4965.05 | O102: =-_xlfn.XLOOKUP(A102,[10]Capital!B:B,[10]Capital!AG:AG,0,FALSE) -> -17061.12 | P102: =_xlfn.XLOOKUP(A102,[10]Capital!B:B,[10]Capital!AH:AH,0,FALSE) -> 0 | Q102: -17061.12
A103: AX02D | B103: =_xlfn.XLOOKUP(A103,[9]Sheet2!A:A,[9]Sheet2!D:D,0,FALSE) -> Non Chq Bk | C103: REAEK | D103: 330 | E103: 2466 | F103: 3302466 | G103: GROVE JI NC | H103: -762845.8622 | I103: 39110.3 | J103: -723735.5622 | L103: -18976.65 | M103: 6266.85 | N103: -12709.8 | O103: =-_xlfn.XLOOKUP(A103,[10]Capital!B:B,[10]Capital!AG:AG,0,FALSE) -> -23362.37 | P103: =_xlfn.XLOOKUP(A103,[10]Capital!B:B,[10]Capital!AH:AH,0,FALSE) -> 0 | Q103: -23362.37
A104: AX02F | B104: =_xlfn.XLOOKUP(A104,[9]Sheet2!A:A,[9]Sheet2!D:D,0,FALSE) -> Non Chq Bk | C104: REAEM | D104: 330 | E104: 2091 | F104: 3302091 | G104: GUNTER JI NC | H104: 139676.4126 | I104: -7584.94 | J104: 132091.4726 | L104: -33948.61 | M104: -6250 | N104: -40198.61 | O104: =-_xlfn.XLOOKUP(A104,[10]Capital!B:B,[10]Capital!AG:AG,0,FALSE) -> -14012 | P104: =_xlfn.XLOOKUP(A104,[10]Capital!B:B,[10]Capital!AH:AH,0,FALSE) -> 0 | Q104: -14012
A105: AX02L | B105: =_xlfn.XLOOKUP(A105,[9]Sheet2!A:A,[9]Sheet2!D:D,0,FALSE) -> Non Chq Bk | C105: REAER | D105: 330 | E105: 2477 | F105: 3302477 | G105: HARBORNE JI | H105: -301976.363 | I105: 289175.3 | J105: -12801.06301 | L105: -23387.3 | M105: -9866.46 | N105: -33253.76 | O105: =-_xlfn.XLOOKUP(A105,[10]Capital!B:B,[10]Capital!AG:AG,0,FALSE) -> -24202.48 | P105: =_xlfn.XLOOKUP(A105,[10]Capital!B:B,[10]Capital!AH:AH,0,FALSE) -> 0 | Q105: -24202.48
A106: AX09P | B106: =_xlfn.XLOOKUP(A106,[9]Sheet2!A:A,[9]Sheet2!D:D,0,FALSE) -> Non Chq Bk | C106: REAHP | D106: 330 | E106: 3436 | F106: 3303436 | G106: HARPER BELL PRIMARY JI NC | H106: 813095.1297 | I106: -230959.38 | J106: 582135.7497 | L106: 0 | M106: 0 | N106: 0 | O106: =-_xlfn.XLOOKUP(A106,[10]Capital!B:B,[10]Capital!AG:AG,0,FALSE) -> 0 | P106: =_xlfn.XLOOKUP(A106,[10]Capital!B:B,[10]Capital!AH:AH,0,FALSE) -> 0 | Q106: 0
A107: AX02U | B107: =_xlfn.XLOOKUP(A107,[9]Sheet2!A:A,[9]Sheet2!D:D,0,FALSE) -> Non Chq Bk | C107: REAFH | D107: 330 | E107: 3411 | F107: 3303411 | G107: HOLLY HILL I NC | H107: -177407.2659 | I107: 3319.48 | J107: -174087.7859 | L107: 0 | M107: 0 | N107: 0 | O107: =-_xlfn.XLOOKUP(A107,[10]Capital!B:B,[10]Capital!AG:AG,0,FALSE) -> 0 | P107: =_xlfn.XLOOKUP(A107,[10]Capital!B:B,[10]Capital!AH:AH,0,FALSE) -> 0 | Q107: 0
A108: AX02V | B108: =_xlfn.XLOOKUP(A108,[9]Sheet2!A:A,[9]Sheet2!D:D,0,FALSE) -> Non Chq Bk | C108: REAFK | D108: 330 | E108: 2474 | F108: 3302474 | G108: HOLLYFIELD JI | H108: -47784.88419 | I108: 24104.4 | J108: -23680.48419 | L108: -14453.17 | M108: -7905.97 | N108: -22359.14 | O108: =-_xlfn.XLOOKUP(A108,[10]Capital!B:B,[10]Capital!AG:AG,0,FALSE) -> -18385.08 | P108: =_xlfn.XLOOKUP(A108,[10]Capital!B:B,[10]Capital!AH:AH,0,FALSE) -> 0 | Q108: -18385.08
A109: AX02Y | B109: =_xlfn.XLOOKUP(A109,[9]Sheet2!A:A,[9]Sheet2!D:D,0,FALSE) -> Non Chq Bk | C109: REAFP | D109: 330 | E109: 3317 | F109: 3303317 | G109: HOLY FAMILY RC JI NC | H109: -193827.1689 | I109: 54120.08 | J109: -139707.0889 | L109: 0 | M109: 0 | N109: 0 | O109: =-_xlfn.XLOOKUP(A109,[10]Capital!B:B,[10]Capital!AG:AG,0,FALSE) -> 0 | P109: =_xlfn.XLOOKUP(A109,[10]Capital!B:B,[10]Capital!AH:AH,0,FALSE) -> 0 | Q109: 0
A110: AX035 | B110: =_xlfn.XLOOKUP(A110,[9]Sheet2!A:A,[9]Sheet2!D:D,0,FALSE) -> Non Chq Bk | C110: REAFW | D110: 330 | E110: 3352 | F110: 3303352 | G110: KING DAVID JI NC | H110: -20489.61138 | I110: 14362.29 | J110: -6127.321378 | L110: 0 | M110: 0 | N110: 0 | O110: =-_xlfn.XLOOKUP(A110,[10]Capital!B:B,[10]Capital!AG:AG,0,FALSE) -> 0 | P110: =_xlfn.XLOOKUP(A110,[10]Capital!B:B,[10]Capital!AH:AH,0,FALSE) -> 0 | Q110: 0
A111: AX037 | B111: =_xlfn.XLOOKUP(A111,[9]Sheet2!A:A,[9]Sheet2!D:D,0,FALSE) -> Non Chq Bk | C111: REAFY | D111: 330 | E111: 2005 | F111: 3302005 | G111: KINGS HEATH JI NC | H111: 172089.7477 | I111: 41789.45 | J111: 213879.1977 | L111: -15655.84 | M111: -5345.62 | N111: -21001.46 | O111: =-_xlfn.XLOOKUP(A111,[10]Capital!B:B,[10]Capital!AG:AG,0,FALSE) -> -23408.1 | P111: =_xlfn.XLOOKUP(A111,[10]Capital!B:B,[10]Capital!AH:AH,0,FALSE) -> 0 | Q111: -23408.1
A112: AX03B | B112: =_xlfn.XLOOKUP(A112,[9]Sheet2!A:A,[9]Sheet2!D:D,0,FALSE) -> Non Chq Bk | C112: REAGB | D112: 330 | E112: 2115 | F112: 3302115 | G112: KINGSLAND JI NC | H112: -459640.2757 | I112: 46204.67 | J112: -413435.6057 | L112: -15526.28 | M112: -7782.25 | N112: -23308.53 | O112: =-_xlfn.XLOOKUP(A112,[10]Capital!B:B,[10]Capital!AG:AG,0,FALSE) -> -16744.17 | P112: =_xlfn.XLOOKUP(A112,[10]Capital!B:B,[10]Capital!AH:AH,0,FALSE) -> 0 | Q112: -16744.17
A113: AX03C | B113: =_xlfn.XLOOKUP(A113,[9]Sheet2!A:A,[9]Sheet2!D:D,0,FALSE) -> Non Chq Bk | C113: REAGC | D113: 330 | E113: 2441 | F113: 3302441 | G113: KINGSTHORNE JI NC | H113: -608298.3945 | I113: 117564.39 | J113: -490734.0045 | L113: -5373.35 | M113: 516.25 | N113: -4857.1 | O113: =-_xlfn.XLOOKUP(A113,[10]Capital!B:B,[10]Capital!AG:AG,0,FALSE) -> -17378.07 | P113: =_xlfn.XLOOKUP(A113,[10]Capital!B:B,[10]Capital!AH:AH,0,FALSE) -> 0 | Q113: -17378.07
A114: AX03D | B114: =_xlfn.XLOOKUP(A114,[9]Sheet2!A:A,[9]Sheet2!D:D,0,FALSE) -> Non Chq Bk | C114: REAGD | D114: 330 | E114: 2321 | F114: 3302321 | G114: KITWELL JI NC | H114: -185128.8824 | I114: -86563.12 | J114: -271692.0024 | L114: -8231.75 | M114: 8081.4 | N114: -150.35 | O114: =-_xlfn.XLOOKUP(A114,[10]Capital!B:B,[10]Capital!AG:AG,0,FALSE) -> -14132.36 | P114: =_xlfn.XLOOKUP(A114,[10]Capital!B:B,[10]Capital!AH:AH,0,FALSE) -> 0 | Q114: -14132.36
A115: AX03R | B115: =_xlfn.XLOOKUP(A115,[9]Sheet2!A:A,[9]Sheet2!D:D,0,FALSE) -> Non Chq Bk | C115: REAGV | D115: 330 | E115: 2004 | F115: 3302004 | G115: MAPLEDENE JI NC | H115: -129181.2444 | I115: 96832.02 | J115: -32349.22438 | L115: -54946.9 | M115: -415 | N115: -55361.9 | O115: =-_xlfn.XLOOKUP(A115,[10]Capital!B:B,[10]Capital!AG:AG,0,FALSE) -> -16563.63 | P115: =_xlfn.XLOOKUP(A115,[10]Capital!B:B,[10]Capital!AH:AH,0,FALSE) -> 0 | Q115: -16563.63
A116: AX03Z | B116: =_xlfn.XLOOKUP(A116,[9]Sheet2!A:A,[9]Sheet2!D:D,0,FALSE) -> Non Chq Bk | C116: REAHA | D116: 330 | E116: 2246 | F116: 3302246 | G116: MEADOWS JI | H116: -304201.9512 | I116: -103572.02 | J116: -407773.9712 | L116: -15205.13 | M116: -11121.25 | N116: -26326.38 | O116: =-_xlfn.XLOOKUP(A116,[10]Capital!B:B,[10]Capital!AG:AG,0,FALSE) -> -22697.98 | P116: =_xlfn.XLOOKUP(A116,[10]Capital!B:B,[10]Capital!AH:AH,0,FALSE) -> 0 | Q116: -22697.98
A117: AX041 | B117: =_xlfn.XLOOKUP(A117,[9]Sheet2!A:A,[9]Sheet2!D:D,0,FALSE) -> Non Chq Bk | C117: REAHG | D117: 330 | E117: 2416 | F117: 3302416 | G117: MOOR HALL JI | H117: -28012.74134 | I117: 52464.18 | J117: 24451.43866 | L117: -8538.52 | M117: -7453.75 | N117: -15992.27 | O117: =-_xlfn.XLOOKUP(A117,[10]Capital!B:B,[10]Capital!AG:AG,0,FALSE) -> -16158.42 | P117: =_xlfn.XLOOKUP(A117,[10]Capital!B:B,[10]Capital!AH:AH,0,FALSE) -> 0 | Q117: -16158.42
A118: AX042 | B118: =_xlfn.XLOOKUP(A118,[9]Sheet2!A:A,[9]Sheet2!D:D,0,FALSE) -> Non Chq Bk | C118: REAHH | D118: 330 | E118: 3003 | F118: 3303003 | G118: MOSELEY CE JI | H118: -103047.0798 | I118: -10947.56 | J118: -113994.6398 | L118: -28412.5 | M118: 0 | N118: -28412.5 | O118: =-_xlfn.XLOOKUP(A118,[10]Capital!B:B,[10]Capital!AG:AG,0,FALSE) -> 0 | P118: =_xlfn.XLOOKUP(A118,[10]Capital!B:B,[10]Capital!AH:AH,0,FALSE) -> 0 | Q118: 0
A119: AX043 | B119: =_xlfn.XLOOKUP(A119,[9]Sheet2!A:A,[9]Sheet2!D:D,0,FALSE) -> Non Chq Bk | C119: REAHL | D119: 330 | E119: 2142 | F119: 3302142 | G119: NELSON JI NC | H119: -1196268.229 | I119: 134216.24 | J119: -1062051.989 | L119: -63875.72 | M119: -2508.47 | N119: -66384.19 | O119: =-_xlfn.XLOOKUP(A119,[10]Capital!B:B,[10]Capital!AG:AG,0,FALSE) -> -18272.74 | P119: =_xlfn.XLOOKUP(A119,[10]Capital!B:B,[10]Capital!AH:AH,0,FALSE) -> 0 | Q119: -18272.74
A120: AX044 | B120: =_xlfn.XLOOKUP(A120,[9]Sheet2!A:A,[9]Sheet2!D:D,0,FALSE) -> Non Chq Bk | C120: REAHM | D120: 330 | E120: 2457 | F120: 3302457 | G120: NELSON MANDELA JI NC | H120: -817621.9726 | I120: -51783.03 | J120: -869405.0026 | L120: -9143.5 | M120: -8992.75 | N120: -18136.25 | O120: =-_xlfn.XLOOKUP(A120,[10]Capital!B:B,[10]Capital!AG:AG,0,FALSE) -> -18902.63 | P120: =_xlfn.XLOOKUP(A120,[10]Capital!B:B,[10]Capital!AH:AH,0,FALSE) -> 0 | Q120: -18902.63
A121: AX045 | B121: =_xlfn.XLOOKUP(A121,[9]Sheet2!A:A,[9]Sheet2!D:D,0,FALSE) -> Non Chq Bk | C121: REAHN | D121: 330 | E121: 2469 | F121: 3302469 | G121: NEW HALL JI NC | H121: -441666.6342 | I121: -118194.53 | J121: -559861.1642 | L121: -8966.32 | M121: -4442.09 | N121: -13408.41 | O121: =-_xlfn.XLOOKUP(A121,[10]Capital!B:B,[10]Capital!AG:AG,0,FALSE) -> -16399.14 | P121: =_xlfn.XLOOKUP(A121,[10]Capital!B:B,[10]Capital!AH:AH,0,FALSE) -> 0 | Q121: -16399.14
A122: AX046 | B122: =_xlfn.XLOOKUP(A122,[9]Sheet2!A:A,[9]Sheet2!D:D,0,FALSE) -> Non Chq Bk | C122: REAHQ | D122: 330 | E122: 3431 | F122: 3303431 | G122: NEW OSCOTT JI NC | H122: -69743.62491 | I122: 70025.27 | J122: 281.6450859 | L122: -17207.45 | M122: -11773.06 | N122: -28980.51 | O122: =-_xlfn.XLOOKUP(A122,[10]Capital!B:B,[10]Capital!AG:AG,0,FALSE) -> -23347.92 | P122: =_xlfn.XLOOKUP(A122,[10]Capital!B:B,[10]Capital!AH:AH,0,FALSE) -> 0 | Q122: -23347.92
A123: AX04H | B123: =_xlfn.XLOOKUP(A123,[9]Sheet2!A:A,[9]Sheet2!D:D,0,FALSE) -> Non Chq Bk | C123: REAJF | D123: 330 | E123: 2149 | F123: 3302149 | G123: PAGET JI NC | H123: -356232.3205 | I123: -77498.53 | J123: -433730.8505 | L123: -28987.72 | M123: -20875.05 | N123: -49862.77 | O123: =-_xlfn.XLOOKUP(A123,[10]Capital!B:B,[10]Capital!AG:AG,0,FALSE) -> -17691 | P123: =_xlfn.XLOOKUP(A123,[10]Capital!B:B,[10]Capital!AH:AH,0,FALSE) -> 0 | Q123: -17691
A124: AX04J | B124: =_xlfn.XLOOKUP(A124,[9]Sheet2!A:A,[9]Sheet2!D:D,0,FALSE) -> Non Chq Bk | C124: REAJG | D124: 330 | E124: 2150 | F124: 3302150 | G124: PARK HILL JI NC | H124: 185819.9857 | I124: 91370.17 | J124: 277190.1557 | L124: -71391.79 | M124: 20656.11 | N124: -50735.68 | O124: =-_xlfn.XLOOKUP(A124,[10]Capital!B:B,[10]Capital!AG:AG,0,FALSE) -> -17829.42 | P124: =_xlfn.XLOOKUP(A124,[10]Capital!B:B,[10]Capital!AH:AH,0,FALSE) -> 0 | Q124: -17829.42
A125: AX04K | B125: =_xlfn.XLOOKUP(A125,[9]Sheet2!A:A,[9]Sheet2!D:D,0,FALSE) -> Non Chq Bk | C125: REAJK | D125: 330 | E125: 2425 | F125: 3302425 | G125: PENNS JI | H125: -34964.31187 | I125: 231810.25 | J125: 196845.9381 | L125: -35224.75 | M125: -6373.75 | N125: -41598.5 | O125: =-_xlfn.XLOOKUP(A125,[10]Capital!B:B,[10]Capital!AG:AG,0,FALSE) -> -14232.66 | P125: =_xlfn.XLOOKUP(A125,[10]Capital!B:B,[10]Capital!AH:AH,0,FALSE) -> 0 | Q125: -14232.66
A126: AX04L | B126: =_xlfn.XLOOKUP(A126,[9]Sheet2!A:A,[9]Sheet2!D:D,0,FALSE) -> Non Chq Bk | C126: REAJM | D126: 330 | E126: 2017 | F126: 3302017 | G126: BEECHES I (Formerly PERRY BEECHES I) | H126: -8990.270341 | I126: -4080.73 | J126: -13071.00034 | L126: -11505.94 | M126: -7037.5 | N126: -18543.44 | O126: =-_xlfn.XLOOKUP(A126,[10]Capital!B:B,[10]Capital!AG:AG,0,FALSE) -> -15416.2 | P126: =_xlfn.XLOOKUP(A126,[10]Capital!B:B,[10]Capital!AH:AH,0,FALSE) -> 0 | Q126: -15416.2
A127: AX04M | B127: =_xlfn.XLOOKUP(A127,[9]Sheet2!A:A,[9]Sheet2!D:D,0,FALSE) -> Non Chq Bk | C127: REAJN | D127: 330 | E127: 2016 | F127: 3302016 | G127: PERRY BEECHES J | H127: -347050.0452 | I127: 158492.06 | J127: -188557.9852 | L127: -13058.55 | M127: -16255.25 | N127: -29313.8 | O127: =-_xlfn.XLOOKUP(A127,[10]Capital!B:B,[10]Capital!AG:AG,0,FALSE) -> -17201.54 | P127: =_xlfn.XLOOKUP(A127,[10]Capital!B:B,[10]Capital!AH:AH,0,FALSE) -> 0 | Q127: -17201.54
A128: AX04V | B128: =_xlfn.XLOOKUP(A128,[9]Sheet2!A:A,[9]Sheet2!D:D,0,FALSE) -> Non Chq Bk | C128: REAJX | D128: 330 | E128: 2157 | F128: 3302157 | G128: RADDLEBARN JI NC | H128: 28539.49306 | I128: 115640.97 | J128: 144180.4631 | L128: -6263.41 | M128: -8347 | N128: -14610.41 | O128: =-_xlfn.XLOOKUP(A128,[10]Capital!B:B,[10]Capital!AG:AG,0,FALSE) -> -17751.18 | P128: =_xlfn.XLOOKUP(A128,[10]Capital!B:B,[10]Capital!AH:AH,0,FALSE) -> 0 | Q128: -17751.18
A129: AX04W | B129: =_xlfn.XLOOKUP(A129,[9]Sheet2!A:A,[9]Sheet2!D:D,0,FALSE) -> Non Chq Bk | C129: REAJZ | D129: 330 | E129: 2159 | F129: 3302159 | G129: REDHILL JI NC | H129: 103873.0906 | I129: -86234.68 | J129: 17638.41058 | L129: -4943.33 | M129: 7852.37 | N129: 2909.04 | O129: =-_xlfn.XLOOKUP(A129,[10]Capital!B:B,[10]Capital!AG:AG,0,FALSE) -> -14032.06 | P129: =_xlfn.XLOOKUP(A129,[10]Capital!B:B,[10]Capital!AH:AH,0,FALSE) -> 0 | Q129: -14032.06
A130: AX04X | B130: =_xlfn.XLOOKUP(A130,[9]Sheet2!A:A,[9]Sheet2!D:D,0,FALSE) -> Non Chq Bk | C130: REAKA | D130: 330 | E130: 2161 | F130: 3302161 | G130: REDNAL HILL I NC | H130: -277308.1469 | I130: 11739.5 | J130: -265568.6469 | L130: -18007.84 | M130: 8426.59 | N130: -9581.25 | O130: =-_xlfn.XLOOKUP(A130,[10]Capital!B:B,[10]Capital!AG:AG,0,FALSE) -> -15873.57 | P130: =_xlfn.XLOOKUP(A130,[10]Capital!B:B,[10]Capital!AH:AH,0,FALSE) -> 0 | Q130: -15873.57
A131: AX054 | B131: =_xlfn.XLOOKUP(A131,[9]Sheet2!A:A,[9]Sheet2!D:D,0,FALSE) -> Non Chq Bk | C131: REAKK | D131: 330 | E131: 2169 | F131: 3302169 | G131: SEVERNE JI NC | H131: -472388.7585 | I131: 138858.03 | J131: -333530.7285 | L131: -17465.26 | M131: -7697.75 | N131: -25163.01 | O131: =-_xlfn.XLOOKUP(A131,[10]Capital!B:B,[10]Capital!AG:AG,0,FALSE) -> -18019.99 | P131: =_xlfn.XLOOKUP(A131,[10]Capital!B:B,[10]Capital!AH:AH,0,FALSE) -> 0 | Q131: -18019.99
A132: AX05C | B132: =_xlfn.XLOOKUP(A132,[9]Sheet2!A:A,[9]Sheet2!D:D,0,FALSE) -> Non Chq Bk | C132: REAKX | D132: 330 | E132: 3381 | F132: 3303381 | G132: ST ALBANS RC JI | H132: 68784.92424 | I132: -11253.8 | J132: 57531.12424 | L132: 0 | M132: 0 | N132: 0 | O132: =-_xlfn.XLOOKUP(A132,[10]Capital!B:B,[10]Capital!AG:AG,0,FALSE) -> 0 | P132: =_xlfn.XLOOKUP(A132,[10]Capital!B:B,[10]Capital!AH:AH,0,FALSE) -> 0 | Q132: 0
A133: AX05F | B133: =_xlfn.XLOOKUP(A133,[9]Sheet2!A:A,[9]Sheet2!D:D,0,FALSE) -> Non Chq Bk | C133: REALB | D133: 330 | E133: 3329 | F133: 3303329 | G133: ST AUGUSTINE'S RC JI NC | H133: -102457.6865 | I133: 17069.78 | J133: -85387.90646 | L133: 0 | M133: 0 | N133: 0 | O133: =-_xlfn.XLOOKUP(A133,[10]Capital!B:B,[10]Capital!AG:AG,0,FALSE) -> 0 | P133: =_xlfn.XLOOKUP(A133,[10]Capital!B:B,[10]Capital!AH:AH,0,FALSE) -> 0 | Q133: =O133+P133 -> 0
A134: AX05H | B134: =_xlfn.XLOOKUP(A134,[9]Sheet2!A:A,[9]Sheet2!D:D,0,FALSE) -> Non Chq Bk | C134: REALD | D134: 330 | E134: 2183 | F134: 3302183 | G134: ST BENEDICT'S I NC | H134: 316210.9802 | I134: -292771.61 | J134: 23439.37017 | L134: -10544.58 | M134: -8444.88 | N134: -18989.46 | O134: =-_xlfn.XLOOKUP(A134,[10]Capital!B:B,[10]Capital!AG:AG,0,FALSE) -> -17925.71 | P134: =_xlfn.XLOOKUP(A134,[10]Capital!B:B,[10]Capital!AH:AH,0,FALSE) -> 0 | Q134: -17925.71
A135: AX05K | B135: =_xlfn.XLOOKUP(A135,[9]Sheet2!A:A,[9]Sheet2!D:D,0,FALSE) -> Non Chq Bk | C135: REALF | D135: 330 | E135: 3375 | F135: 3303375 | G135: ST BERNARD'S RC JI | H135: -251829.1336 | I135: 28842.8 | J135: -222986.3336 | L135: 0 | M135: 0 | N135: 0 | O135: =-_xlfn.XLOOKUP(A135,[10]Capital!B:B,[10]Capital!AG:AG,0,FALSE) -> 0 | P135: =_xlfn.XLOOKUP(A135,[10]Capital!B:B,[10]Capital!AH:AH,0,FALSE) -> 0 | Q135: 0
A136: AX05L | B136: =_xlfn.XLOOKUP(A136,[9]Sheet2!A:A,[9]Sheet2!D:D,0,FALSE) -> Non Chq Bk | C136: REALH | D136: 330 | E136: 3331 | F136: 3303331 | G136: ST CATHERINE'S RC JI NC | H136: -69295.94346 | I136: 21742.69 | J136: -47553.25346 | L136: 0 | M136: 0 | N136: 0 | O136: =-_xlfn.XLOOKUP(A136,[10]Capital!B:B,[10]Capital!AG:AG,0,FALSE) -> 0 | P136: =_xlfn.XLOOKUP(A136,[10]Capital!B:B,[10]Capital!AH:AH,0,FALSE) -> 0 | Q136: 0
A137: AX05N | B137: =_xlfn.XLOOKUP(A137,[9]Sheet2!A:A,[9]Sheet2!D:D,0,FALSE) -> Non Chq Bk | C137: REALK | D137: 330 | E137: 3406 | F137: 3303406 | G137: ST CLARE'S RC JI NC | H137: -338534.9268 | I137: 78420.19 | J137: -260114.7368 | L137: 0 | M137: 0 | N137: 0 | O137: =-_xlfn.XLOOKUP(A137,[10]Capital!B:B,[10]Capital!AG:AG,0,FALSE) -> 0 | P137: =_xlfn.XLOOKUP(A137,[10]Capital!B:B,[10]Capital!AH:AH,0,FALSE) -> 0 | Q137: 0
A138: AX05P | B138: =_xlfn.XLOOKUP(A138,[9]Sheet2!A:A,[9]Sheet2!D:D,0,FALSE) -> Non Chq Bk | C138: REALN | D138: 330 | E138: 3386 | F138: 3303386 | G138: ST CUTHBERTS RC JI NC | H138: -162113.5035 | I138: -2975.15 | J138: -165088.6535 | L138: 0 | M138: 0 | N138: 0 | O138: =-_xlfn.XLOOKUP(A138,[10]Capital!B:B,[10]Capital!AG:AG,0,FALSE) -> 0 | P138: =_xlfn.XLOOKUP(A138,[10]Capital!B:B,[10]Capital!AH:AH,0,FALSE) -> 0 | Q138: 0
A139: AX05T | B139: =_xlfn.XLOOKUP(A139,[9]Sheet2!A:A,[9]Sheet2!D:D,0,FALSE) -> Non Chq Bk | C139: REALQ | D139: 330 | E139: 3347 | F139: 3303347 | G139: ST EDMUND'S RC JI NC | H139: -95743.37885 | I139: 93263.05 | J139: -2480.328846 | L139: 0 | M139: 0 | N139: 0 | O139: =-_xlfn.XLOOKUP(A139,[10]Capital!B:B,[10]Capital!AG:AG,0,FALSE) -> 0 | P139: =_xlfn.XLOOKUP(A139,[10]Capital!B:B,[10]Capital!AH:AH,0,FALSE) -> 0 | Q139: 0
A140: AX05V | B140: =_xlfn.XLOOKUP(A140,[9]Sheet2!A:A,[9]Sheet2!D:D,0,FALSE) -> Non Chq Bk | C140: REALV | D140: 330 | E140: 3342 | F140: 3303342 | G140: ST FRANCIS RC JI | H140: -342085.8205 | I140: -98652.32 | J140: -440738.1405 | L140: 0 | M140: 0 | N140: 0 | O140: =-_xlfn.XLOOKUP(A140,[10]Capital!B:B,[10]Capital!AG:AG,0,FALSE) -> 0 | P140: =_xlfn.XLOOKUP(A140,[10]Capital!B:B,[10]Capital!AH:AH,0,FALSE) -> 0 | Q140: 0
A141: AX05Z | B141: =_xlfn.XLOOKUP(A141,[9]Sheet2!A:A,[9]Sheet2!D:D,0,FALSE) -> Non Chq Bk | C141: REALZ | D141: 330 | E141: 3010 | F141: 3303010 | G141: ST JAMES CE JI | H141: -301717.8466 | I141: -133511.43 | J141: -435229.2766 | L141: -15225.98 | M141: 4223.56 | N141: -11002.42 | O141: =-_xlfn.XLOOKUP(A141,[10]Capital!B:B,[10]Capital!AG:AG,0,FALSE) -> -18344.96 | P141: =_xlfn.XLOOKUP(A141,[10]Capital!B:B,[10]Capital!AH:AH,0,FALSE) -> 0 | Q141: -18344.96
A142: AX068 | B142: =_xlfn.XLOOKUP(A142,[9]Sheet2!A:A,[9]Sheet2!D:D,0,FALSE) -> Non Chq Bk | C142: REAML | D142: 330 | E142: 3307 | F142: 3303307 | G142: ST LAURENCE CE J | H142: -235270.3773 | I142: 34181.86 | J142: -201088.5173 | L142: 0 | M142: 0 | N142: 0 | O142: =-_xlfn.XLOOKUP(A142,[10]Capital!B:B,[10]Capital!AG:AG,0,FALSE) -> 0 | P142: =_xlfn.XLOOKUP(A142,[10]Capital!B:B,[10]Capital!AH:AH,0,FALSE) -> 0 | Q142: 0
A143: AX06B | B143: =_xlfn.XLOOKUP(A143,[9]Sheet2!A:A,[9]Sheet2!D:D,0,FALSE) -> Non Chq Bk | C143: REAMQ | D143: 330 | E143: 3382 | F143: 3303382 | G143: ST MARTIN de PORRES RC JI | H143: -139450.6018 | I143: 48085.19 | J143: -91365.41181 | L143: 0 | M143: 0 | N143: 0 | O143: =-_xlfn.XLOOKUP(A143,[10]Capital!B:B,[10]Capital!AG:AG,0,FALSE) -> 0 | P143: =_xlfn.XLOOKUP(A143,[10]Capital!B:B,[10]Capital!AH:AH,0,FALSE) -> 0 | Q143: 0
A144: AX06D | B144: =_xlfn.XLOOKUP(A144,[9]Sheet2!A:A,[9]Sheet2!D:D,0,FALSE) -> Non Chq Bk | C144: REAMV | D144: 330 | E144: 3025 | F144: 3303025 | G144: ST MARY'S CE (B29) JI | H144: -107751.006 | I144: 13878.55 | J144: -93872.45602 | L144: -1393.04 | M144: 0 | N144: -1393.04 | O144: =-_xlfn.XLOOKUP(A144,[10]Capital!B:B,[10]Capital!AG:AG,0,FALSE) -> 0 | P144: =_xlfn.XLOOKUP(A144,[10]Capital!B:B,[10]Capital!AH:AH,0,FALSE) -> 0 | Q144: 0
A145: AX06H | B145: =_xlfn.XLOOKUP(A145,[9]Sheet2!A:A,[9]Sheet2!D:D,0,FALSE) -> Non Chq Bk | C145: REANB | D145: 330 | E145: 3346 | F145: 3303346 | G145: ST PATRICK'S RC JI | H145: 188107.6644 | I145: 75851.56 | J145: 263959.2244 | L145: 0 | M145: 0 | N145: 0 | O145: =-_xlfn.XLOOKUP(A145,[10]Capital!B:B,[10]Capital!AG:AG,0,FALSE) -> 0 | P145: =_xlfn.XLOOKUP(A145,[10]Capital!B:B,[10]Capital!AH:AH,0,FALSE) -> 0 | Q145: 0
A146: AX06P | B146: =_xlfn.XLOOKUP(A146,[9]Sheet2!A:A,[9]Sheet2!D:D,0,FALSE) -> Non Chq Bk | C146: REANJ | D146: 330 | E146: 3365 | F146: 3303365 | G146: ST TERESA'S RC JI | H146: -247500.4396 | I146: -75026.09 | J146: -322526.5296 | L146: 0 | M146: 0 | N146: 0 | O146: =-_xlfn.XLOOKUP(A146,[10]Capital!B:B,[10]Capital!AG:AG,0,FALSE) -> 0 | P146: =_xlfn.XLOOKUP(A146,[10]Capital!B:B,[10]Capital!AH:AH,0,FALSE) -> 0 | Q146: 0
A147: AX06U | B147: =_xlfn.XLOOKUP(A147,[9]Sheet2!A:A,[9]Sheet2!D:D,0,FALSE) -> Non Chq Bk | C147: REANM | D147: 330 | E147: 3310 | F147: 3303310 | G147: ST VINCENT'S RC JI NC | H147: -164094.2551 | I147: 55092.08 | J147: -109002.1751 | L147: 0 | M147: 0 | N147: 0 | O147: =-_xlfn.XLOOKUP(A147,[10]Capital!B:B,[10]Capital!AG:AG,0,FALSE) -> 0 | P147: =_xlfn.XLOOKUP(A147,[10]Capital!B:B,[10]Capital!AH:AH,0,FALSE) -> 0 | Q147: 0
A148: AX06Y | B148: =_xlfn.XLOOKUP(A148,[9]Sheet2!A:A,[9]Sheet2!D:D,0,FALSE) -> Non Chq Bk | C148: REANR | D148: 330 | E148: 2184 | F148: 3302184 | G148: STECHFORD JI NC | H148: -668595.9225 | I148: -94484.71 | J148: -763080.6325 | L148: -6375.19 | M148: -2143.25 | N148: -8518.44 | O148: =-_xlfn.XLOOKUP(A148,[10]Capital!B:B,[10]Capital!AG:AG,0,FALSE) -> -18413.16 | P148: =_xlfn.XLOOKUP(A148,[10]Capital!B:B,[10]Capital!AH:AH,0,FALSE) -> 0 | Q148: -18413.16
A149: AX071 | B149: =_xlfn.XLOOKUP(A149,[9]Sheet2!A:A,[9]Sheet2!D:D,0,FALSE) -> Non Chq Bk | C149: REANV | D149: 330 | E149: 2067 | F149: 3302067 | G149: SUMMERFIELD JI NC | H149: -406970.3865 | I149: -42457.35 | J149: -449427.7365 | L149: -17262.74 | M149: 3411.41 | N149: -13851.33 | O149: =-_xlfn.XLOOKUP(A149,[10]Capital!B:B,[10]Capital!AG:AG,0,FALSE) -> -18056.1 | P149: =_xlfn.XLOOKUP(A149,[10]Capital!B:B,[10]Capital!AH:AH,0,FALSE) -> 0 | Q149: -18056.1
A150: AX075 | B150: =_xlfn.XLOOKUP(A150,[9]Sheet2!A:A,[9]Sheet2!D:D,0,FALSE) -> Non Chq Bk | C150: REANY | D150: 330 | E150: 2192 | F150: 3302192 | G150: THORNTON JI | H150: -486671.6391 | I150: 124560.78 | J150: -362110.8591 | L150: -4769.01 | M150: -6419.55 | N150: -11188.56 | O150: =-_xlfn.XLOOKUP(A150,[10]Capital!B:B,[10]Capital!AG:AG,0,FALSE) -> -21434.2 | P150: =_xlfn.XLOOKUP(A150,[10]Capital!B:B,[10]Capital!AH:AH,0,FALSE) -> 0 | Q150: -21434.2
A151: AX07B | B151: =_xlfn.XLOOKUP(A151,[9]Sheet2!A:A,[9]Sheet2!D:D,0,FALSE) -> Non Chq Bk | C151: REAPK | D151: 330 | E151: 2108 | F151: 3302108 | G151: WARD END JI NC | H151: -1079540.339 | I151: 101953.18 | J151: -977587.1593 | L151: -103591.43 | M151: -14107 | N151: -117698.43 | O151: =-_xlfn.XLOOKUP(A151,[10]Capital!B:B,[10]Capital!AG:AG,0,FALSE) -> -28021.9 | P151: =_xlfn.XLOOKUP(A151,[10]Capital!B:B,[10]Capital!AH:AH,0,FALSE) -> 0 | Q151: -28021.9
A152: AX07L | B152: =_xlfn.XLOOKUP(A152,[9]Sheet2!A:A,[9]Sheet2!D:D,0,FALSE) -> Non Chq Bk | C152: REAPV | D152: 330 | E152: 2019 | F152: 3302019 | G152: WEST HEATH JI | H152: 38173.80303 | I152: -99030.74 | J152: -60856.93697 | L152: -6190.01 | M152: -8522.5 | N152: -14712.51 | O152: =-_xlfn.XLOOKUP(A152,[10]Capital!B:B,[10]Capital!AG:AG,0,FALSE) -> -18064.12 | P152: =_xlfn.XLOOKUP(A152,[10]Capital!B:B,[10]Capital!AH:AH,0,FALSE) -> 0 | Q152: -18064.12
A153: AX07W | B153: =_xlfn.XLOOKUP(A153,[9]Sheet2!A:A,[9]Sheet2!D:D,0,FALSE) -> Non Chq Bk | C153: REARF | D153: 330 | E153: 2314 | F153: 3302314 | G153: WOODTHORPE JI | H153: -92300.46769 | I153: -25188.37 | J153: -117488.8377 | L153: -13252.13 | M153: -6317.5 | N153: -19569.63 | O153: =-_xlfn.XLOOKUP(A153,[10]Capital!B:B,[10]Capital!AG:AG,0,FALSE) -> -14132.36 | P153: =_xlfn.XLOOKUP(A153,[10]Capital!B:B,[10]Capital!AH:AH,0,FALSE) -> 0 | Q153: -14132.36
A154: AX081 | B154: =_xlfn.XLOOKUP(A154,[9]Sheet2!A:A,[9]Sheet2!D:D,0,FALSE) -> Non Chq Bk | C154: REARR | D154: 330 | E154: 2227 | F154: 3302227 | G154: YARDLEY WOOD JI NC | H154: -383723.6577 | I154: 46136.2 | J154: -337587.4577 | L154: -2234.45 | M154: 7599.25 | N154: 5364.8 | O154: =-_xlfn.XLOOKUP(A154,[10]Capital!B:B,[10]Capital!AG:AG,0,FALSE) -> -18292.8 | P154: =_xlfn.XLOOKUP(A154,[10]Capital!B:B,[10]Capital!AH:AH,0,FALSE) -> 0 | Q154: -18292.8
A155: AX083 | B155: =_xlfn.XLOOKUP(A155,[9]Sheet2!A:A,[9]Sheet2!D:D,0,FALSE) -> Non Chq Bk | C155: REARY | D155: 330 | E155: 2231 | F155: 3302231 | G155: YORKMEAD JI NC | H155: -289803.4651 | I155: 76241.09 | J155: -213562.3751 | L155: -805.55 | M155: -8920.75 | N155: -9726.3 | O155: =-_xlfn.XLOOKUP(A155,[10]Capital!B:B,[10]Capital!AG:AG,0,FALSE) -> -18774.24 | P155: =_xlfn.XLOOKUP(A155,[10]Capital!B:B,[10]Capital!AH:AH,0,FALSE) -> 0 | Q155: -18774.24
A156: AX036 | B156: =_xlfn.XLOOKUP(A156,[9]Sheet2!A:A,[9]Sheet2!D:D,0,FALSE) -> Non Chq Bk | C156: REAVW | D156: 330 | E156: 4063 | F156: 3304063 | G156: KINGS HEATH Sec | H156: -746756.8332 | I156: 272178.16 | J156: -474578.6732 | L156: -2502.98 | M156: -15044.69 | N156: -17547.67 | O156: =-_xlfn.XLOOKUP(A156,[10]Capital!B:B,[10]Capital!AG:AG,0,FALSE) -> -29693.91 | P156: =_xlfn.XLOOKUP(A156,[10]Capital!B:B,[10]Capital!AH:AH,0,FALSE) -> 0 | Q156: -29693.91
A157: AX063 | B157: =_xlfn.XLOOKUP(A157,[9]Sheet2!A:A,[9]Sheet2!D:D,0,FALSE) -> Non Chq Bk | C157: REAWV | D157: 330 | E157: 4625 | F157: 3304625 | G157: ST JOHN WALL RC Sec | H157: -155639.1298 | I157: -99943.6 | J157: -255582.7298 | L157: 0 | M157: 0 | N157: 0 | O157: =-_xlfn.XLOOKUP(A157,[10]Capital!B:B,[10]Capital!AG:AG,0,FALSE) -> 0 | P157: =_xlfn.XLOOKUP(A157,[10]Capital!B:B,[10]Capital!AH:AH,0,FALSE) -> 0 | Q157: 0
A158: AX07N | B158: =_xlfn.XLOOKUP(A158,[9]Sheet2!A:A,[9]Sheet2!D:D,0,FALSE) -> Non Chq Bk | C158: REAXJ | D158: 330 | E158: 4193 | F158: 3304193 | G158: WHEELERS LANE Sec | H158: -42612.32706 | I158: -409612.17 | J158: -452224.4971 | L158: -478.94 | M158: -14985.62 | N158: -15464.56 | O158: =-_xlfn.XLOOKUP(A158,[10]Capital!B:B,[10]Capital!AG:AG,0,FALSE) -> -29588.59 | P158: =_xlfn.XLOOKUP(A158,[10]Capital!B:B,[10]Capital!AH:AH,0,FALSE) -> 0 | Q158: -29588.59
A159: AX00E | B159: =_xlfn.XLOOKUP(A159,[9]Sheet2!A:A,[9]Sheet2!D:D,0,FALSE) -> Non Chq Bk | C159: REAXL | D159: 330 | E159: 7016 | F159: 3307016 | G159: BASKERVILLE Spec | H159: -795930.9926 | I159: -136054.01 | J159: -931985.0026 | L159: -19241.21 | M159: -1507 | N159: -20748.21 | O159: =-_xlfn.XLOOKUP(A159,[10]Capital!B:B,[10]Capital!AG:AG,0,FALSE) -> -24443.2 | P159: =_xlfn.XLOOKUP(A159,[10]Capital!B:B,[10]Capital!AH:AH,0,FALSE) -> 0 | Q159: -24443.2
A160: AX00F | B160: =_xlfn.XLOOKUP(A160,[9]Sheet2!A:A,[9]Sheet2!D:D,0,FALSE) -> Non Chq Bk | C160: REAXM | D160: 330 | E160: 7052 | F160: 3307052 | G160: BEAUFORT Spec | H160: -379934.9606 | I160: 225337.78 | J160: -154597.1806 | L160: -23150.66 | M160: 21276.5 | N160: -1874.16 | O160: =-_xlfn.XLOOKUP(A160,[10]Capital!B:B,[10]Capital!AG:AG,0,FALSE) -> -17004.95 | P160: =_xlfn.XLOOKUP(A160,[10]Capital!B:B,[10]Capital!AH:AH,0,FALSE) -> 0 | Q160: -17004.95
A161: AX02K | B161: =_xlfn.XLOOKUP(A161,[9]Sheet2!A:A,[9]Sheet2!D:D,0,FALSE) -> Non Chq Bk | C161: REAXZ | D161: 330 | E161: 7006 | F161: 3307006 | G161: HAMILTON Spec | H161: -305588.4934 | I161: 103936.56 | J161: -201651.9334 | L161: -12588.62 | M161: -10125.62 | N161: -22714.24 | O161: =-_xlfn.XLOOKUP(A161,[10]Capital!B:B,[10]Capital!AG:AG,0,FALSE) -> -20922.67 | P161: =_xlfn.XLOOKUP(A161,[10]Capital!B:B,[10]Capital!AH:AH,0,FALSE) -> 0 | Q161: -20922.67
A162: AX03K | B162: =_xlfn.XLOOKUP(A162,[9]Sheet2!A:A,[9]Sheet2!D:D,0,FALSE) -> Non Chq Bk | C162: REAYE | D162: 330 | E162: 7062 | F162: 3307062 | G162: LINDSWORTH Spec | H162: 128968.4363 | I162: -389356.81 | J162: -260388.3737 | L162: -22341.09 | M162: -10075 | N162: -32416.09 | O162: =-_xlfn.XLOOKUP(A162,[10]Capital!B:B,[10]Capital!AG:AG,0,FALSE) -> -20832.4 | P162: =_xlfn.XLOOKUP(A162,[10]Capital!B:B,[10]Capital!AH:AH,0,FALSE) -> 0 | Q162: -20832.4
A163: AX03Y | B163: =_xlfn.XLOOKUP(A163,[9]Sheet2!A:A,[9]Sheet2!D:D,0,FALSE) -> Non Chq Bk | C163: REAYH | D163: 330 | E163: 7040 | F163: 3307040 | G163: MAYFIELD Spec | H163: 0 | I163: 0 | J163: 0 | L163: 0 | M163: 0 | N163: 0 | O163: =-_xlfn.XLOOKUP(A163,[10]Capital!B:B,[10]Capital!AG:AG,0,FALSE) -> 0 | P163: =_xlfn.XLOOKUP(A163,[10]Capital!B:B,[10]Capital!AH:AH,0,FALSE) -> 0 | Q163: 0
A164: AX04C | B164: =_xlfn.XLOOKUP(A164,[9]Sheet2!A:A,[9]Sheet2!D:D,0,FALSE) -> Non Chq Bk | C164: REAYC | D164: 330 | E164: 7053 | F164: 3307053 | G164: OSCOTT MANOR Spec | H164: -667966.6127 | I164: 359210.49 | J164: -308756.1227 | L164: -12089.88 | M164: -9492.81 | N164: -21582.69 | O164: =-_xlfn.XLOOKUP(A164,[10]Capital!B:B,[10]Capital!AG:AG,0,FALSE) -> -19794.3 | P164: =_xlfn.XLOOKUP(A164,[10]Capital!B:B,[10]Capital!AH:AH,0,FALSE) -> 0 | Q164: -19794.3
A165: AX04Q | B165: =_xlfn.XLOOKUP(A165,[9]Sheet2!A:A,[9]Sheet2!D:D,0,FALSE) -> Non Chq Bk | C165: REAYK | D165: 330 | E165: 7034 | F165: 3307034 | G165: PRIESTLEY SMITH Spec | H165: -284667.9064 | I165: 19760.64 | J165: -264907.2664 | L165: -10069.74 | M165: -2230.12 | N165: -12299.86 | O165: =-_xlfn.XLOOKUP(A165,[10]Capital!B:B,[10]Capital!AG:AG,0,FALSE) -> -17925.71 | P165: =_xlfn.XLOOKUP(A165,[10]Capital!B:B,[10]Capital!AH:AH,0,FALSE) -> 0 | Q165: -17925.71
A166: AX057 | B166: =_xlfn.XLOOKUP(A166,[9]Sheet2!A:A,[9]Sheet2!D:D,0,FALSE) -> Non Chq Bk | C166: REAYN | D166: 330 | E166: 7037 | F166: 3307037 | G166: SKILTS Spec | H166: 0 | I166: 7.275957614e-12 | J166: 7.275957614e-12 | L166: -37159.52 | M166: 0 | N166: -37159.52 | O166: =-_xlfn.XLOOKUP(A166,[10]Capital!B:B,[10]Capital!AG:AG,0,FALSE) -> 0 | P166: =_xlfn.XLOOKUP(A166,[10]Capital!B:B,[10]Capital!AH:AH,0,FALSE) -> 0 | Q166: 0
A167: AX05A | B167: =_xlfn.XLOOKUP(A167,[9]Sheet2!A:A,[9]Sheet2!D:D,0,FALSE) -> Non Chq Bk | C167: REAYP | D167: 330 | E167: 7047 | F167: 3307047 | G167: SPRINGFIELD HOUSE Spec | H167: -58526.63572 | I167: -21898.21 | J167: -80424.84572 | L167: -23276.99 | M167: 5999.62 | N167: -17277.37 | O167: =-_xlfn.XLOOKUP(A167,[10]Capital!B:B,[10]Capital!AG:AG,0,FALSE) -> -17853.49 | P167: =_xlfn.XLOOKUP(A167,[10]Capital!B:B,[10]Capital!AH:AH,0,FALSE) -> 0 | Q167: -17853.49
A168: AX087 | B168: =_xlfn.XLOOKUP(A168,[9]Sheet2!A:A,[9]Sheet2!D:D,0,FALSE) -> Chq Bk | C168: REAYX | D168: 330 | E168: 1017 | F168: 3301017 | G168: ALLENS CROFT Nurs | H168: -169669.1957 | I168: 10728.68 | J168: -158940.5157 | L168: -20062.56 | M168: 16050.6 | N168: -4011.96 | O168: =-_xlfn.XLOOKUP(A168,[10]Capital!B:B,[10]Capital!AG:AG,0,FALSE) -> -12347.02 | P168: =_xlfn.XLOOKUP(A168,[10]Capital!B:B,[10]Capital!AH:AH,0,FALSE) -> 12144 | Q168: -203.02
A169: AX056 | B169: =_xlfn.XLOOKUP(A169,[9]Sheet2!A:A,[9]Sheet2!D:D,0,FALSE) -> Chq Bk | C169: REAZV | D169: 330 | E169: 1038 | F169: 3301038 | G169: SHENLEY FIELDS Nurs | H169: -238932 | I169: 46707 | J169: -192225 | L169: -26085.06 | M169: -2966 | N169: -29051.06 | O169: =-_xlfn.XLOOKUP(A169,[10]Capital!B:B,[10]Capital!AG:AG,0,FALSE) -> -12070.19 | P169: =_xlfn.XLOOKUP(A169,[10]Capital!B:B,[10]Capital!AH:AH,0,FALSE) -> 0 | Q169: -12070.19
A170: AX085 | B170: =_xlfn.XLOOKUP(A170,[9]Sheet2!A:A,[9]Sheet2!D:D,0,FALSE) -> Chq Bk | C170: REAAD | D170: 330 | E170: 2010 | F170: 3302010 | G170: ADDERLEY JI | H170: -500372.0529 | I170: 54255.15 | J170: -446116.9029 | L170: -98159.55 | M170: -9748.75 | N170: -107908.3 | O170: =-_xlfn.XLOOKUP(A170,[10]Capital!B:B,[10]Capital!AG:AG,0,FALSE) -> -20250.66 | P170: =_xlfn.XLOOKUP(A170,[10]Capital!B:B,[10]Capital!AH:AH,0,FALSE) -> 0 | Q170: -20250.66
A171: AX08G | B171: =_xlfn.XLOOKUP(A171,[9]Sheet2!A:A,[9]Sheet2!D:D,0,FALSE) -> Chq Bk | C171: REABL | D171: 330 | E171: 2402 | F171: 3302402 | G171: BOLDMERE I NC | H171: -275184.1777 | I171: 84397.5 | J171: -190786.6777 | L171: -17571.87 | M171: 9354.04 | N171: -8217.83 | O171: =-_xlfn.XLOOKUP(A171,[10]Capital!B:B,[10]Capital!AG:AG,0,FALSE) -> -16166.44 | P171: =_xlfn.XLOOKUP(A171,[10]Capital!B:B,[10]Capital!AH:AH,0,FALSE) -> 0 | Q171: -16166.44
A172: AX00T | B172: =_xlfn.XLOOKUP(A172,[9]Sheet2!A:A,[9]Sheet2!D:D,0,FALSE) -> Chq Bk | C172: REABM | D172: 330 | E172: 2401 | F172: 3302401 | G172: BOLDMERE J | H172: -136008.6397 | I172: -34350.29 | J172: -170358.9297 | L172: -43659.88 | M172: 10051.25 | N172: -33608.63 | O172: =-_xlfn.XLOOKUP(A172,[10]Capital!B:B,[10]Capital!AG:AG,0,FALSE) -> -17362.02 | P172: =_xlfn.XLOOKUP(A172,[10]Capital!B:B,[10]Capital!AH:AH,0,FALSE) -> 0 | Q172: -17362.02
A173: AX08H | B173: =_xlfn.XLOOKUP(A173,[9]Sheet2!A:A,[9]Sheet2!D:D,0,FALSE) -> Chq Bk | C173: REABN | D173: 330 | E173: 2030 | F173: 3302030 | G173: BORDESLEY GREEN JI NC | H173: -356926.1614 | I173: 83535.04 | J173: -273391.1214 | L173: -11708.25 | M173: -7538.6 | N173: -19246.85 | O173: =-_xlfn.XLOOKUP(A173,[10]Capital!B:B,[10]Capital!AG:AG,0,FALSE) -> -23223.55 | P173: =_xlfn.XLOOKUP(A173,[10]Capital!B:B,[10]Capital!AH:AH,0,FALSE) -> 1782.4 | Q173: -21441.15
A174: AX08N | B174: =_xlfn.XLOOKUP(A174,[9]Sheet2!A:A,[9]Sheet2!D:D,0,FALSE) -> Chq Bk | C174: REABT | D174: 330 | E174: 2238 | F174: 3302238 | G174: BROADMEADOW I NC | H174: -273426.2301 | I174: 45913.37 | J174: -227512.8601 | L174: -14825.21 | M174: -2141.61 | N174: -16966.82 | O174: =-_xlfn.XLOOKUP(A174,[10]Capital!B:B,[10]Capital!AG:AG,0,FALSE) -> -13522.54 | P174: =_xlfn.XLOOKUP(A174,[10]Capital!B:B,[10]Capital!AH:AH,0,FALSE) -> 0 | Q174: -13522.54
A175: AX010 | B175: =_xlfn.XLOOKUP(A175,[9]Sheet2!A:A,[9]Sheet2!D:D,0,FALSE) -> Chq Bk | C175: REABV | D175: 330 | E175: 2236 | F175: 3302236 | G175: BROADMEADOW J | H175: -291704.2063 | I175: 70552.36 | J175: -221151.8463 | L175: -8193.2 | M175: -256.5 | N175: -8449.7 | O175: =-_xlfn.XLOOKUP(A175,[10]Capital!B:B,[10]Capital!AG:AG,0,FALSE) -> -14453.32 | P175: =_xlfn.XLOOKUP(A175,[10]Capital!B:B,[10]Capital!AH:AH,0,FALSE) -> 0 | Q175: -14453.32
A176: AX015 | B176: =_xlfn.XLOOKUP(A176,[9]Sheet2!A:A,[9]Sheet2!D:D,0,FALSE) -> Chq Bk | C176: REACD | D176: 330 | E176: 2312 | F176: 3302312 | G176: CHAD VALE JI | H176: -70016.77 | I176: 59297.77911 | J176: -10718.99089 | L176: -27226.64 | M176: 10139.95 | N176: -17086.69 | O176: =-_xlfn.XLOOKUP(A176,[10]Capital!B:B,[10]Capital!AG:AG,0,FALSE) -> -18445.26 | P176: =_xlfn.XLOOKUP(A176,[10]Capital!B:B,[10]Capital!AH:AH,0,FALSE) -> 3806.4 | Q176: -14638.86
A177: AX08W | B177: =_xlfn.XLOOKUP(A177,[9]Sheet2!A:A,[9]Sheet2!D:D,0,FALSE) -> Chq Bk | C177: REACG | D177: 330 | E177: 2251 | F177: 3302251 | G177: CHILCOTE JI NC | H177: -328970.5898 | I177: 136949.25 | J177: -192021.3398 | L177: -25023.04 | M177: -6697.96 | N177: -31721 | O177: =-_xlfn.XLOOKUP(A177,[10]Capital!B:B,[10]Capital!AG:AG,0,FALSE) -> -18962.81 | P177: =_xlfn.XLOOKUP(A177,[10]Capital!B:B,[10]Capital!AH:AH,0,FALSE) -> 0 | Q177: -18962.81
A178: AX019 | B178: =_xlfn.XLOOKUP(A178,[9]Sheet2!A:A,[9]Sheet2!D:D,0,FALSE) -> Chq Bk | C178: REACJ | D178: 330 | E178: 3319 | F178: 3303319 | G178: CHRIST THE KING RC JI NC | H178: -121852.2772 | I178: 4481.25 | J178: -117371.0272 | L178: 0 | M178: 0 | N178: 0 | O178: =-_xlfn.XLOOKUP(A178,[10]Capital!B:B,[10]Capital!AG:AG,0,FALSE) -> 0 | P178: =_xlfn.XLOOKUP(A178,[10]Capital!B:B,[10]Capital!AH:AH,0,FALSE) -> 0 | Q178: 0
A179: AX01A | B179: =_xlfn.XLOOKUP(A179,[9]Sheet2!A:A,[9]Sheet2!D:D,0,FALSE) -> Chq Bk | C179: REACK | D179: 330 | E179: 3002 | F179: 3303002 | G179: CHRISTCHURCH CE JI NC | H179: -460634.8098 | I179: 37619.44 | J179: -423015.3698 | L179: -6459.98 | M179: -6434.5 | N179: -12894.48 | O179: =-_xlfn.XLOOKUP(A179,[10]Capital!B:B,[10]Capital!AG:AG,0,FALSE) -> -14340.98 | P179: =_xlfn.XLOOKUP(A179,[10]Capital!B:B,[10]Capital!AH:AH,0,FALSE) -> 0 | Q179: -14340.98
A180: AX092 | B180: =_xlfn.XLOOKUP(A180,[9]Sheet2!A:A,[9]Sheet2!D:D,0,FALSE) -> Chq Bk | C180: REACV | D180: 330 | E180: 2054 | F180: 3302054 | G180: COLMORE I NC | H180: -79616.10057 | I180: 5972.48 | J180: -73643.62057 | L180: -8394.01 | M180: -1438.5 | N180: -9832.51 | O180: =-_xlfn.XLOOKUP(A180,[10]Capital!B:B,[10]Capital!AG:AG,0,FALSE) -> -17887.59 | P180: =_xlfn.XLOOKUP(A180,[10]Capital!B:B,[10]Capital!AH:AH,0,FALSE) -> 0 | Q180: -17887.59
A181: AX093 | B181: =_xlfn.XLOOKUP(A181,[9]Sheet2!A:A,[9]Sheet2!D:D,0,FALSE) -> Chq Bk | C181: REACW | D181: 330 | E181: 2053 | F181: 3302053 | G181: COLMORE J | H181: -241682.0948 | I181: -58004.45 | J181: -299686.5448 | L181: -9400.25 | M181: -3038.01 | N181: -12438.26 | O181: =-_xlfn.XLOOKUP(A181,[10]Capital!B:B,[10]Capital!AG:AG,0,FALSE) -> -19548.56 | P181: =_xlfn.XLOOKUP(A181,[10]Capital!B:B,[10]Capital!AH:AH,0,FALSE) -> 5235 | Q181: -14313.56
A182: AX027 | B182: =_xlfn.XLOOKUP(A182,[9]Sheet2!A:A,[9]Sheet2!D:D,0,FALSE) -> Chq bk | C182: REAEB | D182: 330 | E182: 2296 | F182: 3302296 | G182: GLENMEAD JI | H182: -245699.3433 | I182: -7632.45 | J182: -253331.7933 | L182: -10139.13 | M182: -519.98 | N182: -10659.11 | O182: =-_xlfn.XLOOKUP(A182,[10]Capital!B:B,[10]Capital!AG:AG,0,FALSE) -> -16459.32 | P182: =_xlfn.XLOOKUP(A182,[10]Capital!B:B,[10]Capital!AH:AH,0,FALSE) -> 0 | Q182: -16459.32
A183: AX02H | B183: =_xlfn.XLOOKUP(A183,[9]Sheet2!A:A,[9]Sheet2!D:D,0,FALSE) -> Chq Bk | C183: REAEP | D183: 330 | E183: 2092 | F183: 3302092 | G183: HALL GREEN J | H183: -731070.4932 | I183: -208848.8868 | J183: -939919.38 | L183: -28178.3 | M183: -9411.25 | N183: -37589.55 | O183: =-_xlfn.XLOOKUP(A183,[10]Capital!B:B,[10]Capital!AG:AG,0,FALSE) -> -19648.86 | P183: =_xlfn.XLOOKUP(A183,[10]Capital!B:B,[10]Capital!AH:AH,0,FALSE) -> 0 | Q183: -19648.86
A184: AX032 | B184: =_xlfn.XLOOKUP(A184,[9]Sheet2!A:A,[9]Sheet2!D:D,0,FALSE) -> Chq Bk | C184: REAFT | D184: 330 | E184: 2015 | F184: 3302015 | G184: JAMES WATT JI NC | H184: -742449.4742 | I184: -102826 | J184: -845275.4742 | L184: -17882.91 | M184: 16018.91 | N184: -1864 | O184: =-_xlfn.XLOOKUP(A184,[10]Capital!B:B,[10]Capital!AG:AG,0,FALSE) -> -18661.91 | P184: =_xlfn.XLOOKUP(A184,[10]Capital!B:B,[10]Capital!AH:AH,0,FALSE) -> 0 | Q184: -18661.91
A185: AX03L | B185: =_xlfn.XLOOKUP(A185,[9]Sheet2!A:A,[9]Sheet2!D:D,0,FALSE) -> Chq Bk | C185: REAGK | D185: 330 | E185: 2462 | F185: 3302462 | G185: LITTLE SUTTON JI | H185: -784632.1946 | I185: 74118.43 | J185: -710513.7646 | L185: -9470.35 | M185: -42192.41 | N185: -51662.76 | O185: =-_xlfn.XLOOKUP(A185,[10]Capital!B:B,[10]Capital!AG:AG,0,FALSE) -> -18525.5 | P185: =_xlfn.XLOOKUP(A185,[10]Capital!B:B,[10]Capital!AH:AH,0,FALSE) -> 12490.2 | Q185: -6035.3
A186: AX0AN | B186: =_xlfn.XLOOKUP(A186,[9]Sheet2!A:A,[9]Sheet2!D:D,0,FALSE) -> Chq Bk | C186: REAGL | D186: 330 | E186: 2127 | F186: 3302127 | G186: LOZELLS JI NC | H186: -496079.2994 | I186: 15728.65 | J186: -480350.6494 | L186: 0 | M186: -8974.75 | N186: -8974.75 | O186: =-_xlfn.XLOOKUP(A186,[10]Capital!B:B,[10]Capital!AG:AG,0,FALSE) -> -18870.53 | P186: =_xlfn.XLOOKUP(A186,[10]Capital!B:B,[10]Capital!AH:AH,0,FALSE) -> 0 | Q186: -18870.53
A187: AX03N | B187: =_xlfn.XLOOKUP(A187,[9]Sheet2!A:A,[9]Sheet2!D:D,0,FALSE) -> Chq Bk | C187: REAGM | D187: 330 | E187: 2129 | F187: 3302129 | G187: LYNDON GREEN I | H187: -116366.4412 | I187: -83458.14 | J187: -199824.5812 | L187: -40729.14 | M187: -7116.25 | N187: -47845.39 | O187: =-_xlfn.XLOOKUP(A187,[10]Capital!B:B,[10]Capital!AG:AG,0,FALSE) -> -15556.62 | P187: =_xlfn.XLOOKUP(A187,[10]Capital!B:B,[10]Capital!AH:AH,0,FALSE) -> 0 | Q187: -15556.62
A188: AX03P | B188: =_xlfn.XLOOKUP(A188,[9]Sheet2!A:A,[9]Sheet2!D:D,0,FALSE) -> Chq Bk | C188: REAGN | D188: 330 | E188: 2128 | F188: 3302128 | G188: LYNDON GREEN J | H188: -382804.7175 | I188: 144206.66 | J188: -238598.0575 | L188: -8095.2 | M188: -37929.25 | N188: -46024.45 | O188: =-_xlfn.XLOOKUP(A188,[10]Capital!B:B,[10]Capital!AG:AG,0,FALSE) -> -17402.14 | P188: =_xlfn.XLOOKUP(A188,[10]Capital!B:B,[10]Capital!AH:AH,0,FALSE) -> 0 | Q188: -17402.14
A189: AX03V | B189: =_xlfn.XLOOKUP(A189,[9]Sheet2!A:A,[9]Sheet2!D:D,0,FALSE) -> Chq Bk | C189: REAGY | D189: 330 | E189: 2133 | F189: 3302133 | G189: MARSH HILL JI | H189: -487974.4756 | I189: 35471.03 | J189: -452503.4456 | L189: -51590.68 | M189: -11984.95 | N189: -63575.63 | O189: =-_xlfn.XLOOKUP(A189,[10]Capital!B:B,[10]Capital!AG:AG,0,FALSE) -> -18164.42 | P189: =_xlfn.XLOOKUP(A189,[10]Capital!B:B,[10]Capital!AH:AH,0,FALSE) -> 0 | Q189: -18164.42
A190: AX03X | B190: =_xlfn.XLOOKUP(A190,[9]Sheet2!A:A,[9]Sheet2!D:D,0,FALSE) -> Chq Bk | C190: REAGZ | D190: 330 | E190: 3322 | F190: 3303322 | G190: MARYVALE RC JI NC | H190: -133853.511 | I190: 84.34 | J190: -133769.171 | L190: 0 | M190: -13482.24 | N190: -13482.24 | O190: =-_xlfn.XLOOKUP(A190,[10]Capital!B:B,[10]Capital!AG:AG,0,FALSE) -> 0 | P190: =_xlfn.XLOOKUP(A190,[10]Capital!B:B,[10]Capital!AH:AH,0,FALSE) -> 0 | Q190: 0
A191: AX049 | B191: =_xlfn.XLOOKUP(A191,[9]Sheet2!A:A,[9]Sheet2!D:D,0,FALSE) -> Chq Bk | C191: REAHX | D191: 330 | E191: 3323 | F191: 3303323 | G191: ORATORY RC JI NC | H191: -116743.2377 | I191: -64958 | J191: -181701.2377 | L191: 0 | M191: 0 | N191: 0 | O191: =-_xlfn.XLOOKUP(A191,[10]Capital!B:B,[10]Capital!AG:AG,0,FALSE) -> 0 | P191: =_xlfn.XLOOKUP(A191,[10]Capital!B:B,[10]Capital!AH:AH,0,FALSE) -> 0 | Q191: 0
A192: AX0BR | B192: =_xlfn.XLOOKUP(A192,[9]Sheet2!A:A,[9]Sheet2!D:D,0,FALSE) -> Chq Bk | C192: REAKR | D192: 330 | E192: 2174 | F192: 3302174 | G192: SLADEFIELD I | H192: -319679.968 | I192: 153529.27 | J192: -166150.698 | L192: -16088.75 | M192: -10166.25 | N192: -26255 | O192: =-_xlfn.XLOOKUP(A192,[10]Capital!B:B,[10]Capital!AG:AG,0,FALSE) -> -17161.42 | P192: =_xlfn.XLOOKUP(A192,[10]Capital!B:B,[10]Capital!AH:AH,0,FALSE) -> 0 | Q192: -17161.42
A193: AX05Q | B193: =_xlfn.XLOOKUP(A193,[9]Sheet2!A:A,[9]Sheet2!D:D,0,FALSE) -> Chq Bk | C193: REALP | D193: 330 | E193: 3363 | F193: 3303363 | G193: ST DUNSTAN'S RC JI NC | H193: -262510.8137 | I193: -7596.32 | J193: -270107.1337 | L193: 0 | M193: 0 | N193: 0 | O193: =-_xlfn.XLOOKUP(A193,[10]Capital!B:B,[10]Capital!AG:AG,0,FALSE) -> 0 | P193: =_xlfn.XLOOKUP(A193,[10]Capital!B:B,[10]Capital!AH:AH,0,FALSE) -> 0 | Q193: 0
A194: AX066 | B194: =_xlfn.XLOOKUP(A194,[9]Sheet2!A:A,[9]Sheet2!D:D,0,FALSE) -> Chq Bk | C194: REAMJ | D194: 330 | E194: 3377 | F194: 3303377 | G194: ST JUDE'S RC JI | H194: -252619.4082 | I194: 45621.66 | J194: -206997.7482 | L194: 0 | M194: 0 | N194: 0 | O194: =-_xlfn.XLOOKUP(A194,[10]Capital!B:B,[10]Capital!AG:AG,0,FALSE) -> 0 | P194: =_xlfn.XLOOKUP(A194,[10]Capital!B:B,[10]Capital!AH:AH,0,FALSE) -> 0 | Q194: 0
A195: AX067 | B195: =_xlfn.XLOOKUP(A195,[9]Sheet2!A:A,[9]Sheet2!D:D,0,FALSE) -> Chq Bk | C195: REAMK | D195: 330 | E195: 3371 | F195: 3303371 | G195: ST LAURENCE CE I | H195: -122801.735 | I195: 66864.02 | J195: -55937.71502 | L195: 0 | M195: 0 | N195: 0 | O195: =-_xlfn.XLOOKUP(A195,[10]Capital!B:B,[10]Capital!AG:AG,0,FALSE) -> 0 | P195: =_xlfn.XLOOKUP(A195,[10]Capital!B:B,[10]Capital!AH:AH,0,FALSE) -> 0 | Q195: 0
A196: AX06F | B196: =_xlfn.XLOOKUP(A196,[9]Sheet2!A:A,[9]Sheet2!D:D,0,FALSE) -> Chq Bk | C196: REAMX | D196: 330 | E196: 3016 | F196: 3303016 | G196: ST MATTHEW'S CE JI | H196: -473232.1529 | I196: -13276.94 | J196: -486509.0929 | L196: -6351.88 | M196: -6250 | N196: -12601.88 | O196: =-_xlfn.XLOOKUP(A196,[10]Capital!B:B,[10]Capital!AG:AG,0,FALSE) -> -14012 | P196: =_xlfn.XLOOKUP(A196,[10]Capital!B:B,[10]Capital!AH:AH,0,FALSE) -> 0 | Q196: -14012
A197: AX06L | B197: =_xlfn.XLOOKUP(A197,[9]Sheet2!A:A,[9]Sheet2!D:D,0,FALSE) -> Chq Bk | C197: REANF | D197: 330 | E197: 3428 | F197: 3303428 | G197: ST PETER'S CE JI NC | H197: -299586 | I197: 24203.59 | J197: -275382.41 | L197: -8524.25 | M197: 0 | N197: -8524.25 | O197: =-_xlfn.XLOOKUP(A197,[10]Capital!B:B,[10]Capital!AG:AG,0,FALSE) -> 0 | P197: =_xlfn.XLOOKUP(A197,[10]Capital!B:B,[10]Capital!AH:AH,0,FALSE) -> 0 | Q197: =O197+P197 -> 0
A198: AX0CH | B198: =_xlfn.XLOOKUP(A198,[9]Sheet2!A:A,[9]Sheet2!D:D,0,FALSE) -> Chq Bk | C198: REAPH | D198: 330 | E198: 5203 | F198: 3305203 | G198: WALMLEY I NC | H198: -149869 | I198: 49686.97 | J198: -100182.03 | L198: -7699.07 | M198: 29630 | N198: 21930.93 | O198: =-_xlfn.XLOOKUP(A198,[10]Capital!B:B,[10]Capital!AG:AG,0,FALSE) -> -16531.54 | P198: =_xlfn.XLOOKUP(A198,[10]Capital!B:B,[10]Capital!AH:AH,0,FALSE) -> 17880 | Q198: 1348.46
A199: AX0CJ | B199: =_xlfn.XLOOKUP(A199,[9]Sheet2!A:A,[9]Sheet2!D:D,0,FALSE) -> Chq Bk | C199: REAPJ | D199: 330 | E199: 5202 | F199: 3305202 | G199: WALMLEY J | H199: -248491.9714 | I199: 44583.53141 | J199: -203908.44 | L199: -32166.3 | M199: -8038.75 | N199: -40205.05 | O199: =-_xlfn.XLOOKUP(A199,[10]Capital!B:B,[10]Capital!AG:AG,0,FALSE) -> -17201.54 | P199: =_xlfn.XLOOKUP(A199,[10]Capital!B:B,[10]Capital!AH:AH,0,FALSE) -> 0 | Q199: -17201.54
A200: AX0CL | B200: =_xlfn.XLOOKUP(A200,[9]Sheet2!A:A,[9]Sheet2!D:D,0,FALSE) -> Chq Bk | C200: REAPQ | D200: 330 | E200: 2308 | F200: 3302308 | G200: WELFORD JI NC | H200: -454612 | I200: -4737.07 | J200: -459349.07 | L200: -8839.86 | M200: -8687.88 | N200: -17527.74 | O200: =-_xlfn.XLOOKUP(A200,[10]Capital!B:B,[10]Capital!AG:AG,0,FALSE) -> -18359 | P200: =_xlfn.XLOOKUP(A200,[10]Capital!B:B,[10]Capital!AH:AH,0,FALSE) -> 0 | Q200: -18359
... 21 more rows
